{"text_format":"3","workbook":"xlsx","n_sheets":14,"sheets":["Параметри","Січень","Лютий","Березень","Квітень","Травень","Червень","Липень","Серпень","Вересень","Жовтень","Листопад","Грудень","Свята"],"not_rendered":{"defined_names":20},"read":"whole","date_system":"1900"}

{"sheet":"Параметри","index":0,"n_rows":34,"n_cols":32,"rows_kept":34,"merged":[[1,17,2,23],[3,1,3,7],[3,8,3,10],[3,17,7,31],[4,1,4,7],[5,1,5,7],[8,1,8,7],[8,9,8,15],[8,17,8,23],[8,25,8,31],[9,1,9,7],[9,9,9,15],[9,17,9,23],[9,25,9,31],[17,1,17,7],[17,9,17,15],[17,17,17,23],[17,25,17,31],[18,1,18,7],[18,9,18,15],[18,17,18,23],[18,25,18,31],[26,1,26,7],[26,9,26,15],[26,17,26,23],[26,25,26,31],[27,1,27,7],[27,9,27,15],[27,17,27,23],[27,25,27,31]]}
[]
[null,"ПАРАМЕТРИ КАЛЕНДАРЯ",{"$nulls":15},"РІК"]
[]
[null,"ПОЧАТОК ТИЖНЯ",{"$nulls":6},"НЕДІЛЯ",{"$nulls":8},{"$f":"YEAR(TODAY())","v":2018}]
[null,"ВІДОБРАЖАТИ СВЯТА",{"$nulls":6},true]
[null,"ВІДОБРАЖАТИ ВИХІДНІ",{"$nulls":6},true]
[{"$nulls":8},{"$f":"IF(ВідображатиСвяткові,Вихідні,ВідображатиСвяткові)","v":true}]
[null,"ПОДАННЯ РОКУ"]
[null,{"$f":"DATE(РікКал,1,1)","v":43101},{"$nulls":7},{"$f":"DATE(РікКал,2,1)","v":43132},{"$nulls":7},{"$f":"DATE(РікКал,3,1)","v":43160},{"$nulls":7},{"$f":"DATE(РікКал,4,1)","v":43191}]
[null,{"$f":"UPPER(TEXT(B9,\"MMMM\"))","v":"СІЧЕНЬ"},{"$nulls":7},{"$f":"UPPER(TEXT(J9,\"MMMM\"))","v":"ЛЮТИЙ"},{"$nulls":7},{"$f":"UPPER(TEXT(R9,\"MMMM\"))","v":"БЕРЕЗЕНЬ"},{"$nulls":7},{"$f":"UPPER(TEXT(Z9,\"MMMM\"))","v":"КВІТЕНЬ"}]
[1,{"$f":"Дні+DATE(РікКал,MONTH($B$9),1)-WEEKDAY(DATE(РікКал,MONTH($B$9),1),(ПочатокТижня=\"Понеділок\")+1)+$A11*7-6","v":"2017-12-31"},"2018-01-01","2018-01-02","2018-01-03","2018-01-04","2018-01-05","2018-01-06",null,{"$f":"Дні+DATE(РікКал,MONTH($J$9),1)-WEEKDAY(DATE(РікКал,MONTH($J$9),1),(ПочатокТижня=\"Понеділок\")+1)+$A11*7-6","v":"2018-01-28"},"2018-01-29","2018-01-30","2018-01-31","2018-02-01","2018-02-02","2018-02-03",null,{"$f":"Дні+DATE(РікКал,MONTH($R$9),1)-WEEKDAY(DATE(РікКал,MONTH($R$9),1),(ПочатокТижня=\"Понеділок\")+1)+$A11*7-6","v":"2018-02-25"},"2018-02-26","2018-02-27","2018-02-28","2018-03-01","2018-03-02","2018-03-03",null,{"$f":"Дні+DATE(РікКал,MONTH($Z$9),1)-WEEKDAY(DATE(РікКал,MONTH($Z$9),1),(ПочатокТижня=\"Понеділок\")+1)+$A11*7-6","v":"2018-04-01"},"2018-04-02","2018-04-03","2018-04-04","2018-04-05","2018-04-06","2018-04-07"]
[2,{"$f":"Дні+DATE(РікКал,MONTH($B$9),1)-WEEKDAY(DATE(РікКал,MONTH($B$9),1),(ПочатокТижня=\"Понеділок\")+1)+$A12*7-6","v":"2018-01-07"},"2018-01-08","2018-01-09","2018-01-10","2018-01-11","2018-01-12","2018-01-13",null,{"$f":"Дні+DATE(РікКал,MONTH($J$9),1)-WEEKDAY(DATE(РікКал,MONTH($J$9),1),(ПочатокТижня=\"Понеділок\")+1)+$A12*7-6","v":"2018-02-04"},"2018-02-05","2018-02-06","2018-02-07","2018-02-08","2018-02-09","2018-02-10",null,{"$f":"Дні+DATE(РікКал,MONTH($R$9),1)-WEEKDAY(DATE(РікКал,MONTH($R$9),1),(ПочатокТижня=\"Понеділок\")+1)+$A12*7-6","v":"2018-03-04"},"2018-03-05","2018-03-06","2018-03-07","2018-03-08","2018-03-09","2018-03-10",null,{"$f":"Дні+DATE(РікКал,MONTH($Z$9),1)-WEEKDAY(DATE(РікКал,MONTH($Z$9),1),(ПочатокТижня=\"Понеділок\")+1)+$A12*7-6","v":"2018-04-08"},"2018-04-09","2018-04-10","2018-04-11","2018-04-12","2018-04-13","2018-04-14"]
[3,{"$f":"Дні+DATE(РікКал,MONTH($B$9),1)-WEEKDAY(DATE(РікКал,MONTH($B$9),1),(ПочатокТижня=\"Понеділок\")+1)+$A13*7-6","v":"2018-01-14"},"2018-01-15","2018-01-16","2018-01-17","2018-01-18","2018-01-19","2018-01-20",null,{"$f":"Дні+DATE(РікКал,MONTH($J$9),1)-WEEKDAY(DATE(РікКал,MONTH($J$9),1),(ПочатокТижня=\"Понеділок\")+1)+$A13*7-6","v":"2018-02-11"},"2018-02-12","2018-02-13","2018-02-14","2018-02-15","2018-02-16","2018-02-17",null,{"$f":"Дні+DATE(РікКал,MONTH($R$9),1)-WEEKDAY(DATE(РікКал,MONTH($R$9),1),(ПочатокТижня=\"Понеділок\")+1)+$A13*7-6","v":"2018-03-11"},"2018-03-12","2018-03-13","2018-03-14","2018-03-15","2018-03-16","2018-03-17",null,{"$f":"Дні+DATE(РікКал,MONTH($Z$9),1)-WEEKDAY(DATE(РікКал,MONTH($Z$9),1),(ПочатокТижня=\"Понеділок\")+1)+$A13*7-6","v":"2018-04-15"},"2018-04-16","2018-04-17","2018-04-18","2018-04-19","2018-04-20","2018-04-21"]
[4,{"$f":"Дні+DATE(РікКал,MONTH($B$9),1)-WEEKDAY(DATE(РікКал,MONTH($B$9),1),(ПочатокТижня=\"Понеділок\")+1)+$A14*7-6","v":"2018-01-21"},"2018-01-22","2018-01-23","2018-01-24","2018-01-25","2018-01-26","2018-01-27",null,{"$f":"Дні+DATE(РікКал,MONTH($J$9),1)-WEEKDAY(DATE(РікКал,MONTH($J$9),1),(ПочатокТижня=\"Понеділок\")+1)+$A14*7-6","v":"2018-02-18"},"2018-02-19","2018-02-20","2018-02-21","2018-02-22","2018-02-23","2018-02-24",null,{"$f":"Дні+DATE(РікКал,MONTH($R$9),1)-WEEKDAY(DATE(РікКал,MONTH($R$9),1),(ПочатокТижня=\"Понеділок\")+1)+$A14*7-6","v":"2018-03-18"},"2018-03-19","2018-03-20","2018-03-21","2018-03-22","2018-03-23","2018-03-24",null,{"$f":"Дні+DATE(РікКал,MONTH($Z$9),1)-WEEKDAY(DATE(РікКал,MONTH($Z$9),1),(ПочатокТижня=\"Понеділок\")+1)+$A14*7-6","v":"2018-04-22"},"2018-04-23","2018-04-24","2018-04-25","2018-04-26","2018-04-27","2018-04-28"]
[5,{"$f":"Дні+DATE(РікКал,MONTH($B$9),1)-WEEKDAY(DATE(РікКал,MONTH($B$9),1),(ПочатокТижня=\"Понеділок\")+1)+$A15*7-6","v":"2018-01-28"},"2018-01-29","2018-01-30","2018-01-31","2018-02-01","2018-02-02","2018-02-03",null,{"$f":"Дні+DATE(РікКал,MONTH($J$9),1)-WEEKDAY(DATE(РікКал,MONTH($J$9),1),(ПочатокТижня=\"Понеділок\")+1)+$A15*7-6","v":"2018-02-25"},"2018-02-26","2018-02-27","2018-02-28","2018-03-01","2018-03-02","2018-03-03",null,{"$f":"Дні+DATE(РікКал,MONTH($R$9),1)-WEEKDAY(DATE(РікКал,MONTH($R$9),1),(ПочатокТижня=\"Понеділок\")+1)+$A15*7-6","v":"2018-03-25"},"2018-03-26","2018-03-27","2018-03-28","2018-03-29","2018-03-30","2018-03-31",null,{"$f":"Дні+DATE(РікКал,MONTH($Z$9),1)-WEEKDAY(DATE(РікКал,MONTH($Z$9),1),(ПочатокТижня=\"Понеділок\")+1)+$A15*7-6","v":"2018-04-29"},"2018-04-30","2018-05-01","2018-05-02","2018-05-03","2018-05-04","2018-05-05"]
[6,{"$f":"Дні+DATE(РікКал,MONTH($B$9),1)-WEEKDAY(DATE(РікКал,MONTH($B$9),1),(ПочатокТижня=\"Понеділок\")+1)+$A16*7-6","v":"2018-02-04"},"2018-02-05","2018-02-06","2018-02-07","2018-02-08","2018-02-09","2018-02-10",null,{"$f":"Дні+DATE(РікКал,MONTH($J$9),1)-WEEKDAY(DATE(РікКал,MONTH($J$9),1),(ПочатокТижня=\"Понеділок\")+1)+$A16*7-6","v":"2018-03-04"},"2018-03-05","2018-03-06","2018-03-07","2018-03-08","2018-03-09","2018-03-10",null,{"$f":"Дні+DATE(РікКал,MONTH($R$9),1)-WEEKDAY(DATE(РікКал,MONTH($R$9),1),(ПочатокТижня=\"Понеділок\")+1)+$A16*7-6","v":"2018-04-01"},"2018-04-02","2018-04-03","2018-04-04","2018-04-05","2018-04-06","2018-04-07",null,{"$f":"Дні+DATE(РікКал,MONTH($Z$9),1)-WEEKDAY(DATE(РікКал,MONTH($Z$9),1),(ПочатокТижня=\"Понеділок\")+1)+$A16*7-6","v":"2018-05-06"},"2018-05-07","2018-05-08","2018-05-09","2018-05-10","2018-05-11","2018-05-12"]
[]
[null,{"$f":"DATE(РікКал,5,1)","v":43221},{"$nulls":7},{"$f":"DATE(РікКал,6,1)","v":43252},{"$nulls":7},{"$f":"DATE(РікКал,7,1)","v":43282},{"$nulls":7},{"$f":"DATE(РікКал,8,1)","v":43313}]
[null,{"$f":"UPPER(TEXT(B18,\"MMMM\"))","v":"ТРАВЕНЬ"},{"$nulls":7},{"$f":"UPPER(TEXT(J18,\"MMMM\"))","v":"ЧЕРВЕНЬ"},{"$nulls":7},{"$f":"UPPER(TEXT(R18,\"MMMM\"))","v":"ЛИПЕНЬ"},{"$nulls":7},{"$f":"UPPER(TEXT(Z18,\"MMMM\"))","v":"СЕРПЕНЬ"}]
[1,{"$f":"Дні+DATE(РікКал,MONTH($B$18),1)-WEEKDAY(DATE(РікКал,MONTH($B$18),1),(ПочатокТижня=\"Понеділок\")+1)+$A20*7-6","v":"2018-04-29"},"2018-04-30","2018-05-01","2018-05-02","2018-05-03","2018-05-04","2018-05-05",null,{"$f":"Дні+DATE(РікКал,MONTH($J$18),1)-WEEKDAY(DATE(РікКал,MONTH($J$18),1),(ПочатокТижня=\"Понеділок\")+1)+$A20*7-6","v":"2018-05-27"},"2018-05-28","2018-05-29","2018-05-30","2018-05-31","2018-06-01","2018-06-02",null,{"$f":"Дні+DATE(РікКал,MONTH($R$18),1)-WEEKDAY(DATE(РікКал,MONTH($R$18),1),(ПочатокТижня=\"Понеділок\")+1)+$A20*7-6","v":"2018-07-01"},"2018-07-02","2018-07-03","2018-07-04","2018-07-05","2018-07-06","2018-07-07",null,{"$f":"Дні+DATE(РікКал,MONTH($Z$18),1)-WEEKDAY(DATE(РікКал,MONTH($Z$18),1),(ПочатокТижня=\"Понеділок\")+1)+$A20*7-6","v":"2018-07-29"},"2018-07-30","2018-07-31","2018-08-01","2018-08-02","2018-08-03","2018-08-04"]
[2,{"$f":"Дні+DATE(РікКал,MONTH($B$18),1)-WEEKDAY(DATE(РікКал,MONTH($B$18),1),(ПочатокТижня=\"Понеділок\")+1)+$A21*7-6","v":"2018-05-06"},"2018-05-07","2018-05-08","2018-05-09","2018-05-10","2018-05-11","2018-05-12",null,{"$f":"Дні+DATE(РікКал,MONTH($J$18),1)-WEEKDAY(DATE(РікКал,MONTH($J$18),1),(ПочатокТижня=\"Понеділок\")+1)+$A21*7-6","v":"2018-06-03"},"2018-06-04","2018-06-05","2018-06-06","2018-06-07","2018-06-08","2018-06-09",null,{"$f":"Дні+DATE(РікКал,MONTH($R$18),1)-WEEKDAY(DATE(РікКал,MONTH($R$18),1),(ПочатокТижня=\"Понеділок\")+1)+$A21*7-6","v":"2018-07-08"},"2018-07-09","2018-07-10","2018-07-11","2018-07-12","2018-07-13","2018-07-14",null,{"$f":"Дні+DATE(РікКал,MONTH($Z$18),1)-WEEKDAY(DATE(РікКал,MONTH($Z$18),1),(ПочатокТижня=\"Понеділок\")+1)+$A21*7-6","v":"2018-08-05"},"2018-08-06","2018-08-07","2018-08-08","2018-08-09","2018-08-10","2018-08-11"]
[3,{"$f":"Дні+DATE(РікКал,MONTH($B$18),1)-WEEKDAY(DATE(РікКал,MONTH($B$18),1),(ПочатокТижня=\"Понеділок\")+1)+$A22*7-6","v":"2018-05-13"},"2018-05-14","2018-05-15","2018-05-16","2018-05-17","2018-05-18","2018-05-19",null,{"$f":"Дні+DATE(РікКал,MONTH($J$18),1)-WEEKDAY(DATE(РікКал,MONTH($J$18),1),(ПочатокТижня=\"Понеділок\")+1)+$A22*7-6","v":"2018-06-10"},"2018-06-11","2018-06-12","2018-06-13","2018-06-14","2018-06-15","2018-06-16",null,{"$f":"Дні+DATE(РікКал,MONTH($R$18),1)-WEEKDAY(DATE(РікКал,MONTH($R$18),1),(ПочатокТижня=\"Понеділок\")+1)+$A22*7-6","v":"2018-07-15"},"2018-07-16","2018-07-17","2018-07-18","2018-07-19","2018-07-20","2018-07-21",null,{"$f":"Дні+DATE(РікКал,MONTH($Z$18),1)-WEEKDAY(DATE(РікКал,MONTH($Z$18),1),(ПочатокТижня=\"Понеділок\")+1)+$A22*7-6","v":"2018-08-12"},"2018-08-13","2018-08-14","2018-08-15","2018-08-16","2018-08-17","2018-08-18"]
[4,{"$f":"Дні+DATE(РікКал,MONTH($B$18),1)-WEEKDAY(DATE(РікКал,MONTH($B$18),1),(ПочатокТижня=\"Понеділок\")+1)+$A23*7-6","v":"2018-05-20"},"2018-05-21","2018-05-22","2018-05-23","2018-05-24","2018-05-25","2018-05-26",null,{"$f":"Дні+DATE(РікКал,MONTH($J$18),1)-WEEKDAY(DATE(РікКал,MONTH($J$18),1),(ПочатокТижня=\"Понеділок\")+1)+$A23*7-6","v":"2018-06-17"},"2018-06-18","2018-06-19","2018-06-20","2018-06-21","2018-06-22","2018-06-23",null,{"$f":"Дні+DATE(РікКал,MONTH($R$18),1)-WEEKDAY(DATE(РікКал,MONTH($R$18),1),(ПочатокТижня=\"Понеділок\")+1)+$A23*7-6","v":"2018-07-22"},"2018-07-23","2018-07-24","2018-07-25","2018-07-26","2018-07-27","2018-07-28",null,{"$f":"Дні+DATE(РікКал,MONTH($Z$18),1)-WEEKDAY(DATE(РікКал,MONTH($Z$18),1),(ПочатокТижня=\"Понеділок\")+1)+$A23*7-6","v":"2018-08-19"},"2018-08-20","2018-08-21","2018-08-22","2018-08-23","2018-08-24","2018-08-25"]
[5,{"$f":"Дні+DATE(РікКал,MONTH($B$18),1)-WEEKDAY(DATE(РікКал,MONTH($B$18),1),(ПочатокТижня=\"Понеділок\")+1)+$A24*7-6","v":"2018-05-27"},"2018-05-28","2018-05-29","2018-05-30","2018-05-31","2018-06-01","2018-06-02",null,{"$f":"Дні+DATE(РікКал,MONTH($J$18),1)-WEEKDAY(DATE(РікКал,MONTH($J$18),1),(ПочатокТижня=\"Понеділок\")+1)+$A24*7-6","v":"2018-06-24"},"2018-06-25","2018-06-26","2018-06-27","2018-06-28","2018-06-29","2018-06-30",null,{"$f":"Дні+DATE(РікКал,MONTH($R$18),1)-WEEKDAY(DATE(РікКал,MONTH($R$18),1),(ПочатокТижня=\"Понеділок\")+1)+$A24*7-6","v":"2018-07-29"},"2018-07-30","2018-07-31","2018-08-01","2018-08-02","2018-08-03","2018-08-04",null,{"$f":"Дні+DATE(РікКал,MONTH($Z$18),1)-WEEKDAY(DATE(РікКал,MONTH($Z$18),1),(ПочатокТижня=\"Понеділок\")+1)+$A24*7-6","v":"2018-08-26"},"2018-08-27","2018-08-28","2018-08-29","2018-08-30","2018-08-31","2018-09-01"]
[6,{"$f":"Дні+DATE(РікКал,MONTH($B$18),1)-WEEKDAY(DATE(РікКал,MONTH($B$18),1),(ПочатокТижня=\"Понеділок\")+1)+$A25*7-6","v":"2018-06-03"},"2018-06-04","2018-06-05","2018-06-06","2018-06-07","2018-06-08","2018-06-09",null,{"$f":"Дні+DATE(РікКал,MONTH($J$18),1)-WEEKDAY(DATE(РікКал,MONTH($J$18),1),(ПочатокТижня=\"Понеділок\")+1)+$A25*7-6","v":"2018-07-01"},"2018-07-02","2018-07-03","2018-07-04","2018-07-05","2018-07-06","2018-07-07",null,{"$f":"Дні+DATE(РікКал,MONTH($R$18),1)-WEEKDAY(DATE(РікКал,MONTH($R$18),1),(ПочатокТижня=\"Понеділок\")+1)+$A25*7-6","v":"2018-08-05"},"2018-08-06","2018-08-07","2018-08-08","2018-08-09","2018-08-10","2018-08-11",null,{"$f":"Дні+DATE(РікКал,MONTH($Z$18),1)-WEEKDAY(DATE(РікКал,MONTH($Z$18),1),(ПочатокТижня=\"Понеділок\")+1)+$A25*7-6","v":"2018-09-02"},"2018-09-03","2018-09-04","2018-09-05","2018-09-06","2018-09-07","2018-09-08"]
[]
[null,{"$f":"DATE(РікКал,9,1)","v":43344},{"$nulls":7},{"$f":"DATE(РікКал,10,1)","v":43374},{"$nulls":7},{"$f":"DATE(РікКал,11,1)","v":43405},{"$nulls":7},{"$f":"DATE(РікКал,12,1)","v":43435}]
[null,{"$f":"UPPER(TEXT(B27,\"MMMM\"))","v":"ВЕРЕСЕНЬ"},{"$nulls":7},{"$f":"UPPER(TEXT(J27,\"MMMM\"))","v":"ЖОВТЕНЬ"},{"$nulls":7},{"$f":"UPPER(TEXT(R27,\"MMMM\"))","v":"ЛИСТОПАД"},{"$nulls":7},{"$f":"UPPER(TEXT(Z27,\"MMMM\"))","v":"ГРУДЕНЬ"}]
[1,{"$f":"Дні+DATE(РікКал,MONTH($B$27),1)-WEEKDAY(DATE(РікКал,MONTH($B$27),1),(ПочатокТижня=\"Понеділок\")+1)+$A29*7-6","v":"2018-08-26"},"2018-08-27","2018-08-28","2018-08-29","2018-08-30","2018-08-31","2018-09-01",null,{"$f":"Дні+DATE(РікКал,MONTH($J$27),1)-WEEKDAY(DATE(РікКал,MONTH($J$27),1),(ПочатокТижня=\"Понеділок\")+1)+$A29*7-6","v":"2018-09-30"},"2018-10-01","2018-10-02","2018-10-03","2018-10-04","2018-10-05","2018-10-06",null,{"$f":"Дні+DATE(РікКал,MONTH($R$27),1)-WEEKDAY(DATE(РікКал,MONTH($R$27),1),(ПочатокТижня=\"Понеділок\")+1)+$A29*7-6","v":"2018-10-28"},"2018-10-29","2018-10-30","2018-10-31","2018-11-01","2018-11-02","2018-11-03",null,{"$f":"Дні+DATE(РікКал,MONTH($Z$27),1)-WEEKDAY(DATE(РікКал,MONTH($Z$27),1),(ПочатокТижня=\"Понеділок\")+1)+$A29*7-6","v":"2018-11-25"},"2018-11-26","2018-11-27","2018-11-28","2018-11-29","2018-11-30","2018-12-01"]
[2,{"$f":"Дні+DATE(РікКал,MONTH($B$27),1)-WEEKDAY(DATE(РікКал,MONTH($B$27),1),(ПочатокТижня=\"Понеділок\")+1)+$A30*7-6","v":"2018-09-02"},"2018-09-03","2018-09-04","2018-09-05","2018-09-06","2018-09-07","2018-09-08",null,{"$f":"Дні+DATE(РікКал,MONTH($J$27),1)-WEEKDAY(DATE(РікКал,MONTH($J$27),1),(ПочатокТижня=\"Понеділок\")+1)+$A30*7-6","v":"2018-10-07"},"2018-10-08","2018-10-09","2018-10-10","2018-10-11","2018-10-12","2018-10-13",null,{"$f":"Дні+DATE(РікКал,MONTH($R$27),1)-WEEKDAY(DATE(РікКал,MONTH($R$27),1),(ПочатокТижня=\"Понеділок\")+1)+$A30*7-6","v":"2018-11-04"},"2018-11-05","2018-11-06","2018-11-07","2018-11-08","2018-11-09","2018-11-10",null,{"$f":"Дні+DATE(РікКал,MONTH($Z$27),1)-WEEKDAY(DATE(РікКал,MONTH($Z$27),1),(ПочатокТижня=\"Понеділок\")+1)+$A30*7-6","v":"2018-12-02"},"2018-12-03","2018-12-04","2018-12-05","2018-12-06","2018-12-07","2018-12-08"]
[3,{"$f":"Дні+DATE(РікКал,MONTH($B$27),1)-WEEKDAY(DATE(РікКал,MONTH($B$27),1),(ПочатокТижня=\"Понеділок\")+1)+$A31*7-6","v":"2018-09-09"},"2018-09-10","2018-09-11","2018-09-12","2018-09-13","2018-09-14","2018-09-15",null,{"$f":"Дні+DATE(РікКал,MONTH($J$27),1)-WEEKDAY(DATE(РікКал,MONTH($J$27),1),(ПочатокТижня=\"Понеділок\")+1)+$A31*7-6","v":"2018-10-14"},"2018-10-15","2018-10-16","2018-10-17","2018-10-18","2018-10-19","2018-10-20",null,{"$f":"Дні+DATE(РікКал,MONTH($R$27),1)-WEEKDAY(DATE(РікКал,MONTH($R$27),1),(ПочатокТижня=\"Понеділок\")+1)+$A31*7-6","v":"2018-11-11"},"2018-11-12","2018-11-13","2018-11-14","2018-11-15","2018-11-16","2018-11-17",null,{"$f":"Дні+DATE(РікКал,MONTH($Z$27),1)-WEEKDAY(DATE(РікКал,MONTH($Z$27),1),(ПочатокТижня=\"Понеділок\")+1)+$A31*7-6","v":"2018-12-09"},"2018-12-10","2018-12-11","2018-12-12","2018-12-13","2018-12-14","2018-12-15"]
[4,{"$f":"Дні+DATE(РікКал,MONTH($B$27),1)-WEEKDAY(DATE(РікКал,MONTH($B$27),1),(ПочатокТижня=\"Понеділок\")+1)+$A32*7-6","v":"2018-09-16"},"2018-09-17","2018-09-18","2018-09-19","2018-09-20","2018-09-21","2018-09-22",null,{"$f":"Дні+DATE(РікКал,MONTH($J$27),1)-WEEKDAY(DATE(РікКал,MONTH($J$27),1),(ПочатокТижня=\"Понеділок\")+1)+$A32*7-6","v":"2018-10-21"},"2018-10-22","2018-10-23","2018-10-24","2018-10-25","2018-10-26","2018-10-27",null,{"$f":"Дні+DATE(РікКал,MONTH($R$27),1)-WEEKDAY(DATE(РікКал,MONTH($R$27),1),(ПочатокТижня=\"Понеділок\")+1)+$A32*7-6","v":"2018-11-18"},"2018-11-19","2018-11-20","2018-11-21","2018-11-22","2018-11-23","2018-11-24",null,{"$f":"Дні+DATE(РікКал,MONTH($Z$27),1)-WEEKDAY(DATE(РікКал,MONTH($Z$27),1),(ПочатокТижня=\"Понеділок\")+1)+$A32*7-6","v":"2018-12-16"},"2018-12-17","2018-12-18","2018-12-19","2018-12-20","2018-12-21","2018-12-22"]
[5,{"$f":"Дні+DATE(РікКал,MONTH($B$27),1)-WEEKDAY(DATE(РікКал,MONTH($B$27),1),(ПочатокТижня=\"Понеділок\")+1)+$A33*7-6","v":"2018-09-23"},"2018-09-24","2018-09-25","2018-09-26","2018-09-27","2018-09-28","2018-09-29",null,{"$f":"Дні+DATE(РікКал,MONTH($J$27),1)-WEEKDAY(DATE(РікКал,MONTH($J$27),1),(ПочатокТижня=\"Понеділок\")+1)+$A33*7-6","v":"2018-10-28"},"2018-10-29","2018-10-30","2018-10-31","2018-11-01","2018-11-02","2018-11-03",null,{"$f":"Дні+DATE(РікКал,MONTH($R$27),1)-WEEKDAY(DATE(РікКал,MONTH($R$27),1),(ПочатокТижня=\"Понеділок\")+1)+$A33*7-6","v":"2018-11-25"},"2018-11-26","2018-11-27","2018-11-28","2018-11-29","2018-11-30","2018-12-01",null,{"$f":"Дні+DATE(РікКал,MONTH($Z$27),1)-WEEKDAY(DATE(РікКал,MONTH($Z$27),1),(ПочатокТижня=\"Понеділок\")+1)+$A33*7-6","v":"2018-12-23"},"2018-12-24","2018-12-25","2018-12-26","2018-12-27","2018-12-28","2018-12-29"]
[6,{"$f":"Дні+DATE(РікКал,MONTH($B$27),1)-WEEKDAY(DATE(РікКал,MONTH($B$27),1),(ПочатокТижня=\"Понеділок\")+1)+$A34*7-6","v":"2018-09-30"},"2018-10-01","2018-10-02","2018-10-03","2018-10-04","2018-10-05","2018-10-06",null,{"$f":"Дні+DATE(РікКал,MONTH($J$27),1)-WEEKDAY(DATE(РікКал,MONTH($J$27),1),(ПочатокТижня=\"Понеділок\")+1)+$A34*7-6","v":"2018-11-04"},"2018-11-05","2018-11-06","2018-11-07","2018-11-08","2018-11-09","2018-11-10",null,{"$f":"Дні+DATE(РікКал,MONTH($R$27),1)-WEEKDAY(DATE(РікКал,MONTH($R$27),1),(ПочатокТижня=\"Понеділок\")+1)+$A34*7-6","v":"2018-12-02"},"2018-12-03","2018-12-04","2018-12-05","2018-12-06","2018-12-07","2018-12-08",null,{"$f":"Дні+DATE(РікКал,MONTH($Z$27),1)-WEEKDAY(DATE(РікКал,MONTH($Z$27),1),(ПочатокТижня=\"Понеділок\")+1)+$A34*7-6","v":"2018-12-30"},"2018-12-31","2019-01-01","2019-01-02","2019-01-03","2019-01-04","2019-01-05"]

{"sheet":"Січень","index":1,"n_rows":17,"n_cols":8,"rows_kept":17,"merged":[[1,1,1,3],[14,3,14,7],[15,3,15,7],[16,1,16,7]]}
[]
[null,{"$f":"B9","v":"2018-01-14"}]
[]
[null,{"$f":"ПочатокТижня","v":"НЕДІЛЯ"},{"$f":"UPPER(TEXT(C5,\"dddd\"))","v":"ПОНЕДІЛОК"},"ВІВТОРОК","СЕРЕДА","ЧЕТВЕР","П'ЯТНИЦЯ","СУБОТА"]
[null,{"$f":"Дні+DATE(РікКал,1,1)-WEEKDAY(DATE(РікКал,1,1),(ПочатокТижня=\"Понеділок\")+1)+1","v":"2017-12-31"},"2018-01-01","2018-01-02","2018-01-03","2018-01-04","2018-01-05","2018-01-06"]
[null,{"$f":"IFERROR(IF(ВідображатиСвяткові,IF(INDEX(тблСвята[],MATCH(DATE(РікКал-(DAY(B5)>15)+(ROW()>6),MONTH(B5),DAY(B5)),IF(ВідображатиВихідні,тблСвята[ПЕРЕНЕСЕНО],тблСвята[ДЕНЬ]),0),6),INDEX(тблСвята[],MATCH(DATE(РікКал-(DAY(B5)>15)+(ROW()>6),MONTH(B5),DAY(B5)),IF(ВідображатиВихідні,тблСвята[ПЕРЕНЕСЕНО],тблСвята[ДЕНЬ]),0),2),\"\"),\"\"),\"\")","v":""},{"$f":"IFERROR(IF(ВідображатиСвяткові,IF(INDEX(тблСвята[],MATCH(DATE(РікКал-(DAY(C5)>15)+(ROW()>6),MONTH(C5),DAY(C5)),IF(ВідображатиВихідні,тблСвята[ПЕРЕНЕСЕНО],тблСвята[ДЕНЬ]),0),6),INDEX(тблСвята[],MATCH(DATE(РікКал-(DAY(C5)>15)+(ROW()>6),MONTH(C5),DAY(C5)),IF(ВідображатиВихідні,тблСвята[ПЕРЕНЕСЕНО],тблСвята[ДЕНЬ]),0),2),\"\"),\"\"),\"\")","v":"Новий рік"},{"$f":"IFERROR(IF(ВідображатиСвяткові,IF(INDEX(тблСвята[],MATCH(DATE(РікКал-(DAY(D5)>15)+(ROW()>6),MONTH(D5),DAY(D5)),IF(ВідображатиВихідні,тблСвята[ПЕРЕНЕСЕНО],тблСвята[ДЕНЬ]),0),6),INDEX(тблСвята[],MATCH(DATE(РікКал-(DAY(D5)>15)+(ROW()>6),MONTH(D5),DAY(D5)),IF(ВідображатиВихідні,тблСвята[ПЕРЕНЕСЕНО],тблСвята[ДЕНЬ]),0),2),\"\"),\"\"),\"\")","v":""},{"$f":"IFERROR(IF(ВідображатиСвяткові,IF(INDEX(тблСвята[],MATCH(DATE(РікКал-(DAY(E5)>15)+(ROW()>6),MONTH(E5),DAY(E5)),IF(ВідображатиВихідні,тблСвята[ПЕРЕНЕСЕНО],тблСвята[ДЕНЬ]),0),6),INDEX(тблСвята[],MATCH(DATE(РікКал-(DAY(E5)>15)+(ROW()>6),MONTH(E5),DAY(E5)),IF(ВідображатиВихідні,тблСвята[ПЕРЕНЕСЕНО],тблСвята[ДЕНЬ]),0),2),\"\"),\"\"),\"\")","v":""},{"$f":"IFERROR(IF(ВідображатиСвяткові,IF(INDEX(тблСвята[],MATCH(DATE(РікКал-(DAY(F5)>15)+(ROW()>6),MONTH(F5),DAY(F5)),IF(ВідображатиВихідні,тблСвята[ПЕРЕНЕСЕНО],тблСвята[ДЕНЬ]),0),6),INDEX(тблСвята[],MATCH(DATE(РікКал-(DAY(F5)>15)+(ROW()>6),MONTH(F5),DAY(F5)),IF(ВідображатиВихідні,тблСвята[ПЕРЕНЕСЕНО],тблСвята[ДЕНЬ]),0),2),\"\"),\"\"),\"\")","v":""},{"$f":"IFERROR(IF(ВідображатиСвяткові,IF(INDEX(тблСвята[],MATCH(DATE(РікКал-(DAY(G5)>15)+(ROW()>6),MONTH(G5),DAY(G5)),IF(ВідображатиВихідні,тблСвята[ПЕРЕНЕСЕНО],тблСвята[ДЕНЬ]),0),6),INDEX(тблСвята[],MATCH(DATE(РікКал-(DAY(G5)>15)+(ROW()>6),MONTH(G5),DAY(G5)),IF(ВідображатиВихідні,тблСвята[ПЕРЕНЕСЕНО],тблСвята[ДЕНЬ]),0),2),\"\"),\"\"),\"\")","v":""},{"$f":"IFERROR(IF(ВідображатиСвяткові,IF(INDEX(тблСвята[],MATCH(DATE(РікКал-(DAY(H5)>15)+(ROW()>6),MONTH(H5),DAY(H5)),IF(ВідображатиВихідні,тблСвята[ПЕРЕНЕСЕНО],тблСвята[ДЕНЬ]),0),6),INDEX(тблСвята[],MATCH(DATE(РікКал-(DAY(H5)>15)+(ROW()>6),MONTH(H5),DAY(H5)),IF(ВідображатиВихідні,тблСвята[ПЕРЕНЕСЕНО],тблСвята[ДЕНЬ]),0),2),\"\"),\"\"),\"\")","v":""}]
[null,{"$f":"Дні+DATE(РікКал,1,1)-WEEKDAY(DATE(РікКал,1,1),(ПочатокТижня=\"Понеділок\")+1)+8","v":"2018-01-07"},"2018-01-08","2018-01-09","2018-01-10","2018-01-11","2018-01-12","2018-01-13"]
[null,{"$f":"IFERROR(IF(ВідображатиСвяткові,IF(INDEX(тблСвята[],MATCH(DATE(РікКал,MONTH(B7),DAY(B7)),IF(ВідображатиВихідні,тблСвята[ПЕРЕНЕСЕНО],тблСвята[ДЕНЬ]),0),6),INDEX(тблСвята[],MATCH(DATE(РікКал,MONTH(B7),DAY(B7)),IF(ВідображатиВихідні,тблСвята[ПЕРЕНЕСЕНО],тблСвята[ДЕНЬ]),0),2),\"\"),\"\"),\"\")","v":""},{"$f":"IFERROR(IF(ВідображатиСвяткові,IF(INDEX(тблСвята[],MATCH(DATE(РікКал,MONTH(C7),DAY(C7)),IF(ВідображатиВихідні,тблСвята[ПЕРЕНЕСЕНО],тблСвята[ДЕНЬ]),0),6),INDEX(тблСвята[],MATCH(DATE(РікКал,MONTH(C7),DAY(C7)),IF(ВідображатиВихідні,тблСвята[ПЕРЕНЕСЕНО],тблСвята[ДЕНЬ]),0),2),\"\"),\"\"),\"\")","v":""},{"$f":"IFERROR(IF(ВідображатиСвяткові,IF(INDEX(тблСвята[],MATCH(DATE(РікКал,MONTH(D7),DAY(D7)),IF(ВідображатиВихідні,тблСвята[ПЕРЕНЕСЕНО],тблСвята[ДЕНЬ]),0),6),INDEX(тблСвята[],MATCH(DATE(РікКал,MONTH(D7),DAY(D7)),IF(ВідображатиВихідні,тблСвята[ПЕРЕНЕСЕНО],тблСвята[ДЕНЬ]),0),2),\"\"),\"\"),\"\")","v":""},{"$f":"IFERROR(IF(ВідображатиСвяткові,IF(INDEX(тблСвята[],MATCH(DATE(РікКал,MONTH(E7),DAY(E7)),IF(ВідображатиВихідні,тблСвята[ПЕРЕНЕСЕНО],тблСвята[ДЕНЬ]),0),6),INDEX(тблСвята[],MATCH(DATE(РікКал,MONTH(E7),DAY(E7)),IF(ВідображатиВихідні,тблСвята[ПЕРЕНЕСЕНО],тблСвята[ДЕНЬ]),0),2),\"\"),\"\"),\"\")","v":""},{"$f":"IFERROR(IF(ВідображатиСвяткові,IF(INDEX(тблСвята[],MATCH(DATE(РікКал,MONTH(F7),DAY(F7)),IF(ВідображатиВихідні,тблСвята[ПЕРЕНЕСЕНО],тблСвята[ДЕНЬ]),0),6),INDEX(тблСвята[],MATCH(DATE(РікКал,MONTH(F7),DAY(F7)),IF(ВідображатиВихідні,тблСвята[ПЕРЕНЕСЕНО],тблСвята[ДЕНЬ]),0),2),\"\"),\"\"),\"\")","v":""},{"$f":"IFERROR(IF(ВідображатиСвяткові,IF(INDEX(тблСвята[],MATCH(DATE(РікКал,MONTH(G7),DAY(G7)),IF(ВідображатиВихідні,тблСвята[ПЕРЕНЕСЕНО],тблСвята[ДЕНЬ]),0),6),INDEX(тблСвята[],MATCH(DATE(РікКал,MONTH(G7),DAY(G7)),IF(ВідображатиВихідні,тблСвята[ПЕРЕНЕСЕНО],тблСвята[ДЕНЬ]),0),2),\"\"),\"\"),\"\")","v":""},{"$f":"IFERROR(IF(ВідображатиСвяткові,IF(INDEX(тблСвята[],MATCH(DATE(РікКал,MONTH(H7),DAY(H7)),IF(ВідображатиВихідні,тблСвята[ПЕРЕНЕСЕНО],тблСвята[ДЕНЬ]),0),6),INDEX(тблСвята[],MATCH(DATE(РікКал,MONTH(H7),DAY(H7)),IF(ВідображатиВихідні,тблСвята[ПЕРЕНЕСЕНО],тблСвята[ДЕНЬ]),0),2),\"\"),\"\"),\"\")","v":""}]
[null,{"$f":"Дні+DATE(РікКал,1,1)-WEEKDAY(DATE(РікКал,1,1),(ПочатокТижня=\"Понеділок\")+1)+15","v":"2018-01-14"},"2018-01-15","2018-01-16","2018-01-17","2018-01-18","2018-01-19","2018-01-20"]
[null,{"$f":"IFERROR(IF(ВідображатиСвяткові,IF(INDEX(тблСвята[],MATCH(DATE(РікКал,MONTH(B9),DAY(B9)),IF(ВідображатиВихідні,тблСвята[ПЕРЕНЕСЕНО],тблСвята[ДЕНЬ]),0),6),INDEX(тблСвята[],MATCH(DATE(РікКал,MONTH(B9),DAY(B9)),IF(ВідображатиВихідні,тблСвята[ПЕРЕНЕСЕНО],тблСвята[ДЕНЬ]),0),2),\"\"),\"\"),\"\")","v":""},{"$f":"IFERROR(IF(ВідображатиСвяткові,IF(INDEX(тблСвята[],MATCH(DATE(РікКал,MONTH(C9),DAY(C9)),IF(ВідображатиВихідні,тблСвята[ПЕРЕНЕСЕНО],тблСвята[ДЕНЬ]),0),6),INDEX(тблСвята[],MATCH(DATE(РікКал,MONTH(C9),DAY(C9)),IF(ВідображатиВихідні,тблСвята[ПЕРЕНЕСЕНО],тблСвята[ДЕНЬ]),0),2),\"\"),\"\"),\"\")","v":"Martin Luther King, Jr. Day"},{"$f":"IFERROR(IF(ВідображатиСвяткові,IF(INDEX(тблСвята[],MATCH(DATE(РікКал,MONTH(D9),DAY(D9)),IF(ВідображатиВихідні,тблСвята[ПЕРЕНЕСЕНО],тблСвята[ДЕНЬ]),0),6),INDEX(тблСвята[],MATCH(DATE(РікКал,MONTH(D9),DAY(D9)),IF(ВідображатиВихідні,тблСвята[ПЕРЕНЕСЕНО],тблСвята[ДЕНЬ]),0),2),\"\"),\"\"),\"\")","v":""},{"$f":"IFERROR(IF(ВідображатиСвяткові,IF(INDEX(тблСвята[],MATCH(DATE(РікКал,MONTH(E9),DAY(E9)),IF(ВідображатиВихідні,тблСвята[ПЕРЕНЕСЕНО],тблСвята[ДЕНЬ]),0),6),INDEX(тблСвята[],MATCH(DATE(РікКал,MONTH(E9),DAY(E9)),IF(ВідображатиВихідні,тблСвята[ПЕРЕНЕСЕНО],тблСвята[ДЕНЬ]),0),2),\"\"),\"\"),\"\")","v":""},{"$f":"IFERROR(IF(ВідображатиСвяткові,IF(INDEX(тблСвята[],MATCH(DATE(РікКал,MONTH(F9),DAY(F9)),IF(ВідображатиВихідні,тблСвята[ПЕРЕНЕСЕНО],тблСвята[ДЕНЬ]),0),6),INDEX(тблСвята[],MATCH(DATE(РікКал,MONTH(F9),DAY(F9)),IF(ВідображатиВихідні,тблСвята[ПЕРЕНЕСЕНО],тблСвята[ДЕНЬ]),0),2),\"\"),\"\"),\"\")","v":""},{"$f":"IFERROR(IF(ВідображатиСвяткові,IF(INDEX(тблСвята[],MATCH(DATE(РікКал,MONTH(G9),DAY(G9)),IF(ВідображатиВихідні,тблСвята[ПЕРЕНЕСЕНО],тблСвята[ДЕНЬ]),0),6),INDEX(тблСвята[],MATCH(DATE(РікКал,MONTH(G9),DAY(G9)),IF(ВідображатиВихідні,тблСвята[ПЕРЕНЕСЕНО],тблСвята[ДЕНЬ]),0),2),\"\"),\"\"),\"\")","v":""},{"$f":"IFERROR(IF(ВідображатиСвяткові,IF(INDEX(тблСвята[],MATCH(DATE(РікКал,MONTH(H9),DAY(H9)),IF(ВідображатиВихідні,тблСвята[ПЕРЕНЕСЕНО],тблСвята[ДЕНЬ]),0),6),INDEX(тблСвята[],MATCH(DATE(РікКал,MONTH(H9),DAY(H9)),IF(ВідображатиВихідні,тблСвята[ПЕРЕНЕСЕНО],тблСвята[ДЕНЬ]),0),2),\"\"),\"\"),\"\")","v":""}]
[null,{"$f":"Дні+DATE(РікКал,1,1)-WEEKDAY(DATE(РікКал,1,1),(ПочатокТижня=\"Понеділок\")+1)+22","v":"2018-01-21"},"2018-01-22","2018-01-23","2018-01-24","2018-01-25","2018-01-26","2018-01-27"]
[null,{"$f":"IFERROR(IF(ВідображатиСвяткові,IF(INDEX(тблСвята[],MATCH(DATE(РікКал,MONTH(B11),DAY(B11)),IF(ВідображатиВихідні,тблСвята[ПЕРЕНЕСЕНО],тблСвята[ДЕНЬ]),0),6),INDEX(тблСвята[],MATCH(DATE(РікКал,MONTH(B11),DAY(B11)),IF(ВідображатиВихідні,тблСвята[ПЕРЕНЕСЕНО],тблСвята[ДЕНЬ]),0),2),\"\"),\"\"),\"\")","v":""},{"$f":"IFERROR(IF(ВідображатиСвяткові,IF(INDEX(тблСвята[],MATCH(DATE(РікКал,MONTH(C11),DAY(C11)),IF(ВідображатиВихідні,тблСвята[ПЕРЕНЕСЕНО],тблСвята[ДЕНЬ]),0),6),INDEX(тблСвята[],MATCH(DATE(РікКал,MONTH(C11),DAY(C11)),IF(ВідображатиВихідні,тблСвята[ПЕРЕНЕСЕНО],тблСвята[ДЕНЬ]),0),2),\"\"),\"\"),\"\")","v":""},{"$f":"IFERROR(IF(ВідображатиСвяткові,IF(INDEX(тблСвята[],MATCH(DATE(РікКал,MONTH(D11),DAY(D11)),IF(ВідображатиВихідні,тблСвята[ПЕРЕНЕСЕНО],тблСвята[ДЕНЬ]),0),6),INDEX(тблСвята[],MATCH(DATE(РікКал,MONTH(D11),DAY(D11)),IF(ВідображатиВихідні,тблСвята[ПЕРЕНЕСЕНО],тблСвята[ДЕНЬ]),0),2),\"\"),\"\"),\"\")","v":""},{"$f":"IFERROR(IF(ВідображатиСвяткові,IF(INDEX(тблСвята[],MATCH(DATE(РікКал,MONTH(E11),DAY(E11)),IF(ВідображатиВихідні,тблСвята[ПЕРЕНЕСЕНО],тблСвята[ДЕНЬ]),0),6),INDEX(тблСвята[],MATCH(DATE(РікКал,MONTH(E11),DAY(E11)),IF(ВідображатиВихідні,тблСвята[ПЕРЕНЕСЕНО],тблСвята[ДЕНЬ]),0),2),\"\"),\"\"),\"\")","v":""},{"$f":"IFERROR(IF(ВідображатиСвяткові,IF(INDEX(тблСвята[],MATCH(DATE(РікКал,MONTH(F11),DAY(F11)),IF(ВідображатиВихідні,тблСвята[ПЕРЕНЕСЕНО],тблСвята[ДЕНЬ]),0),6),INDEX(тблСвята[],MATCH(DATE(РікКал,MONTH(F11),DAY(F11)),IF(ВідображатиВихідні,тблСвята[ПЕРЕНЕСЕНО],тблСвята[ДЕНЬ]),0),2),\"\"),\"\"),\"\")","v":""},{"$f":"IFERROR(IF(ВідображатиСвяткові,IF(INDEX(тблСвята[],MATCH(DATE(РікКал,MONTH(G11),DAY(G11)),IF(ВідображатиВихідні,тблСвята[ПЕРЕНЕСЕНО],тблСвята[ДЕНЬ]),0),6),INDEX(тблСвята[],MATCH(DATE(РікКал,MONTH(G11),DAY(G11)),IF(ВідображатиВихідні,тблСвята[ПЕРЕНЕСЕНО],тблСвята[ДЕНЬ]),0),2),\"\"),\"\"),\"\")","v":""},{"$f":"IFERROR(IF(ВідображатиСвяткові,IF(INDEX(тблСвята[],MATCH(DATE(РікКал,MONTH(H11),DAY(H11)),IF(ВідображатиВихідні,тблСвята[ПЕРЕНЕСЕНО],тблСвята[ДЕНЬ]),0),6),INDEX(тблСвята[],MATCH(DATE(РікКал,MONTH(H11),DAY(H11)),IF(ВідображатиВихідні,тблСвята[ПЕРЕНЕСЕНО],тблСвята[ДЕНЬ]),0),2),\"\"),\"\"),\"\")","v":""}]
[null,{"$f":"Дні+DATE(РікКал,1,1)-WEEKDAY(DATE(РікКал,1,1),(ПочатокТижня=\"Понеділок\")+1)+29","v":"2018-01-28"},"2018-01-29","2018-01-30","2018-01-31","2018-02-01","2018-02-02","2018-02-03"]
[null,{"$f":"IFERROR(IF(ВідображатиСвяткові,IF(INDEX(тблСвята[],MATCH(DATE(РікКал,MONTH(B13),DAY(B13)),IF(ВідображатиВихідні,тблСвята[ПЕРЕНЕСЕНО],тблСвята[ДЕНЬ]),0),6),INDEX(тблСвята[],MATCH(DATE(РікКал,MONTH(B13),DAY(B13)),IF(ВідображатиВихідні,тблСвята[ПЕРЕНЕСЕНО],тблСвята[ДЕНЬ]),0),2),\"\"),\"\"),\"\")","v":""},{"$f":"IFERROR(IF(ВідображатиСвяткові,IF(INDEX(тблСвята[],MATCH(DATE(РікКал,MONTH(C13),DAY(C13)),IF(ВідображатиВихідні,тблСвята[ПЕРЕНЕСЕНО],тблСвята[ДЕНЬ]),0),6),INDEX(тблСвята[],MATCH(DATE(РікКал,MONTH(C13),DAY(C13)),IF(ВідображатиВихідні,тблСвята[ПЕРЕНЕСЕНО],тблСвята[ДЕНЬ]),0),2),\"\"),\"\"),\"\")","v":""},{"$f":"IFERROR(IF(ВідображатиСвяткові,IF(INDEX(тблСвята[],MATCH(DATE(РікКал,MONTH(D13),DAY(D13)),IF(ВідображатиВихідні,тблСвята[ПЕРЕНЕСЕНО],тблСвята[ДЕНЬ]),0),6),INDEX(тблСвята[],MATCH(DATE(РікКал,MONTH(D13),DAY(D13)),IF(ВідображатиВихідні,тблСвята[ПЕРЕНЕСЕНО],тблСвята[ДЕНЬ]),0),2),\"\"),\"\"),\"\")","v":""},{"$f":"IFERROR(IF(ВідображатиСвяткові,IF(INDEX(тблСвята[],MATCH(DATE(РікКал,MONTH(E13),DAY(E13)),IF(ВідображатиВихідні,тблСвята[ПЕРЕНЕСЕНО],тблСвята[ДЕНЬ]),0),6),INDEX(тблСвята[],MATCH(DATE(РікКал,MONTH(E13),DAY(E13)),IF(ВідображатиВихідні,тблСвята[ПЕРЕНЕСЕНО],тблСвята[ДЕНЬ]),0),2),\"\"),\"\"),\"\")","v":""},{"$f":"IFERROR(IF(ВідображатиСвяткові,IF(INDEX(тблСвята[],MATCH(DATE(РікКал,MONTH(F13),DAY(F13)),IF(ВідображатиВихідні,тблСвята[ПЕРЕНЕСЕНО],тблСвята[ДЕНЬ]),0),6),INDEX(тблСвята[],MATCH(DATE(РікКал,MONTH(F13),DAY(F13)),IF(ВідображатиВихідні,тблСвята[ПЕРЕНЕСЕНО],тблСвята[ДЕНЬ]),0),2),\"\"),\"\"),\"\")","v":""},{"$f":"IFERROR(IF(ВідображатиСвяткові,IF(INDEX(тблСвята[],MATCH(DATE(РікКал,MONTH(G13),DAY(G13)),IF(ВідображатиВихідні,тблСвята[ПЕРЕНЕСЕНО],тблСвята[ДЕНЬ]),0),6),INDEX(тблСвята[],MATCH(DATE(РікКал,MONTH(G13),DAY(G13)),IF(ВідображатиВихідні,тблСвята[ПЕРЕНЕСЕНО],тблСвята[ДЕНЬ]),0),2),\"\"),\"\"),\"\")","v":""},{"$f":"IFERROR(IF(ВідображатиСвяткові,IF(INDEX(тблСвята[],MATCH(DATE(РікКал,MONTH(H13),DAY(H13)),IF(ВідображатиВихідні,тблСвята[ПЕРЕНЕСЕНО],тблСвята[ДЕНЬ]),0),6),INDEX(тблСвята[],MATCH(DATE(РікКал,MONTH(H13),DAY(H13)),IF(ВідображатиВихідні,тблСвята[ПЕРЕНЕСЕНО],тблСвята[ДЕНЬ]),0),2),\"\"),\"\"),\"\")","v":""}]
[null,{"$f":"Дні+DATE(РікКал,1,1)-WEEKDAY(DATE(РікКал,1,1),(ПочатокТижня=\"Понеділок\")+1)+36","v":"2018-02-04"},"2018-02-05","НОТАТКИ"]
[null,{"$f":"IFERROR(IF(ВідображатиСвяткові,IF(INDEX(тблСвята[],MATCH(DATE(РікКал,MONTH(B15),DAY(B15)),IF(ВідображатиВихідні,тблСвята[ПЕРЕНЕСЕНО],тблСвята[ДЕНЬ]),0),6),INDEX(тблСвята[],MATCH(DATE(РікКал,MONTH(B15),DAY(B15)),IF(ВідображатиВихідні,тблСвята[ПЕРЕНЕСЕНО],тблСвята[ДЕНЬ]),0),2),\"\"),\"\"),\"\")","v":""},{"$f":"IFERROR(IF(ВідображатиСвяткові,IF(INDEX(тблСвята[],MATCH(DATE(РікКал,MONTH(C15),DAY(C15)),IF(ВідображатиВихідні,тблСвята[ПЕРЕНЕСЕНО],тблСвята[ДЕНЬ]),0),6),INDEX(тблСвята[],MATCH(DATE(РікКал,MONTH(C15),DAY(C15)),IF(ВідображатиВихідні,тблСвята[ПЕРЕНЕСЕНО],тблСвята[ДЕНЬ]),0),2),\"\"),\"\"),\"\")","v":""}]
[null,{"$f":"IF(Свята!$C$6=\"Martin Luther King, Jr. Day *\",\"* Martin Luther King Jr. Day and Inaguration Day\", \"\")","v":""}]

{"sheet":"Лютий","index":2,"n_rows":16,"n_cols":8,"rows_kept":16,"merged":[[1,1,1,3],[14,3,14,7],[15,3,15,7],[16,1,16,7]]}
[]
[null,{"$f":"B9","v":"2018-02-11"}]
[]
[null,{"$f":"ПочатокТижня","v":"НЕДІЛЯ"},{"$f":"UPPER(TEXT(C5,\"dddd\"))","v":"ПОНЕДІЛОК"},"ВІВТОРОК","СЕРЕДА","ЧЕТВЕР","П'ЯТНИЦЯ","СУБОТА"]
[null,{"$f":"Дні+DATE(РікКал,2,1)-WEEKDAY(DATE(РікКал,2,1),(ПочатокТижня=\"Понеділок\")+1)+1","v":"2018-01-28"},"2018-01-29","2018-01-30","2018-01-31","2018-02-01","2018-02-02","2018-02-03"]
[null,{"$f":"IFERROR(IF(ВідображатиСвяткові,IF(INDEX(тблСвята[],MATCH(DATE(РікКал-(DAY(B5)>15)+(ROW()>6),MONTH(B5),DAY(B5)),IF(ВідображатиВихідні,тблСвята[ПЕРЕНЕСЕНО],тблСвята[ДЕНЬ]),0),6),INDEX(тблСвята[],MATCH(DATE(РікКал-(DAY(B5)>15)+(ROW()>6),MONTH(B5),DAY(B5)),IF(ВідображатиВихідні,тблСвята[ПЕРЕНЕСЕНО],тблСвята[ДЕНЬ]),0),2),\"\"),\"\"),\"\")","v":""},{"$f":"IFERROR(IF(ВідображатиСвяткові,IF(INDEX(тблСвята[],MATCH(DATE(РікКал-(DAY(C5)>15)+(ROW()>6),MONTH(C5),DAY(C5)),IF(ВідображатиВихідні,тблСвята[ПЕРЕНЕСЕНО],тблСвята[ДЕНЬ]),0),6),INDEX(тблСвята[],MATCH(DATE(РікКал-(DAY(C5)>15)+(ROW()>6),MONTH(C5),DAY(C5)),IF(ВідображатиВихідні,тблСвята[ПЕРЕНЕСЕНО],тблСвята[ДЕНЬ]),0),2),\"\"),\"\"),\"\")","v":""},{"$f":"IFERROR(IF(ВідображатиСвяткові,IF(INDEX(тблСвята[],MATCH(DATE(РікКал-(DAY(D5)>15)+(ROW()>6),MONTH(D5),DAY(D5)),IF(ВідображатиВихідні,тблСвята[ПЕРЕНЕСЕНО],тблСвята[ДЕНЬ]),0),6),INDEX(тблСвята[],MATCH(DATE(РікКал-(DAY(D5)>15)+(ROW()>6),MONTH(D5),DAY(D5)),IF(ВідображатиВихідні,тблСвята[ПЕРЕНЕСЕНО],тблСвята[ДЕНЬ]),0),2),\"\"),\"\"),\"\")","v":""},{"$f":"IFERROR(IF(ВідображатиСвяткові,IF(INDEX(тблСвята[],MATCH(DATE(РікКал-(DAY(E5)>15)+(ROW()>6),MONTH(E5),DAY(E5)),IF(ВідображатиВихідні,тблСвята[ПЕРЕНЕСЕНО],тблСвята[ДЕНЬ]),0),6),INDEX(тблСвята[],MATCH(DATE(РікКал-(DAY(E5)>15)+(ROW()>6),MONTH(E5),DAY(E5)),IF(ВідображатиВихідні,тблСвята[ПЕРЕНЕСЕНО],тблСвята[ДЕНЬ]),0),2),\"\"),\"\"),\"\")","v":""},{"$f":"IFERROR(IF(ВідображатиСвяткові,IF(INDEX(тблСвята[],MATCH(DATE(РікКал-(DAY(F5)>15)+(ROW()>6),MONTH(F5),DAY(F5)),IF(ВідображатиВихідні,тблСвята[ПЕРЕНЕСЕНО],тблСвята[ДЕНЬ]),0),6),INDEX(тблСвята[],MATCH(DATE(РікКал-(DAY(F5)>15)+(ROW()>6),MONTH(F5),DAY(F5)),IF(ВідображатиВихідні,тблСвята[ПЕРЕНЕСЕНО],тблСвята[ДЕНЬ]),0),2),\"\"),\"\"),\"\")","v":""},{"$f":"IFERROR(IF(ВідображатиСвяткові,IF(INDEX(тблСвята[],MATCH(DATE(РікКал-(DAY(G5)>15)+(ROW()>6),MONTH(G5),DAY(G5)),IF(ВідображатиВихідні,тблСвята[ПЕРЕНЕСЕНО],тблСвята[ДЕНЬ]),0),6),INDEX(тблСвята[],MATCH(DATE(РікКал-(DAY(G5)>15)+(ROW()>6),MONTH(G5),DAY(G5)),IF(ВідображатиВихідні,тблСвята[ПЕРЕНЕСЕНО],тблСвята[ДЕНЬ]),0),2),\"\"),\"\"),\"\")","v":""},{"$f":"IFERROR(IF(ВідображатиСвяткові,IF(INDEX(тблСвята[],MATCH(DATE(РікКал-(DAY(H5)>15)+(ROW()>6),MONTH(H5),DAY(H5)),IF(ВідображатиВихідні,тблСвята[ПЕРЕНЕСЕНО],тблСвята[ДЕНЬ]),0),6),INDEX(тблСвята[],MATCH(DATE(РікКал-(DAY(H5)>15)+(ROW()>6),MONTH(H5),DAY(H5)),IF(ВідображатиВихідні,тблСвята[ПЕРЕНЕСЕНО],тблСвята[ДЕНЬ]),0),2),\"\"),\"\"),\"\")","v":""}]
[null,{"$f":"Дні+DATE(РікКал,2,1)-WEEKDAY(DATE(РікКал,2,1),(ПочатокТижня=\"Понеділок\")+1)+8","v":"2018-02-04"},"2018-02-05","2018-02-06","2018-02-07","2018-02-08","2018-02-09","2018-02-10"]
[null,{"$f":"IFERROR(IF(ВідображатиСвяткові,IF(INDEX(тблСвята[],MATCH(DATE(РікКал,MONTH(B7),DAY(B7)),IF(ВідображатиВихідні,тблСвята[ПЕРЕНЕСЕНО],тблСвята[ДЕНЬ]),0),6),INDEX(тблСвята[],MATCH(DATE(РікКал,MONTH(B7),DAY(B7)),IF(ВідображатиВихідні,тблСвята[ПЕРЕНЕСЕНО],тблСвята[ДЕНЬ]),0),2),\"\"),\"\"),\"\")","v":""},{"$f":"IFERROR(IF(ВідображатиСвяткові,IF(INDEX(тблСвята[],MATCH(DATE(РікКал,MONTH(C7),DAY(C7)),IF(ВідображатиВихідні,тблСвята[ПЕРЕНЕСЕНО],тблСвята[ДЕНЬ]),0),6),INDEX(тблСвята[],MATCH(DATE(РікКал,MONTH(C7),DAY(C7)),IF(ВідображатиВихідні,тблСвята[ПЕРЕНЕСЕНО],тблСвята[ДЕНЬ]),0),2),\"\"),\"\"),\"\")","v":""},{"$f":"IFERROR(IF(ВідображатиСвяткові,IF(INDEX(тблСвята[],MATCH(DATE(РікКал,MONTH(D7),DAY(D7)),IF(ВідображатиВихідні,тблСвята[ПЕРЕНЕСЕНО],тблСвята[ДЕНЬ]),0),6),INDEX(тблСвята[],MATCH(DATE(РікКал,MONTH(D7),DAY(D7)),IF(ВідображатиВихідні,тблСвята[ПЕРЕНЕСЕНО],тблСвята[ДЕНЬ]),0),2),\"\"),\"\"),\"\")","v":""},{"$f":"IFERROR(IF(ВідображатиСвяткові,IF(INDEX(тблСвята[],MATCH(DATE(РікКал,MONTH(E7),DAY(E7)),IF(ВідображатиВихідні,тблСвята[ПЕРЕНЕСЕНО],тблСвята[ДЕНЬ]),0),6),INDEX(тблСвята[],MATCH(DATE(РікКал,MONTH(E7),DAY(E7)),IF(ВідображатиВихідні,тблСвята[ПЕРЕНЕСЕНО],тблСвята[ДЕНЬ]),0),2),\"\"),\"\"),\"\")","v":""},{"$f":"IFERROR(IF(ВідображатиСвяткові,IF(INDEX(тблСвята[],MATCH(DATE(РікКал,MONTH(F7),DAY(F7)),IF(ВідображатиВихідні,тблСвята[ПЕРЕНЕСЕНО],тблСвята[ДЕНЬ]),0),6),INDEX(тблСвята[],MATCH(DATE(РікКал,MONTH(F7),DAY(F7)),IF(ВідображатиВихідні,тблСвята[ПЕРЕНЕСЕНО],тблСвята[ДЕНЬ]),0),2),\"\"),\"\"),\"\")","v":""},{"$f":"IFERROR(IF(ВідображатиСвяткові,IF(INDEX(тблСвята[],MATCH(DATE(РікКал,MONTH(G7),DAY(G7)),IF(ВідображатиВихідні,тблСвята[ПЕРЕНЕСЕНО],тблСвята[ДЕНЬ]),0),6),INDEX(тблСвята[],MATCH(DATE(РікКал,MONTH(G7),DAY(G7)),IF(ВідображатиВихідні,тблСвята[ПЕРЕНЕСЕНО],тблСвята[ДЕНЬ]),0),2),\"\"),\"\"),\"\")","v":""},{"$f":"IFERROR(IF(ВідображатиСвяткові,IF(INDEX(тблСвята[],MATCH(DATE(РікКал,MONTH(H7),DAY(H7)),IF(ВідображатиВихідні,тблСвята[ПЕРЕНЕСЕНО],тблСвята[ДЕНЬ]),0),6),INDEX(тблСвята[],MATCH(DATE(РікКал,MONTH(H7),DAY(H7)),IF(ВідображатиВихідні,тблСвята[ПЕРЕНЕСЕНО],тблСвята[ДЕНЬ]),0),2),\"\"),\"\"),\"\")","v":""}]
[null,{"$f":"Дні+DATE(РікКал,2,1)-WEEKDAY(DATE(РікКал,2,1),(ПочатокТижня=\"Понеділок\")+1)+15","v":"2018-02-11"},"2018-02-12","2018-02-13","2018-02-14","2018-02-15","2018-02-16","2018-02-17"]
[null,{"$f":"IFERROR(IF(ВідображатиСвяткові,IF(INDEX(тблСвята[],MATCH(DATE(РікКал,MONTH(B9),DAY(B9)),IF(ВідображатиВихідні,тблСвята[ПЕРЕНЕСЕНО],тблСвята[ДЕНЬ]),0),6),INDEX(тблСвята[],MATCH(DATE(РікКал,MONTH(B9),DAY(B9)),IF(ВідображатиВихідні,тблСвята[ПЕРЕНЕСЕНО],тблСвята[ДЕНЬ]),0),2),\"\"),\"\"),\"\")","v":""},{"$f":"IFERROR(IF(ВідображатиСвяткові,IF(INDEX(тблСвята[],MATCH(DATE(РікКал,MONTH(C9),DAY(C9)),IF(ВідображатиВихідні,тблСвята[ПЕРЕНЕСЕНО],тблСвята[ДЕНЬ]),0),6),INDEX(тблСвята[],MATCH(DATE(РікКал,MONTH(C9),DAY(C9)),IF(ВідображатиВихідні,тблСвята[ПЕРЕНЕСЕНО],тблСвята[ДЕНЬ]),0),2),\"\"),\"\"),\"\")","v":""},{"$f":"IFERROR(IF(ВідображатиСвяткові,IF(INDEX(тблСвята[],MATCH(DATE(РікКал,MONTH(D9),DAY(D9)),IF(ВідображатиВихідні,тблСвята[ПЕРЕНЕСЕНО],тблСвята[ДЕНЬ]),0),6),INDEX(тблСвята[],MATCH(DATE(РікКал,MONTH(D9),DAY(D9)),IF(ВідображатиВихідні,тблСвята[ПЕРЕНЕСЕНО],тблСвята[ДЕНЬ]),0),2),\"\"),\"\"),\"\")","v":""},{"$f":"IFERROR(IF(ВідображатиСвяткові,IF(INDEX(тблСвята[],MATCH(DATE(РікКал,MONTH(E9),DAY(E9)),IF(ВідображатиВихідні,тблСвята[ПЕРЕНЕСЕНО],тблСвята[ДЕНЬ]),0),6),INDEX(тблСвята[],MATCH(DATE(РікКал,MONTH(E9),DAY(E9)),IF(ВідображатиВихідні,тблСвята[ПЕРЕНЕСЕНО],тблСвята[ДЕНЬ]),0),2),\"\"),\"\"),\"\")","v":""},{"$f":"IFERROR(IF(ВідображатиСвяткові,IF(INDEX(тблСвята[],MATCH(DATE(РікКал,MONTH(F9),DAY(F9)),IF(ВідображатиВихідні,тблСвята[ПЕРЕНЕСЕНО],тблСвята[ДЕНЬ]),0),6),INDEX(тблСвята[],MATCH(DATE(РікКал,MONTH(F9),DAY(F9)),IF(ВідображатиВихідні,тблСвята[ПЕРЕНЕСЕНО],тблСвята[ДЕНЬ]),0),2),\"\"),\"\"),\"\")","v":""},{"$f":"IFERROR(IF(ВідображатиСвяткові,IF(INDEX(тблСвята[],MATCH(DATE(РікКал,MONTH(G9),DAY(G9)),IF(ВідображатиВихідні,тблСвята[ПЕРЕНЕСЕНО],тблСвята[ДЕНЬ]),0),6),INDEX(тблСвята[],MATCH(DATE(РікКал,MONTH(G9),DAY(G9)),IF(ВідображатиВихідні,тблСвята[ПЕРЕНЕСЕНО],тблСвята[ДЕНЬ]),0),2),\"\"),\"\"),\"\")","v":""},{"$f":"IFERROR(IF(ВідображатиСвяткові,IF(INDEX(тблСвята[],MATCH(DATE(РікКал,MONTH(H9),DAY(H9)),IF(ВідображатиВихідні,тблСвята[ПЕРЕНЕСЕНО],тблСвята[ДЕНЬ]),0),6),INDEX(тблСвята[],MATCH(DATE(РікКал,MONTH(H9),DAY(H9)),IF(ВідображатиВихідні,тблСвята[ПЕРЕНЕСЕНО],тблСвята[ДЕНЬ]),0),2),\"\"),\"\"),\"\")","v":""}]
[null,{"$f":"Дні+DATE(РікКал,2,1)-WEEKDAY(DATE(РікКал,2,1),(ПочатокТижня=\"Понеділок\")+1)+22","v":"2018-02-18"},"2018-02-19","2018-02-20","2018-02-21","2018-02-22","2018-02-23","2018-02-24"]
[null,{"$f":"IFERROR(IF(ВідображатиСвяткові,IF(INDEX(тблСвята[],MATCH(DATE(РікКал,MONTH(B11),DAY(B11)),IF(ВідображатиВихідні,тблСвята[ПЕРЕНЕСЕНО],тблСвята[ДЕНЬ]),0),6),INDEX(тблСвята[],MATCH(DATE(РікКал,MONTH(B11),DAY(B11)),IF(ВідображатиВихідні,тблСвята[ПЕРЕНЕСЕНО],тблСвята[ДЕНЬ]),0),2),\"\"),\"\"),\"\")","v":""},{"$f":"IFERROR(IF(ВідображатиСвяткові,IF(INDEX(тблСвята[],MATCH(DATE(РікКал,MONTH(C11),DAY(C11)),IF(ВідображатиВихідні,тблСвята[ПЕРЕНЕСЕНО],тблСвята[ДЕНЬ]),0),6),INDEX(тблСвята[],MATCH(DATE(РікКал,MONTH(C11),DAY(C11)),IF(ВідображатиВихідні,тблСвята[ПЕРЕНЕСЕНО],тблСвята[ДЕНЬ]),0),2),\"\"),\"\"),\"\")","v":"Великдень"},{"$f":"IFERROR(IF(ВідображатиСвяткові,IF(INDEX(тблСвята[],MATCH(DATE(РікКал,MONTH(D11),DAY(D11)),IF(ВідображатиВихідні,тблСвята[ПЕРЕНЕСЕНО],тблСвята[ДЕНЬ]),0),6),INDEX(тблСвята[],MATCH(DATE(РікКал,MONTH(D11),DAY(D11)),IF(ВідображатиВихідні,тблСвята[ПЕРЕНЕСЕНО],тблСвята[ДЕНЬ]),0),2),\"\"),\"\"),\"\")","v":""},{"$f":"IFERROR(IF(ВідображатиСвяткові,IF(INDEX(тблСвята[],MATCH(DATE(РікКал,MONTH(E11),DAY(E11)),IF(ВідображатиВихідні,тблСвята[ПЕРЕНЕСЕНО],тблСвята[ДЕНЬ]),0),6),INDEX(тблСвята[],MATCH(DATE(РікКал,MONTH(E11),DAY(E11)),IF(ВідображатиВихідні,тблСвята[ПЕРЕНЕСЕНО],тблСвята[ДЕНЬ]),0),2),\"\"),\"\"),\"\")","v":""},{"$f":"IFERROR(IF(ВідображатиСвяткові,IF(INDEX(тблСвята[],MATCH(DATE(РікКал,MONTH(F11),DAY(F11)),IF(ВідображатиВихідні,тблСвята[ПЕРЕНЕСЕНО],тблСвята[ДЕНЬ]),0),6),INDEX(тблСвята[],MATCH(DATE(РікКал,MONTH(F11),DAY(F11)),IF(ВідображатиВихідні,тблСвята[ПЕРЕНЕСЕНО],тблСвята[ДЕНЬ]),0),2),\"\"),\"\"),\"\")","v":""},{"$f":"IFERROR(IF(ВідображатиСвяткові,IF(INDEX(тблСвята[],MATCH(DATE(РікКал,MONTH(G11),DAY(G11)),IF(ВідображатиВихідні,тблСвята[ПЕРЕНЕСЕНО],тблСвята[ДЕНЬ]),0),6),INDEX(тблСвята[],MATCH(DATE(РікКал,MONTH(G11),DAY(G11)),IF(ВідображатиВихідні,тблСвята[ПЕРЕНЕСЕНО],тблСвята[ДЕНЬ]),0),2),\"\"),\"\"),\"\")","v":""},{"$f":"IFERROR(IF(ВідображатиСвяткові,IF(INDEX(тблСвята[],MATCH(DATE(РікКал,MONTH(H11),DAY(H11)),IF(ВідображатиВихідні,тблСвята[ПЕРЕНЕСЕНО],тблСвята[ДЕНЬ]),0),6),INDEX(тблСвята[],MATCH(DATE(РікКал,MONTH(H11),DAY(H11)),IF(ВідображатиВихідні,тблСвята[ПЕРЕНЕСЕНО],тблСвята[ДЕНЬ]),0),2),\"\"),\"\"),\"\")","v":""}]
[null,{"$f":"Дні+DATE(РікКал,2,1)-WEEKDAY(DATE(РікКал,2,1),(ПочатокТижня=\"Понеділок\")+1)+29","v":"2018-02-25"},"2018-02-26","2018-02-27","2018-02-28","2018-03-01","2018-03-02","2018-03-03"]
[null,{"$f":"IFERROR(IF(ВідображатиСвяткові,IF(INDEX(тблСвята[],MATCH(DATE(РікКал,MONTH(B13),DAY(B13)),IF(ВідображатиВихідні,тблСвята[ПЕРЕНЕСЕНО],тблСвята[ДЕНЬ]),0),6),INDEX(тблСвята[],MATCH(DATE(РікКал,MONTH(B13),DAY(B13)),IF(ВідображатиВихідні,тблСвята[ПЕРЕНЕСЕНО],тблСвята[ДЕНЬ]),0),2),\"\"),\"\"),\"\")","v":""},{"$f":"IFERROR(IF(ВідображатиСвяткові,IF(INDEX(тблСвята[],MATCH(DATE(РікКал,MONTH(C13),DAY(C13)),IF(ВідображатиВихідні,тблСвята[ПЕРЕНЕСЕНО],тблСвята[ДЕНЬ]),0),6),INDEX(тблСвята[],MATCH(DATE(РікКал,MONTH(C13),DAY(C13)),IF(ВідображатиВихідні,тблСвята[ПЕРЕНЕСЕНО],тблСвята[ДЕНЬ]),0),2),\"\"),\"\"),\"\")","v":""},{"$f":"IFERROR(IF(ВідображатиСвяткові,IF(INDEX(тблСвята[],MATCH(DATE(РікКал,MONTH(D13),DAY(D13)),IF(ВідображатиВихідні,тблСвята[ПЕРЕНЕСЕНО],тблСвята[ДЕНЬ]),0),6),INDEX(тблСвята[],MATCH(DATE(РікКал,MONTH(D13),DAY(D13)),IF(ВідображатиВихідні,тблСвята[ПЕРЕНЕСЕНО],тблСвята[ДЕНЬ]),0),2),\"\"),\"\"),\"\")","v":""},{"$f":"IFERROR(IF(ВідображатиСвяткові,IF(INDEX(тблСвята[],MATCH(DATE(РікКал,MONTH(E13),DAY(E13)),IF(ВідображатиВихідні,тблСвята[ПЕРЕНЕСЕНО],тблСвята[ДЕНЬ]),0),6),INDEX(тблСвята[],MATCH(DATE(РікКал,MONTH(E13),DAY(E13)),IF(ВідображатиВихідні,тблСвята[ПЕРЕНЕСЕНО],тблСвята[ДЕНЬ]),0),2),\"\"),\"\"),\"\")","v":""},{"$f":"IFERROR(IF(ВідображатиСвяткові,IF(INDEX(тблСвята[],MATCH(DATE(РікКал,MONTH(F13),DAY(F13)),IF(ВідображатиВихідні,тблСвята[ПЕРЕНЕСЕНО],тблСвята[ДЕНЬ]),0),6),INDEX(тблСвята[],MATCH(DATE(РікКал,MONTH(F13),DAY(F13)),IF(ВідображатиВихідні,тблСвята[ПЕРЕНЕСЕНО],тблСвята[ДЕНЬ]),0),2),\"\"),\"\"),\"\")","v":""},{"$f":"IFERROR(IF(ВідображатиСвяткові,IF(INDEX(тблСвята[],MATCH(DATE(РікКал,MONTH(G13),DAY(G13)),IF(ВідображатиВихідні,тблСвята[ПЕРЕНЕСЕНО],тблСвята[ДЕНЬ]),0),6),INDEX(тблСвята[],MATCH(DATE(РікКал,MONTH(G13),DAY(G13)),IF(ВідображатиВихідні,тблСвята[ПЕРЕНЕСЕНО],тблСвята[ДЕНЬ]),0),2),\"\"),\"\"),\"\")","v":""},{"$f":"IFERROR(IF(ВідображатиСвяткові,IF(INDEX(тблСвята[],MATCH(DATE(РікКал,MONTH(H13),DAY(H13)),IF(ВідображатиВихідні,тблСвята[ПЕРЕНЕСЕНО],тблСвята[ДЕНЬ]),0),6),INDEX(тблСвята[],MATCH(DATE(РікКал,MONTH(H13),DAY(H13)),IF(ВідображатиВихідні,тблСвята[ПЕРЕНЕСЕНО],тблСвята[ДЕНЬ]),0),2),\"\"),\"\"),\"\")","v":""}]
[null,{"$f":"Дні+DATE(РікКал,2,1)-WEEKDAY(DATE(РікКал,2,1),(ПочатокТижня=\"Понеділок\")+1)+36","v":"2018-03-04"},"2018-03-05","НОТАТКИ"]
[null,{"$f":"IFERROR(IF(ВідображатиСвяткові,IF(INDEX(тблСвята[],MATCH(DATE(РікКал,MONTH(B15),DAY(B15)),IF(ВідображатиВихідні,тблСвята[ПЕРЕНЕСЕНО],тблСвята[ДЕНЬ]),0),6),INDEX(тблСвята[],MATCH(DATE(РікКал,MONTH(B15),DAY(B15)),IF(ВідображатиВихідні,тблСвята[ПЕРЕНЕСЕНО],тблСвята[ДЕНЬ]),0),2),\"\"),\"\"),\"\")","v":""},{"$f":"IFERROR(IF(ВідображатиСвяткові,IF(INDEX(тблСвята[],MATCH(DATE(РікКал,MONTH(C15),DAY(C15)),IF(ВідображатиВихідні,тблСвята[ПЕРЕНЕСЕНО],тблСвята[ДЕНЬ]),0),6),INDEX(тблСвята[],MATCH(DATE(РікКал,MONTH(C15),DAY(C15)),IF(ВідображатиВихідні,тблСвята[ПЕРЕНЕСЕНО],тблСвята[ДЕНЬ]),0),2),\"\"),\"\"),\"\")","v":""}]

{"sheet":"Березень","index":3,"n_rows":16,"n_cols":8,"rows_kept":16,"merged":[[1,1,1,3],[14,3,14,7],[15,3,15,7],[16,1,16,7]]}
[]
[null,{"$f":"B9","v":"2018-03-11"}]
[]
[null,{"$f":"ПочатокТижня","v":"НЕДІЛЯ"},{"$f":"UPPER(TEXT(C5,\"dddd\"))","v":"ПОНЕДІЛОК"},"ВІВТОРОК","СЕРЕДА","ЧЕТВЕР","П'ЯТНИЦЯ","СУБОТА"]
[null,{"$f":"Дні+DATE(РікКал,3,1)-WEEKDAY(DATE(РікКал,3,1),(ПочатокТижня=\"Понеділок\")+1)+1","v":"2018-02-25"},"2018-02-26","2018-02-27","2018-02-28","2018-03-01","2018-03-02","2018-03-03"]
[null,{"$f":"IFERROR(IF(ВідображатиСвяткові,IF(INDEX(тблСвята[],MATCH(DATE(РікКал-(DAY(B5)>15)+(ROW()>6),MONTH(B5),DAY(B5)),IF(ВідображатиВихідні,тблСвята[ПЕРЕНЕСЕНО],тблСвята[ДЕНЬ]),0),6),INDEX(тблСвята[],MATCH(DATE(РікКал-(DAY(B5)>15)+(ROW()>6),MONTH(B5),DAY(B5)),IF(ВідображатиВихідні,тблСвята[ПЕРЕНЕСЕНО],тблСвята[ДЕНЬ]),0),2),\"\"),\"\"),\"\")","v":""},{"$f":"IFERROR(IF(ВідображатиСвяткові,IF(INDEX(тблСвята[],MATCH(DATE(РікКал-(DAY(C5)>15)+(ROW()>6),MONTH(C5),DAY(C5)),IF(ВідображатиВихідні,тблСвята[ПЕРЕНЕСЕНО],тблСвята[ДЕНЬ]),0),6),INDEX(тблСвята[],MATCH(DATE(РікКал-(DAY(C5)>15)+(ROW()>6),MONTH(C5),DAY(C5)),IF(ВідображатиВихідні,тблСвята[ПЕРЕНЕСЕНО],тблСвята[ДЕНЬ]),0),2),\"\"),\"\"),\"\")","v":""},{"$f":"IFERROR(IF(ВідображатиСвяткові,IF(INDEX(тблСвята[],MATCH(DATE(РікКал-(DAY(D5)>15)+(ROW()>6),MONTH(D5),DAY(D5)),IF(ВідображатиВихідні,тблСвята[ПЕРЕНЕСЕНО],тблСвята[ДЕНЬ]),0),6),INDEX(тблСвята[],MATCH(DATE(РікКал-(DAY(D5)>15)+(ROW()>6),MONTH(D5),DAY(D5)),IF(ВідображатиВихідні,тблСвята[ПЕРЕНЕСЕНО],тблСвята[ДЕНЬ]),0),2),\"\"),\"\"),\"\")","v":""},{"$f":"IFERROR(IF(ВідображатиСвяткові,IF(INDEX(тблСвята[],MATCH(DATE(РікКал-(DAY(E5)>15)+(ROW()>6),MONTH(E5),DAY(E5)),IF(ВідображатиВихідні,тблСвята[ПЕРЕНЕСЕНО],тблСвята[ДЕНЬ]),0),6),INDEX(тблСвята[],MATCH(DATE(РікКал-(DAY(E5)>15)+(ROW()>6),MONTH(E5),DAY(E5)),IF(ВідображатиВихідні,тблСвята[ПЕРЕНЕСЕНО],тблСвята[ДЕНЬ]),0),2),\"\"),\"\"),\"\")","v":""},{"$f":"IFERROR(IF(ВідображатиСвяткові,IF(INDEX(тблСвята[],MATCH(DATE(РікКал-(DAY(F5)>15)+(ROW()>6),MONTH(F5),DAY(F5)),IF(ВідображатиВихідні,тблСвята[ПЕРЕНЕСЕНО],тблСвята[ДЕНЬ]),0),6),INDEX(тблСвята[],MATCH(DATE(РікКал-(DAY(F5)>15)+(ROW()>6),MONTH(F5),DAY(F5)),IF(ВідображатиВихідні,тблСвята[ПЕРЕНЕСЕНО],тблСвята[ДЕНЬ]),0),2),\"\"),\"\"),\"\")","v":""},{"$f":"IFERROR(IF(ВідображатиСвяткові,IF(INDEX(тблСвята[],MATCH(DATE(РікКал-(DAY(G5)>15)+(ROW()>6),MONTH(G5),DAY(G5)),IF(ВідображатиВихідні,тблСвята[ПЕРЕНЕСЕНО],тблСвята[ДЕНЬ]),0),6),INDEX(тблСвята[],MATCH(DATE(РікКал-(DAY(G5)>15)+(ROW()>6),MONTH(G5),DAY(G5)),IF(ВідображатиВихідні,тблСвята[ПЕРЕНЕСЕНО],тблСвята[ДЕНЬ]),0),2),\"\"),\"\"),\"\")","v":""},{"$f":"IFERROR(IF(ВідображатиСвяткові,IF(INDEX(тблСвята[],MATCH(DATE(РікКал-(DAY(H5)>15)+(ROW()>6),MONTH(H5),DAY(H5)),IF(ВідображатиВихідні,тблСвята[ПЕРЕНЕСЕНО],тблСвята[ДЕНЬ]),0),6),INDEX(тблСвята[],MATCH(DATE(РікКал-(DAY(H5)>15)+(ROW()>6),MONTH(H5),DAY(H5)),IF(ВідображатиВихідні,тблСвята[ПЕРЕНЕСЕНО],тблСвята[ДЕНЬ]),0),2),\"\"),\"\"),\"\")","v":""}]
[null,{"$f":"Дні+DATE(РікКал,3,1)-WEEKDAY(DATE(РікКал,3,1),(ПочатокТижня=\"Понеділок\")+1)+8","v":"2018-03-04"},"2018-03-05","2018-03-06","2018-03-07","2018-03-08","2018-03-09","2018-03-10"]
[null,{"$f":"IFERROR(IF(ВідображатиСвяткові,IF(INDEX(тблСвята[],MATCH(DATE(РікКал,MONTH(B7),DAY(B7)),IF(ВідображатиВихідні,тблСвята[ПЕРЕНЕСЕНО],тблСвята[ДЕНЬ]),0),6),INDEX(тблСвята[],MATCH(DATE(РікКал,MONTH(B7),DAY(B7)),IF(ВідображатиВихідні,тблСвята[ПЕРЕНЕСЕНО],тблСвята[ДЕНЬ]),0),2),\"\"),\"\"),\"\")","v":""},{"$f":"IFERROR(IF(ВідображатиСвяткові,IF(INDEX(тблСвята[],MATCH(DATE(РікКал,MONTH(C7),DAY(C7)),IF(ВідображатиВихідні,тблСвята[ПЕРЕНЕСЕНО],тблСвята[ДЕНЬ]),0),6),INDEX(тблСвята[],MATCH(DATE(РікКал,MONTH(C7),DAY(C7)),IF(ВідображатиВихідні,тблСвята[ПЕРЕНЕСЕНО],тблСвята[ДЕНЬ]),0),2),\"\"),\"\"),\"\")","v":""},{"$f":"IFERROR(IF(ВідображатиСвяткові,IF(INDEX(тблСвята[],MATCH(DATE(РікКал,MONTH(D7),DAY(D7)),IF(ВідображатиВихідні,тблСвята[ПЕРЕНЕСЕНО],тблСвята[ДЕНЬ]),0),6),INDEX(тблСвята[],MATCH(DATE(РікКал,MONTH(D7),DAY(D7)),IF(ВідображатиВихідні,тблСвята[ПЕРЕНЕСЕНО],тблСвята[ДЕНЬ]),0),2),\"\"),\"\"),\"\")","v":""},{"$f":"IFERROR(IF(ВідображатиСвяткові,IF(INDEX(тблСвята[],MATCH(DATE(РікКал,MONTH(E7),DAY(E7)),IF(ВідображатиВихідні,тблСвята[ПЕРЕНЕСЕНО],тблСвята[ДЕНЬ]),0),6),INDEX(тблСвята[],MATCH(DATE(РікКал,MONTH(E7),DAY(E7)),IF(ВідображатиВихідні,тблСвята[ПЕРЕНЕСЕНО],тблСвята[ДЕНЬ]),0),2),\"\"),\"\"),\"\")","v":""},{"$f":"IFERROR(IF(ВідображатиСвяткові,IF(INDEX(тблСвята[],MATCH(DATE(РікКал,MONTH(F7),DAY(F7)),IF(ВідображатиВихідні,тблСвята[ПЕРЕНЕСЕНО],тблСвята[ДЕНЬ]),0),6),INDEX(тблСвята[],MATCH(DATE(РікКал,MONTH(F7),DAY(F7)),IF(ВідображатиВихідні,тблСвята[ПЕРЕНЕСЕНО],тблСвята[ДЕНЬ]),0),2),\"\"),\"\"),\"\")","v":""},{"$f":"IFERROR(IF(ВідображатиСвяткові,IF(INDEX(тблСвята[],MATCH(DATE(РікКал,MONTH(G7),DAY(G7)),IF(ВідображатиВихідні,тблСвята[ПЕРЕНЕСЕНО],тблСвята[ДЕНЬ]),0),6),INDEX(тблСвята[],MATCH(DATE(РікКал,MONTH(G7),DAY(G7)),IF(ВідображатиВихідні,тблСвята[ПЕРЕНЕСЕНО],тблСвята[ДЕНЬ]),0),2),\"\"),\"\"),\"\")","v":""},{"$f":"IFERROR(IF(ВідображатиСвяткові,IF(INDEX(тблСвята[],MATCH(DATE(РікКал,MONTH(H7),DAY(H7)),IF(ВідображатиВихідні,тблСвята[ПЕРЕНЕСЕНО],тблСвята[ДЕНЬ]),0),6),INDEX(тблСвята[],MATCH(DATE(РікКал,MONTH(H7),DAY(H7)),IF(ВідображатиВихідні,тблСвята[ПЕРЕНЕСЕНО],тблСвята[ДЕНЬ]),0),2),\"\"),\"\"),\"\")","v":""}]
[null,{"$f":"Дні+DATE(РікКал,3,1)-WEEKDAY(DATE(РікКал,3,1),(ПочатокТижня=\"Понеділок\")+1)+15","v":"2018-03-11"},"2018-03-12","2018-03-13","2018-03-14","2018-03-15","2018-03-16","2018-03-17"]
[null,{"$f":"IFERROR(IF(ВідображатиСвяткові,IF(INDEX(тблСвята[],MATCH(DATE(РікКал,MONTH(B9),DAY(B9)),IF(ВідображатиВихідні,тблСвята[ПЕРЕНЕСЕНО],тблСвята[ДЕНЬ]),0),6),INDEX(тблСвята[],MATCH(DATE(РікКал,MONTH(B9),DAY(B9)),IF(ВідображатиВихідні,тблСвята[ПЕРЕНЕСЕНО],тблСвята[ДЕНЬ]),0),2),\"\"),\"\"),\"\")","v":""},{"$f":"IFERROR(IF(ВідображатиСвяткові,IF(INDEX(тблСвята[],MATCH(DATE(РікКал,MONTH(C9),DAY(C9)),IF(ВідображатиВихідні,тблСвята[ПЕРЕНЕСЕНО],тблСвята[ДЕНЬ]),0),6),INDEX(тблСвята[],MATCH(DATE(РікКал,MONTH(C9),DAY(C9)),IF(ВідображатиВихідні,тблСвята[ПЕРЕНЕСЕНО],тблСвята[ДЕНЬ]),0),2),\"\"),\"\"),\"\")","v":""},{"$f":"IFERROR(IF(ВідображатиСвяткові,IF(INDEX(тблСвята[],MATCH(DATE(РікКал,MONTH(D9),DAY(D9)),IF(ВідображатиВихідні,тблСвята[ПЕРЕНЕСЕНО],тблСвята[ДЕНЬ]),0),6),INDEX(тблСвята[],MATCH(DATE(РікКал,MONTH(D9),DAY(D9)),IF(ВідображатиВихідні,тблСвята[ПЕРЕНЕСЕНО],тблСвята[ДЕНЬ]),0),2),\"\"),\"\"),\"\")","v":""},{"$f":"IFERROR(IF(ВідображатиСвяткові,IF(INDEX(тблСвята[],MATCH(DATE(РікКал,MONTH(E9),DAY(E9)),IF(ВідображатиВихідні,тблСвята[ПЕРЕНЕСЕНО],тблСвята[ДЕНЬ]),0),6),INDEX(тблСвята[],MATCH(DATE(РікКал,MONTH(E9),DAY(E9)),IF(ВідображатиВихідні,тблСвята[ПЕРЕНЕСЕНО],тблСвята[ДЕНЬ]),0),2),\"\"),\"\"),\"\")","v":""},{"$f":"IFERROR(IF(ВідображатиСвяткові,IF(INDEX(тблСвята[],MATCH(DATE(РікКал,MONTH(F9),DAY(F9)),IF(ВідображатиВихідні,тблСвята[ПЕРЕНЕСЕНО],тблСвята[ДЕНЬ]),0),6),INDEX(тблСвята[],MATCH(DATE(РікКал,MONTH(F9),DAY(F9)),IF(ВідображатиВихідні,тблСвята[ПЕРЕНЕСЕНО],тблСвята[ДЕНЬ]),0),2),\"\"),\"\"),\"\")","v":""},{"$f":"IFERROR(IF(ВідображатиСвяткові,IF(INDEX(тблСвята[],MATCH(DATE(РікКал,MONTH(G9),DAY(G9)),IF(ВідображатиВихідні,тблСвята[ПЕРЕНЕСЕНО],тблСвята[ДЕНЬ]),0),6),INDEX(тблСвята[],MATCH(DATE(РікКал,MONTH(G9),DAY(G9)),IF(ВідображатиВихідні,тблСвята[ПЕРЕНЕСЕНО],тблСвята[ДЕНЬ]),0),2),\"\"),\"\"),\"\")","v":""},{"$f":"IFERROR(IF(ВідображатиСвяткові,IF(INDEX(тблСвята[],MATCH(DATE(РікКал,MONTH(H9),DAY(H9)),IF(ВідображатиВихідні,тблСвята[ПЕРЕНЕСЕНО],тблСвята[ДЕНЬ]),0),6),INDEX(тблСвята[],MATCH(DATE(РікКал,MONTH(H9),DAY(H9)),IF(ВідображатиВихідні,тблСвята[ПЕРЕНЕСЕНО],тблСвята[ДЕНЬ]),0),2),\"\"),\"\"),\"\")","v":""}]
[null,{"$f":"Дні+DATE(РікКал,3,1)-WEEKDAY(DATE(РікКал,3,1),(ПочатокТижня=\"Понеділок\")+1)+22","v":"2018-03-18"},"2018-03-19","2018-03-20","2018-03-21","2018-03-22","2018-03-23","2018-03-24"]
[null,{"$f":"IFERROR(IF(ВідображатиСвяткові,IF(INDEX(тблСвята[],MATCH(DATE(РікКал,MONTH(B11),DAY(B11)),IF(ВідображатиВихідні,тблСвята[ПЕРЕНЕСЕНО],тблСвята[ДЕНЬ]),0),6),INDEX(тблСвята[],MATCH(DATE(РікКал,MONTH(B11),DAY(B11)),IF(ВідображатиВихідні,тблСвята[ПЕРЕНЕСЕНО],тблСвята[ДЕНЬ]),0),2),\"\"),\"\"),\"\")","v":""},{"$f":"IFERROR(IF(ВідображатиСвяткові,IF(INDEX(тблСвята[],MATCH(DATE(РікКал,MONTH(C11),DAY(C11)),IF(ВідображатиВихідні,тблСвята[ПЕРЕНЕСЕНО],тблСвята[ДЕНЬ]),0),6),INDEX(тблСвята[],MATCH(DATE(РікКал,MONTH(C11),DAY(C11)),IF(ВідображатиВихідні,тблСвята[ПЕРЕНЕСЕНО],тблСвята[ДЕНЬ]),0),2),\"\"),\"\"),\"\")","v":""},{"$f":"IFERROR(IF(ВідображатиСвяткові,IF(INDEX(тблСвята[],MATCH(DATE(РікКал,MONTH(D11),DAY(D11)),IF(ВідображатиВихідні,тблСвята[ПЕРЕНЕСЕНО],тблСвята[ДЕНЬ]),0),6),INDEX(тблСвята[],MATCH(DATE(РікКал,MONTH(D11),DAY(D11)),IF(ВідображатиВихідні,тблСвята[ПЕРЕНЕСЕНО],тблСвята[ДЕНЬ]),0),2),\"\"),\"\"),\"\")","v":""},{"$f":"IFERROR(IF(ВідображатиСвяткові,IF(INDEX(тблСвята[],MATCH(DATE(РікКал,MONTH(E11),DAY(E11)),IF(ВідображатиВихідні,тблСвята[ПЕРЕНЕСЕНО],тблСвята[ДЕНЬ]),0),6),INDEX(тблСвята[],MATCH(DATE(РікКал,MONTH(E11),DAY(E11)),IF(ВідображатиВихідні,тблСвята[ПЕРЕНЕСЕНО],тблСвята[ДЕНЬ]),0),2),\"\"),\"\"),\"\")","v":""},{"$f":"IFERROR(IF(ВідображатиСвяткові,IF(INDEX(тблСвята[],MATCH(DATE(РікКал,MONTH(F11),DAY(F11)),IF(ВідображатиВихідні,тблСвята[ПЕРЕНЕСЕНО],тблСвята[ДЕНЬ]),0),6),INDEX(тблСвята[],MATCH(DATE(РікКал,MONTH(F11),DAY(F11)),IF(ВідображатиВихідні,тблСвята[ПЕРЕНЕСЕНО],тблСвята[ДЕНЬ]),0),2),\"\"),\"\"),\"\")","v":""},{"$f":"IFERROR(IF(ВідображатиСвяткові,IF(INDEX(тблСвята[],MATCH(DATE(РікКал,MONTH(G11),DAY(G11)),IF(ВідображатиВихідні,тблСвята[ПЕРЕНЕСЕНО],тблСвята[ДЕНЬ]),0),6),INDEX(тблСвята[],MATCH(DATE(РікКал,MONTH(G11),DAY(G11)),IF(ВідображатиВихідні,тблСвята[ПЕРЕНЕСЕНО],тблСвята[ДЕНЬ]),0),2),\"\"),\"\"),\"\")","v":""},{"$f":"IFERROR(IF(ВідображатиСвяткові,IF(INDEX(тблСвята[],MATCH(DATE(РікКал,MONTH(H11),DAY(H11)),IF(ВідображатиВихідні,тблСвята[ПЕРЕНЕСЕНО],тблСвята[ДЕНЬ]),0),6),INDEX(тблСвята[],MATCH(DATE(РікКал,MONTH(H11),DAY(H11)),IF(ВідображатиВихідні,тблСвята[ПЕРЕНЕСЕНО],тблСвята[ДЕНЬ]),0),2),\"\"),\"\"),\"\")","v":""}]
[null,{"$f":"Дні+DATE(РікКал,3,1)-WEEKDAY(DATE(РікКал,3,1),(ПочатокТижня=\"Понеділок\")+1)+29","v":"2018-03-25"},"2018-03-26","2018-03-27","2018-03-28","2018-03-29","2018-03-30","2018-03-31"]
[null,{"$f":"IFERROR(IF(ВідображатиСвяткові,IF(INDEX(тблСвята[],MATCH(DATE(РікКал,MONTH(B13),DAY(B13)),IF(ВідображатиВихідні,тблСвята[ПЕРЕНЕСЕНО],тблСвята[ДЕНЬ]),0),6),INDEX(тблСвята[],MATCH(DATE(РікКал,MONTH(B13),DAY(B13)),IF(ВідображатиВихідні,тблСвята[ПЕРЕНЕСЕНО],тблСвята[ДЕНЬ]),0),2),\"\"),\"\"),\"\")","v":""},{"$f":"IFERROR(IF(ВідображатиСвяткові,IF(INDEX(тблСвята[],MATCH(DATE(РікКал,MONTH(C13),DAY(C13)),IF(ВідображатиВихідні,тблСвята[ПЕРЕНЕСЕНО],тблСвята[ДЕНЬ]),0),6),INDEX(тблСвята[],MATCH(DATE(РікКал,MONTH(C13),DAY(C13)),IF(ВідображатиВихідні,тблСвята[ПЕРЕНЕСЕНО],тблСвята[ДЕНЬ]),0),2),\"\"),\"\"),\"\")","v":""},{"$f":"IFERROR(IF(ВідображатиСвяткові,IF(INDEX(тблСвята[],MATCH(DATE(РікКал,MONTH(D13),DAY(D13)),IF(ВідображатиВихідні,тблСвята[ПЕРЕНЕСЕНО],тблСвята[ДЕНЬ]),0),6),INDEX(тблСвята[],MATCH(DATE(РікКал,MONTH(D13),DAY(D13)),IF(ВідображатиВихідні,тблСвята[ПЕРЕНЕСЕНО],тблСвята[ДЕНЬ]),0),2),\"\"),\"\"),\"\")","v":""},{"$f":"IFERROR(IF(ВідображатиСвяткові,IF(INDEX(тблСвята[],MATCH(DATE(РікКал,MONTH(E13),DAY(E13)),IF(ВідображатиВихідні,тблСвята[ПЕРЕНЕСЕНО],тблСвята[ДЕНЬ]),0),6),INDEX(тблСвята[],MATCH(DATE(РікКал,MONTH(E13),DAY(E13)),IF(ВідображатиВихідні,тблСвята[ПЕРЕНЕСЕНО],тблСвята[ДЕНЬ]),0),2),\"\"),\"\"),\"\")","v":""},{"$f":"IFERROR(IF(ВідображатиСвяткові,IF(INDEX(тблСвята[],MATCH(DATE(РікКал,MONTH(F13),DAY(F13)),IF(ВідображатиВихідні,тблСвята[ПЕРЕНЕСЕНО],тблСвята[ДЕНЬ]),0),6),INDEX(тблСвята[],MATCH(DATE(РікКал,MONTH(F13),DAY(F13)),IF(ВідображатиВихідні,тблСвята[ПЕРЕНЕСЕНО],тблСвята[ДЕНЬ]),0),2),\"\"),\"\"),\"\")","v":""},{"$f":"IFERROR(IF(ВідображатиСвяткові,IF(INDEX(тблСвята[],MATCH(DATE(РікКал,MONTH(G13),DAY(G13)),IF(ВідображатиВихідні,тблСвята[ПЕРЕНЕСЕНО],тблСвята[ДЕНЬ]),0),6),INDEX(тблСвята[],MATCH(DATE(РікКал,MONTH(G13),DAY(G13)),IF(ВідображатиВихідні,тблСвята[ПЕРЕНЕСЕНО],тблСвята[ДЕНЬ]),0),2),\"\"),\"\"),\"\")","v":""},{"$f":"IFERROR(IF(ВідображатиСвяткові,IF(INDEX(тблСвята[],MATCH(DATE(РікКал,MONTH(H13),DAY(H13)),IF(ВідображатиВихідні,тблСвята[ПЕРЕНЕСЕНО],тблСвята[ДЕНЬ]),0),6),INDEX(тблСвята[],MATCH(DATE(РікКал,MONTH(H13),DAY(H13)),IF(ВідображатиВихідні,тблСвята[ПЕРЕНЕСЕНО],тблСвята[ДЕНЬ]),0),2),\"\"),\"\"),\"\")","v":""}]
[null,{"$f":"Дні+DATE(РікКал,3,1)-WEEKDAY(DATE(РікКал,3,1),(ПочатокТижня=\"Понеділок\")+1)+36","v":"2018-04-01"},"2018-04-02","НОТАТКИ"]
[null,{"$f":"IFERROR(IF(ВідображатиСвяткові,IF(INDEX(тблСвята[],MATCH(DATE(РікКал,MONTH(B15),DAY(B15)),IF(ВідображатиВихідні,тблСвята[ПЕРЕНЕСЕНО],тблСвята[ДЕНЬ]),0),6),INDEX(тблСвята[],MATCH(DATE(РікКал,MONTH(B15),DAY(B15)),IF(ВідображатиВихідні,тблСвята[ПЕРЕНЕСЕНО],тблСвята[ДЕНЬ]),0),2),\"\"),\"\"),\"\")","v":""},{"$f":"IFERROR(IF(ВідображатиСвяткові,IF(INDEX(тблСвята[],MATCH(DATE(РікКал,MONTH(C15),DAY(C15)),IF(ВідображатиВихідні,тблСвята[ПЕРЕНЕСЕНО],тблСвята[ДЕНЬ]),0),6),INDEX(тблСвята[],MATCH(DATE(РікКал,MONTH(C15),DAY(C15)),IF(ВідображатиВихідні,тблСвята[ПЕРЕНЕСЕНО],тблСвята[ДЕНЬ]),0),2),\"\"),\"\"),\"\")","v":""}]

{"sheet":"Квітень","index":4,"n_rows":16,"n_cols":8,"rows_kept":16,"merged":[[1,1,1,3],[14,3,14,7],[15,3,15,7],[16,1,16,7]]}
[]
[null,{"$f":"B9","v":"2018-04-15"}]
[]
[null,{"$f":"ПочатокТижня","v":"НЕДІЛЯ"},{"$f":"UPPER(TEXT(C5,\"dddd\"))","v":"ПОНЕДІЛОК"},"ВІВТОРОК","СЕРЕДА","ЧЕТВЕР","П'ЯТНИЦЯ","СУБОТА"]
[null,{"$f":"Дні+DATE(РікКал,4,1)-WEEKDAY(DATE(РікКал,4,1),(ПочатокТижня=\"Понеділок\")+1)+1","v":"2018-04-01"},"2018-04-02","2018-04-03","2018-04-04","2018-04-05","2018-04-06","2018-04-07"]
[null,{"$f":"IFERROR(IF(ВідображатиСвяткові,IF(INDEX(тблСвята[],MATCH(DATE(РікКал-(DAY(B5)>15)+(ROW()>6),MONTH(B5),DAY(B5)),IF(ВідображатиВихідні,тблСвята[ПЕРЕНЕСЕНО],тблСвята[ДЕНЬ]),0),6),INDEX(тблСвята[],MATCH(DATE(РікКал-(DAY(B5)>15)+(ROW()>6),MONTH(B5),DAY(B5)),IF(ВідображатиВихідні,тблСвята[ПЕРЕНЕСЕНО],тблСвята[ДЕНЬ]),0),2),\"\"),\"\"),\"\")","v":""},{"$f":"IFERROR(IF(ВідображатиСвяткові,IF(INDEX(тблСвята[],MATCH(DATE(РікКал-(DAY(C5)>15)+(ROW()>6),MONTH(C5),DAY(C5)),IF(ВідображатиВихідні,тблСвята[ПЕРЕНЕСЕНО],тблСвята[ДЕНЬ]),0),6),INDEX(тблСвята[],MATCH(DATE(РікКал-(DAY(C5)>15)+(ROW()>6),MONTH(C5),DAY(C5)),IF(ВідображатиВихідні,тблСвята[ПЕРЕНЕСЕНО],тблСвята[ДЕНЬ]),0),2),\"\"),\"\"),\"\")","v":""},{"$f":"IFERROR(IF(ВідображатиСвяткові,IF(INDEX(тблСвята[],MATCH(DATE(РікКал-(DAY(D5)>15)+(ROW()>6),MONTH(D5),DAY(D5)),IF(ВідображатиВихідні,тблСвята[ПЕРЕНЕСЕНО],тблСвята[ДЕНЬ]),0),6),INDEX(тблСвята[],MATCH(DATE(РікКал-(DAY(D5)>15)+(ROW()>6),MONTH(D5),DAY(D5)),IF(ВідображатиВихідні,тблСвята[ПЕРЕНЕСЕНО],тблСвята[ДЕНЬ]),0),2),\"\"),\"\"),\"\")","v":""},{"$f":"IFERROR(IF(ВідображатиСвяткові,IF(INDEX(тблСвята[],MATCH(DATE(РікКал-(DAY(E5)>15)+(ROW()>6),MONTH(E5),DAY(E5)),IF(ВідображатиВихідні,тблСвята[ПЕРЕНЕСЕНО],тблСвята[ДЕНЬ]),0),6),INDEX(тблСвята[],MATCH(DATE(РікКал-(DAY(E5)>15)+(ROW()>6),MONTH(E5),DAY(E5)),IF(ВідображатиВихідні,тблСвята[ПЕРЕНЕСЕНО],тблСвята[ДЕНЬ]),0),2),\"\"),\"\"),\"\")","v":""},{"$f":"IFERROR(IF(ВідображатиСвяткові,IF(INDEX(тблСвята[],MATCH(DATE(РікКал-(DAY(F5)>15)+(ROW()>6),MONTH(F5),DAY(F5)),IF(ВідображатиВихідні,тблСвята[ПЕРЕНЕСЕНО],тблСвята[ДЕНЬ]),0),6),INDEX(тблСвята[],MATCH(DATE(РікКал-(DAY(F5)>15)+(ROW()>6),MONTH(F5),DAY(F5)),IF(ВідображатиВихідні,тблСвята[ПЕРЕНЕСЕНО],тблСвята[ДЕНЬ]),0),2),\"\"),\"\"),\"\")","v":""},{"$f":"IFERROR(IF(ВідображатиСвяткові,IF(INDEX(тблСвята[],MATCH(DATE(РікКал-(DAY(G5)>15)+(ROW()>6),MONTH(G5),DAY(G5)),IF(ВідображатиВихідні,тблСвята[ПЕРЕНЕСЕНО],тблСвята[ДЕНЬ]),0),6),INDEX(тблСвята[],MATCH(DATE(РікКал-(DAY(G5)>15)+(ROW()>6),MONTH(G5),DAY(G5)),IF(ВідображатиВихідні,тблСвята[ПЕРЕНЕСЕНО],тблСвята[ДЕНЬ]),0),2),\"\"),\"\"),\"\")","v":""},{"$f":"IFERROR(IF(ВідображатиСвяткові,IF(INDEX(тблСвята[],MATCH(DATE(РікКал-(DAY(H5)>15)+(ROW()>6),MONTH(H5),DAY(H5)),IF(ВідображатиВихідні,тблСвята[ПЕРЕНЕСЕНО],тблСвята[ДЕНЬ]),0),6),INDEX(тблСвята[],MATCH(DATE(РікКал-(DAY(H5)>15)+(ROW()>6),MONTH(H5),DAY(H5)),IF(ВідображатиВихідні,тблСвята[ПЕРЕНЕСЕНО],тблСвята[ДЕНЬ]),0),2),\"\"),\"\"),\"\")","v":""}]
[null,{"$f":"Дні+DATE(РікКал,4,1)-WEEKDAY(DATE(РікКал,4,1),(ПочатокТижня=\"Понеділок\")+1)+8","v":"2018-04-08"},"2018-04-09","2018-04-10","2018-04-11","2018-04-12","2018-04-13","2018-04-14"]
[null,{"$f":"IFERROR(IF(ВідображатиСвяткові,IF(INDEX(тблСвята[],MATCH(DATE(РікКал,MONTH(B7),DAY(B7)),IF(ВідображатиВихідні,тблСвята[ПЕРЕНЕСЕНО],тблСвята[ДЕНЬ]),0),6),INDEX(тблСвята[],MATCH(DATE(РікКал,MONTH(B7),DAY(B7)),IF(ВідображатиВихідні,тблСвята[ПЕРЕНЕСЕНО],тблСвята[ДЕНЬ]),0),2),\"\"),\"\"),\"\")","v":""},{"$f":"IFERROR(IF(ВідображатиСвяткові,IF(INDEX(тблСвята[],MATCH(DATE(РікКал,MONTH(C7),DAY(C7)),IF(ВідображатиВихідні,тблСвята[ПЕРЕНЕСЕНО],тблСвята[ДЕНЬ]),0),6),INDEX(тблСвята[],MATCH(DATE(РікКал,MONTH(C7),DAY(C7)),IF(ВідображатиВихідні,тблСвята[ПЕРЕНЕСЕНО],тблСвята[ДЕНЬ]),0),2),\"\"),\"\"),\"\")","v":""},{"$f":"IFERROR(IF(ВідображатиСвяткові,IF(INDEX(тблСвята[],MATCH(DATE(РікКал,MONTH(D7),DAY(D7)),IF(ВідображатиВихідні,тблСвята[ПЕРЕНЕСЕНО],тблСвята[ДЕНЬ]),0),6),INDEX(тблСвята[],MATCH(DATE(РікКал,MONTH(D7),DAY(D7)),IF(ВідображатиВихідні,тблСвята[ПЕРЕНЕСЕНО],тблСвята[ДЕНЬ]),0),2),\"\"),\"\"),\"\")","v":""},{"$f":"IFERROR(IF(ВідображатиСвяткові,IF(INDEX(тблСвята[],MATCH(DATE(РікКал,MONTH(E7),DAY(E7)),IF(ВідображатиВихідні,тблСвята[ПЕРЕНЕСЕНО],тблСвята[ДЕНЬ]),0),6),INDEX(тблСвята[],MATCH(DATE(РікКал,MONTH(E7),DAY(E7)),IF(ВідображатиВихідні,тблСвята[ПЕРЕНЕСЕНО],тблСвята[ДЕНЬ]),0),2),\"\"),\"\"),\"\")","v":""},{"$f":"IFERROR(IF(ВідображатиСвяткові,IF(INDEX(тблСвята[],MATCH(DATE(РікКал,MONTH(F7),DAY(F7)),IF(ВідображатиВихідні,тблСвята[ПЕРЕНЕСЕНО],тблСвята[ДЕНЬ]),0),6),INDEX(тблСвята[],MATCH(DATE(РікКал,MONTH(F7),DAY(F7)),IF(ВідображатиВихідні,тблСвята[ПЕРЕНЕСЕНО],тблСвята[ДЕНЬ]),0),2),\"\"),\"\"),\"\")","v":""},{"$f":"IFERROR(IF(ВідображатиСвяткові,IF(INDEX(тблСвята[],MATCH(DATE(РікКал,MONTH(G7),DAY(G7)),IF(ВідображатиВихідні,тблСвята[ПЕРЕНЕСЕНО],тблСвята[ДЕНЬ]),0),6),INDEX(тблСвята[],MATCH(DATE(РікКал,MONTH(G7),DAY(G7)),IF(ВідображатиВихідні,тблСвята[ПЕРЕНЕСЕНО],тблСвята[ДЕНЬ]),0),2),\"\"),\"\"),\"\")","v":""},{"$f":"IFERROR(IF(ВідображатиСвяткові,IF(INDEX(тблСвята[],MATCH(DATE(РікКал,MONTH(H7),DAY(H7)),IF(ВідображатиВихідні,тблСвята[ПЕРЕНЕСЕНО],тблСвята[ДЕНЬ]),0),6),INDEX(тблСвята[],MATCH(DATE(РікКал,MONTH(H7),DAY(H7)),IF(ВідображатиВихідні,тблСвята[ПЕРЕНЕСЕНО],тблСвята[ДЕНЬ]),0),2),\"\"),\"\"),\"\")","v":""}]
[null,{"$f":"Дні+DATE(РікКал,4,1)-WEEKDAY(DATE(РікКал,4,1),(ПочатокТижня=\"Понеділок\")+1)+15","v":"2018-04-15"},"2018-04-16","2018-04-17","2018-04-18","2018-04-19","2018-04-20","2018-04-21"]
[null,{"$f":"IFERROR(IF(ВідображатиСвяткові,IF(INDEX(тблСвята[],MATCH(DATE(РікКал,MONTH(B9),DAY(B9)),IF(ВідображатиВихідні,тблСвята[ПЕРЕНЕСЕНО],тблСвята[ДЕНЬ]),0),6),INDEX(тблСвята[],MATCH(DATE(РікКал,MONTH(B9),DAY(B9)),IF(ВідображатиВихідні,тблСвята[ПЕРЕНЕСЕНО],тблСвята[ДЕНЬ]),0),2),\"\"),\"\"),\"\")","v":""},{"$f":"IFERROR(IF(ВідображатиСвяткові,IF(INDEX(тблСвята[],MATCH(DATE(РікКал,MONTH(C9),DAY(C9)),IF(ВідображатиВихідні,тблСвята[ПЕРЕНЕСЕНО],тблСвята[ДЕНЬ]),0),6),INDEX(тблСвята[],MATCH(DATE(РікКал,MONTH(C9),DAY(C9)),IF(ВідображатиВихідні,тблСвята[ПЕРЕНЕСЕНО],тблСвята[ДЕНЬ]),0),2),\"\"),\"\"),\"\")","v":""},{"$f":"IFERROR(IF(ВідображатиСвяткові,IF(INDEX(тблСвята[],MATCH(DATE(РікКал,MONTH(D9),DAY(D9)),IF(ВідображатиВихідні,тблСвята[ПЕРЕНЕСЕНО],тблСвята[ДЕНЬ]),0),6),INDEX(тблСвята[],MATCH(DATE(РікКал,MONTH(D9),DAY(D9)),IF(ВідображатиВихідні,тблСвята[ПЕРЕНЕСЕНО],тблСвята[ДЕНЬ]),0),2),\"\"),\"\"),\"\")","v":""},{"$f":"IFERROR(IF(ВідображатиСвяткові,IF(INDEX(тблСвята[],MATCH(DATE(РікКал,MONTH(E9),DAY(E9)),IF(ВідображатиВихідні,тблСвята[ПЕРЕНЕСЕНО],тблСвята[ДЕНЬ]),0),6),INDEX(тблСвята[],MATCH(DATE(РікКал,MONTH(E9),DAY(E9)),IF(ВідображатиВихідні,тблСвята[ПЕРЕНЕСЕНО],тблСвята[ДЕНЬ]),0),2),\"\"),\"\"),\"\")","v":""},{"$f":"IFERROR(IF(ВідображатиСвяткові,IF(INDEX(тблСвята[],MATCH(DATE(РікКал,MONTH(F9),DAY(F9)),IF(ВідображатиВихідні,тблСвята[ПЕРЕНЕСЕНО],тблСвята[ДЕНЬ]),0),6),INDEX(тблСвята[],MATCH(DATE(РікКал,MONTH(F9),DAY(F9)),IF(ВідображатиВихідні,тблСвята[ПЕРЕНЕСЕНО],тблСвята[ДЕНЬ]),0),2),\"\"),\"\"),\"\")","v":""},{"$f":"IFERROR(IF(ВідображатиСвяткові,IF(INDEX(тблСвята[],MATCH(DATE(РікКал,MONTH(G9),DAY(G9)),IF(ВідображатиВихідні,тблСвята[ПЕРЕНЕСЕНО],тблСвята[ДЕНЬ]),0),6),INDEX(тблСвята[],MATCH(DATE(РікКал,MONTH(G9),DAY(G9)),IF(ВідображатиВихідні,тблСвята[ПЕРЕНЕСЕНО],тблСвята[ДЕНЬ]),0),2),\"\"),\"\"),\"\")","v":""},{"$f":"IFERROR(IF(ВідображатиСвяткові,IF(INDEX(тблСвята[],MATCH(DATE(РікКал,MONTH(H9),DAY(H9)),IF(ВідображатиВихідні,тблСвята[ПЕРЕНЕСЕНО],тблСвята[ДЕНЬ]),0),6),INDEX(тблСвята[],MATCH(DATE(РікКал,MONTH(H9),DAY(H9)),IF(ВідображатиВихідні,тблСвята[ПЕРЕНЕСЕНО],тблСвята[ДЕНЬ]),0),2),\"\"),\"\"),\"\")","v":""}]
[null,{"$f":"Дні+DATE(РікКал,4,1)-WEEKDAY(DATE(РікКал,4,1),(ПочатокТижня=\"Понеділок\")+1)+22","v":"2018-04-22"},"2018-04-23","2018-04-24","2018-04-25","2018-04-26","2018-04-27","2018-04-28"]
[null,{"$f":"IFERROR(IF(ВідображатиСвяткові,IF(INDEX(тблСвята[],MATCH(DATE(РікКал,MONTH(B11),DAY(B11)),IF(ВідображатиВихідні,тблСвята[ПЕРЕНЕСЕНО],тблСвята[ДЕНЬ]),0),6),INDEX(тблСвята[],MATCH(DATE(РікКал,MONTH(B11),DAY(B11)),IF(ВідображатиВихідні,тблСвята[ПЕРЕНЕСЕНО],тблСвята[ДЕНЬ]),0),2),\"\"),\"\"),\"\")","v":""},{"$f":"IFERROR(IF(ВідображатиСвяткові,IF(INDEX(тблСвята[],MATCH(DATE(РікКал,MONTH(C11),DAY(C11)),IF(ВідображатиВихідні,тблСвята[ПЕРЕНЕСЕНО],тблСвята[ДЕНЬ]),0),6),INDEX(тблСвята[],MATCH(DATE(РікКал,MONTH(C11),DAY(C11)),IF(ВідображатиВихідні,тблСвята[ПЕРЕНЕСЕНО],тблСвята[ДЕНЬ]),0),2),\"\"),\"\"),\"\")","v":""},{"$f":"IFERROR(IF(ВідображатиСвяткові,IF(INDEX(тблСвята[],MATCH(DATE(РікКал,MONTH(D11),DAY(D11)),IF(ВідображатиВихідні,тблСвята[ПЕРЕНЕСЕНО],тблСвята[ДЕНЬ]),0),6),INDEX(тблСвята[],MATCH(DATE(РікКал,MONTH(D11),DAY(D11)),IF(ВідображатиВихідні,тблСвята[ПЕРЕНЕСЕНО],тблСвята[ДЕНЬ]),0),2),\"\"),\"\"),\"\")","v":""},{"$f":"IFERROR(IF(ВідображатиСвяткові,IF(INDEX(тблСвята[],MATCH(DATE(РікКал,MONTH(E11),DAY(E11)),IF(ВідображатиВихідні,тблСвята[ПЕРЕНЕСЕНО],тблСвята[ДЕНЬ]),0),6),INDEX(тблСвята[],MATCH(DATE(РікКал,MONTH(E11),DAY(E11)),IF(ВідображатиВихідні,тблСвята[ПЕРЕНЕСЕНО],тблСвята[ДЕНЬ]),0),2),\"\"),\"\"),\"\")","v":""},{"$f":"IFERROR(IF(ВідображатиСвяткові,IF(INDEX(тблСвята[],MATCH(DATE(РікКал,MONTH(F11),DAY(F11)),IF(ВідображатиВихідні,тблСвята[ПЕРЕНЕСЕНО],тблСвята[ДЕНЬ]),0),6),INDEX(тблСвята[],MATCH(DATE(РікКал,MONTH(F11),DAY(F11)),IF(ВідображатиВихідні,тблСвята[ПЕРЕНЕСЕНО],тблСвята[ДЕНЬ]),0),2),\"\"),\"\"),\"\")","v":""},{"$f":"IFERROR(IF(ВідображатиСвяткові,IF(INDEX(тблСвята[],MATCH(DATE(РікКал,MONTH(G11),DAY(G11)),IF(ВідображатиВихідні,тблСвята[ПЕРЕНЕСЕНО],тблСвята[ДЕНЬ]),0),6),INDEX(тблСвята[],MATCH(DATE(РікКал,MONTH(G11),DAY(G11)),IF(ВідображатиВихідні,тблСвята[ПЕРЕНЕСЕНО],тблСвята[ДЕНЬ]),0),2),\"\"),\"\"),\"\")","v":""},{"$f":"IFERROR(IF(ВідображатиСвяткові,IF(INDEX(тблСвята[],MATCH(DATE(РікКал,MONTH(H11),DAY(H11)),IF(ВідображатиВихідні,тблСвята[ПЕРЕНЕСЕНО],тблСвята[ДЕНЬ]),0),6),INDEX(тблСвята[],MATCH(DATE(РікКал,MONTH(H11),DAY(H11)),IF(ВідображатиВихідні,тблСвята[ПЕРЕНЕСЕНО],тблСвята[ДЕНЬ]),0),2),\"\"),\"\"),\"\")","v":""}]
[null,{"$f":"Дні+DATE(РікКал,4,1)-WEEKDAY(DATE(РікКал,4,1),(ПочатокТижня=\"Понеділок\")+1)+29","v":"2018-04-29"},"2018-04-30","2018-05-01","2018-05-02","2018-05-03","2018-05-04","2018-05-05"]
[null,{"$f":"IFERROR(IF(ВідображатиСвяткові,IF(INDEX(тблСвята[],MATCH(DATE(РікКал,MONTH(B13),DAY(B13)),IF(ВідображатиВихідні,тблСвята[ПЕРЕНЕСЕНО],тблСвята[ДЕНЬ]),0),6),INDEX(тблСвята[],MATCH(DATE(РікКал,MONTH(B13),DAY(B13)),IF(ВідображатиВихідні,тблСвята[ПЕРЕНЕСЕНО],тблСвята[ДЕНЬ]),0),2),\"\"),\"\"),\"\")","v":""},{"$f":"IFERROR(IF(ВідображатиСвяткові,IF(INDEX(тблСвята[],MATCH(DATE(РікКал,MONTH(C13),DAY(C13)),IF(ВідображатиВихідні,тблСвята[ПЕРЕНЕСЕНО],тблСвята[ДЕНЬ]),0),6),INDEX(тблСвята[],MATCH(DATE(РікКал,MONTH(C13),DAY(C13)),IF(ВідображатиВихідні,тблСвята[ПЕРЕНЕСЕНО],тблСвята[ДЕНЬ]),0),2),\"\"),\"\"),\"\")","v":""},{"$f":"IFERROR(IF(ВідображатиСвяткові,IF(INDEX(тблСвята[],MATCH(DATE(РікКал,MONTH(D13),DAY(D13)),IF(ВідображатиВихідні,тблСвята[ПЕРЕНЕСЕНО],тблСвята[ДЕНЬ]),0),6),INDEX(тблСвята[],MATCH(DATE(РікКал,MONTH(D13),DAY(D13)),IF(ВідображатиВихідні,тблСвята[ПЕРЕНЕСЕНО],тблСвята[ДЕНЬ]),0),2),\"\"),\"\"),\"\")","v":""},{"$f":"IFERROR(IF(ВідображатиСвяткові,IF(INDEX(тблСвята[],MATCH(DATE(РікКал,MONTH(E13),DAY(E13)),IF(ВідображатиВихідні,тблСвята[ПЕРЕНЕСЕНО],тблСвята[ДЕНЬ]),0),6),INDEX(тблСвята[],MATCH(DATE(РікКал,MONTH(E13),DAY(E13)),IF(ВідображатиВихідні,тблСвята[ПЕРЕНЕСЕНО],тблСвята[ДЕНЬ]),0),2),\"\"),\"\"),\"\")","v":""},{"$f":"IFERROR(IF(ВідображатиСвяткові,IF(INDEX(тблСвята[],MATCH(DATE(РікКал,MONTH(F13),DAY(F13)),IF(ВідображатиВихідні,тблСвята[ПЕРЕНЕСЕНО],тблСвята[ДЕНЬ]),0),6),INDEX(тблСвята[],MATCH(DATE(РікКал,MONTH(F13),DAY(F13)),IF(ВідображатиВихідні,тблСвята[ПЕРЕНЕСЕНО],тблСвята[ДЕНЬ]),0),2),\"\"),\"\"),\"\")","v":""},{"$f":"IFERROR(IF(ВідображатиСвяткові,IF(INDEX(тблСвята[],MATCH(DATE(РікКал,MONTH(G13),DAY(G13)),IF(ВідображатиВихідні,тблСвята[ПЕРЕНЕСЕНО],тблСвята[ДЕНЬ]),0),6),INDEX(тблСвята[],MATCH(DATE(РікКал,MONTH(G13),DAY(G13)),IF(ВідображатиВихідні,тблСвята[ПЕРЕНЕСЕНО],тблСвята[ДЕНЬ]),0),2),\"\"),\"\"),\"\")","v":""},{"$f":"IFERROR(IF(ВідображатиСвяткові,IF(INDEX(тблСвята[],MATCH(DATE(РікКал,MONTH(H13),DAY(H13)),IF(ВідображатиВихідні,тблСвята[ПЕРЕНЕСЕНО],тблСвята[ДЕНЬ]),0),6),INDEX(тблСвята[],MATCH(DATE(РікКал,MONTH(H13),DAY(H13)),IF(ВідображатиВихідні,тблСвята[ПЕРЕНЕСЕНО],тблСвята[ДЕНЬ]),0),2),\"\"),\"\"),\"\")","v":""}]
[null,{"$f":"Дні+DATE(РікКал,4,1)-WEEKDAY(DATE(РікКал,4,1),(ПочатокТижня=\"Понеділок\")+1)+36","v":"2018-05-06"},"2018-05-07","НОТАТКИ"]
[null,{"$f":"IFERROR(IF(ВідображатиСвяткові,IF(INDEX(тблСвята[],MATCH(DATE(РікКал,MONTH(B15),DAY(B15)),IF(ВідображатиВихідні,тблСвята[ПЕРЕНЕСЕНО],тблСвята[ДЕНЬ]),0),6),INDEX(тблСвята[],MATCH(DATE(РікКал,MONTH(B15),DAY(B15)),IF(ВідображатиВихідні,тблСвята[ПЕРЕНЕСЕНО],тблСвята[ДЕНЬ]),0),2),\"\"),\"\"),\"\")","v":""},{"$f":"IFERROR(IF(ВідображатиСвяткові,IF(INDEX(тблСвята[],MATCH(DATE(РікКал,MONTH(C15),DAY(C15)),IF(ВідображатиВихідні,тблСвята[ПЕРЕНЕСЕНО],тблСвята[ДЕНЬ]),0),6),INDEX(тблСвята[],MATCH(DATE(РікКал,MONTH(C15),DAY(C15)),IF(ВідображатиВихідні,тблСвята[ПЕРЕНЕСЕНО],тблСвята[ДЕНЬ]),0),2),\"\"),\"\"),\"\")","v":""}]

{"sheet":"Травень","index":5,"n_rows":16,"n_cols":8,"rows_kept":16,"merged":[[1,1,1,3],[14,3,14,7],[15,3,15,7],[16,1,16,7]]}
[]
[null,{"$f":"B9","v":"2018-05-13"}]
[]
[null,{"$f":"ПочатокТижня","v":"НЕДІЛЯ"},{"$f":"UPPER(TEXT(C5,\"dddd\"))","v":"ПОНЕДІЛОК"},"ВІВТОРОК","СЕРЕДА","ЧЕТВЕР","П'ЯТНИЦЯ","СУБОТА"]
[null,{"$f":"Дні+DATE(РікКал,5,1)-WEEKDAY(DATE(РікКал,5,1),(ПочатокТижня=\"Понеділок\")+1)+1","v":"2018-04-29"},"2018-04-30","2018-05-01","2018-05-02","2018-05-03","2018-05-04","2018-05-05"]
[null,{"$f":"IFERROR(IF(ВідображатиСвяткові,IF(INDEX(тблСвята[],MATCH(DATE(РікКал-(DAY(B5)>15)+(ROW()>6),MONTH(B5),DAY(B5)),IF(ВідображатиВихідні,тблСвята[ПЕРЕНЕСЕНО],тблСвята[ДЕНЬ]),0),6),INDEX(тблСвята[],MATCH(DATE(РікКал-(DAY(B5)>15)+(ROW()>6),MONTH(B5),DAY(B5)),IF(ВідображатиВихідні,тблСвята[ПЕРЕНЕСЕНО],тблСвята[ДЕНЬ]),0),2),\"\"),\"\"),\"\")","v":""},{"$f":"IFERROR(IF(ВідображатиСвяткові,IF(INDEX(тблСвята[],MATCH(DATE(РікКал-(DAY(C5)>15)+(ROW()>6),MONTH(C5),DAY(C5)),IF(ВідображатиВихідні,тблСвята[ПЕРЕНЕСЕНО],тблСвята[ДЕНЬ]),0),6),INDEX(тблСвята[],MATCH(DATE(РікКал-(DAY(C5)>15)+(ROW()>6),MONTH(C5),DAY(C5)),IF(ВідображатиВихідні,тблСвята[ПЕРЕНЕСЕНО],тблСвята[ДЕНЬ]),0),2),\"\"),\"\"),\"\")","v":""},{"$f":"IFERROR(IF(ВідображатиСвяткові,IF(INDEX(тблСвята[],MATCH(DATE(РікКал-(DAY(D5)>15)+(ROW()>6),MONTH(D5),DAY(D5)),IF(ВідображатиВихідні,тблСвята[ПЕРЕНЕСЕНО],тблСвята[ДЕНЬ]),0),6),INDEX(тблСвята[],MATCH(DATE(РікКал-(DAY(D5)>15)+(ROW()>6),MONTH(D5),DAY(D5)),IF(ВідображатиВихідні,тблСвята[ПЕРЕНЕСЕНО],тблСвята[ДЕНЬ]),0),2),\"\"),\"\"),\"\")","v":""},{"$f":"IFERROR(IF(ВідображатиСвяткові,IF(INDEX(тблСвята[],MATCH(DATE(РікКал-(DAY(E5)>15)+(ROW()>6),MONTH(E5),DAY(E5)),IF(ВідображатиВихідні,тблСвята[ПЕРЕНЕСЕНО],тблСвята[ДЕНЬ]),0),6),INDEX(тблСвята[],MATCH(DATE(РікКал-(DAY(E5)>15)+(ROW()>6),MONTH(E5),DAY(E5)),IF(ВідображатиВихідні,тблСвята[ПЕРЕНЕСЕНО],тблСвята[ДЕНЬ]),0),2),\"\"),\"\"),\"\")","v":""},{"$f":"IFERROR(IF(ВідображатиСвяткові,IF(INDEX(тблСвята[],MATCH(DATE(РікКал-(DAY(F5)>15)+(ROW()>6),MONTH(F5),DAY(F5)),IF(ВідображатиВихідні,тблСвята[ПЕРЕНЕСЕНО],тблСвята[ДЕНЬ]),0),6),INDEX(тблСвята[],MATCH(DATE(РікКал-(DAY(F5)>15)+(ROW()>6),MONTH(F5),DAY(F5)),IF(ВідображатиВихідні,тблСвята[ПЕРЕНЕСЕНО],тблСвята[ДЕНЬ]),0),2),\"\"),\"\"),\"\")","v":""},{"$f":"IFERROR(IF(ВідображатиСвяткові,IF(INDEX(тблСвята[],MATCH(DATE(РікКал-(DAY(G5)>15)+(ROW()>6),MONTH(G5),DAY(G5)),IF(ВідображатиВихідні,тблСвята[ПЕРЕНЕСЕНО],тблСвята[ДЕНЬ]),0),6),INDEX(тблСвята[],MATCH(DATE(РікКал-(DAY(G5)>15)+(ROW()>6),MONTH(G5),DAY(G5)),IF(ВідображатиВихідні,тблСвята[ПЕРЕНЕСЕНО],тблСвята[ДЕНЬ]),0),2),\"\"),\"\"),\"\")","v":""},{"$f":"IFERROR(IF(ВідображатиСвяткові,IF(INDEX(тблСвята[],MATCH(DATE(РікКал-(DAY(H5)>15)+(ROW()>6),MONTH(H5),DAY(H5)),IF(ВідображатиВихідні,тблСвята[ПЕРЕНЕСЕНО],тблСвята[ДЕНЬ]),0),6),INDEX(тблСвята[],MATCH(DATE(РікКал-(DAY(H5)>15)+(ROW()>6),MONTH(H5),DAY(H5)),IF(ВідображатиВихідні,тблСвята[ПЕРЕНЕСЕНО],тблСвята[ДЕНЬ]),0),2),\"\"),\"\"),\"\")","v":""}]
[null,{"$f":"Дні+DATE(РікКал,5,1)-WEEKDAY(DATE(РікКал,5,1),(ПочатокТижня=\"Понеділок\")+1)+8","v":"2018-05-06"},"2018-05-07","2018-05-08","2018-05-09","2018-05-10","2018-05-11","2018-05-12"]
[null,{"$f":"IFERROR(IF(ВідображатиСвяткові,IF(INDEX(тблСвята[],MATCH(DATE(РікКал,MONTH(B7),DAY(B7)),IF(ВідображатиВихідні,тблСвята[ПЕРЕНЕСЕНО],тблСвята[ДЕНЬ]),0),6),INDEX(тблСвята[],MATCH(DATE(РікКал,MONTH(B7),DAY(B7)),IF(ВідображатиВихідні,тблСвята[ПЕРЕНЕСЕНО],тблСвята[ДЕНЬ]),0),2),\"\"),\"\"),\"\")","v":""},{"$f":"IFERROR(IF(ВідображатиСвяткові,IF(INDEX(тблСвята[],MATCH(DATE(РікКал,MONTH(C7),DAY(C7)),IF(ВідображатиВихідні,тблСвята[ПЕРЕНЕСЕНО],тблСвята[ДЕНЬ]),0),6),INDEX(тблСвята[],MATCH(DATE(РікКал,MONTH(C7),DAY(C7)),IF(ВідображатиВихідні,тблСвята[ПЕРЕНЕСЕНО],тблСвята[ДЕНЬ]),0),2),\"\"),\"\"),\"\")","v":""},{"$f":"IFERROR(IF(ВідображатиСвяткові,IF(INDEX(тблСвята[],MATCH(DATE(РікКал,MONTH(D7),DAY(D7)),IF(ВідображатиВихідні,тблСвята[ПЕРЕНЕСЕНО],тблСвята[ДЕНЬ]),0),6),INDEX(тблСвята[],MATCH(DATE(РікКал,MONTH(D7),DAY(D7)),IF(ВідображатиВихідні,тблСвята[ПЕРЕНЕСЕНО],тблСвята[ДЕНЬ]),0),2),\"\"),\"\"),\"\")","v":""},{"$f":"IFERROR(IF(ВідображатиСвяткові,IF(INDEX(тблСвята[],MATCH(DATE(РікКал,MONTH(E7),DAY(E7)),IF(ВідображатиВихідні,тблСвята[ПЕРЕНЕСЕНО],тблСвята[ДЕНЬ]),0),6),INDEX(тблСвята[],MATCH(DATE(РікКал,MONTH(E7),DAY(E7)),IF(ВідображатиВихідні,тблСвята[ПЕРЕНЕСЕНО],тблСвята[ДЕНЬ]),0),2),\"\"),\"\"),\"\")","v":""},{"$f":"IFERROR(IF(ВідображатиСвяткові,IF(INDEX(тблСвята[],MATCH(DATE(РікКал,MONTH(F7),DAY(F7)),IF(ВідображатиВихідні,тблСвята[ПЕРЕНЕСЕНО],тблСвята[ДЕНЬ]),0),6),INDEX(тблСвята[],MATCH(DATE(РікКал,MONTH(F7),DAY(F7)),IF(ВідображатиВихідні,тблСвята[ПЕРЕНЕСЕНО],тблСвята[ДЕНЬ]),0),2),\"\"),\"\"),\"\")","v":""},{"$f":"IFERROR(IF(ВідображатиСвяткові,IF(INDEX(тблСвята[],MATCH(DATE(РікКал,MONTH(G7),DAY(G7)),IF(ВідображатиВихідні,тблСвята[ПЕРЕНЕСЕНО],тблСвята[ДЕНЬ]),0),6),INDEX(тблСвята[],MATCH(DATE(РікКал,MONTH(G7),DAY(G7)),IF(ВідображатиВихідні,тблСвята[ПЕРЕНЕСЕНО],тблСвята[ДЕНЬ]),0),2),\"\"),\"\"),\"\")","v":""},{"$f":"IFERROR(IF(ВідображатиСвяткові,IF(INDEX(тблСвята[],MATCH(DATE(РікКал,MONTH(H7),DAY(H7)),IF(ВідображатиВихідні,тблСвята[ПЕРЕНЕСЕНО],тблСвята[ДЕНЬ]),0),6),INDEX(тблСвята[],MATCH(DATE(РікКал,MONTH(H7),DAY(H7)),IF(ВідображатиВихідні,тблСвята[ПЕРЕНЕСЕНО],тблСвята[ДЕНЬ]),0),2),\"\"),\"\"),\"\")","v":""}]
[null,{"$f":"Дні+DATE(РікКал,5,1)-WEEKDAY(DATE(РікКал,5,1),(ПочатокТижня=\"Понеділок\")+1)+15","v":"2018-05-13"},"2018-05-14","2018-05-15","2018-05-16","2018-05-17","2018-05-18","2018-05-19"]
[null,{"$f":"IFERROR(IF(ВідображатиСвяткові,IF(INDEX(тблСвята[],MATCH(DATE(РікКал,MONTH(B9),DAY(B9)),IF(ВідображатиВихідні,тблСвята[ПЕРЕНЕСЕНО],тблСвята[ДЕНЬ]),0),6),INDEX(тблСвята[],MATCH(DATE(РікКал,MONTH(B9),DAY(B9)),IF(ВідображатиВихідні,тблСвята[ПЕРЕНЕСЕНО],тблСвята[ДЕНЬ]),0),2),\"\"),\"\"),\"\")","v":""},{"$f":"IFERROR(IF(ВідображатиСвяткові,IF(INDEX(тблСвята[],MATCH(DATE(РікКал,MONTH(C9),DAY(C9)),IF(ВідображатиВихідні,тблСвята[ПЕРЕНЕСЕНО],тблСвята[ДЕНЬ]),0),6),INDEX(тблСвята[],MATCH(DATE(РікКал,MONTH(C9),DAY(C9)),IF(ВідображатиВихідні,тблСвята[ПЕРЕНЕСЕНО],тблСвята[ДЕНЬ]),0),2),\"\"),\"\"),\"\")","v":""},{"$f":"IFERROR(IF(ВідображатиСвяткові,IF(INDEX(тблСвята[],MATCH(DATE(РікКал,MONTH(D9),DAY(D9)),IF(ВідображатиВихідні,тблСвята[ПЕРЕНЕСЕНО],тблСвята[ДЕНЬ]),0),6),INDEX(тблСвята[],MATCH(DATE(РікКал,MONTH(D9),DAY(D9)),IF(ВідображатиВихідні,тблСвята[ПЕРЕНЕСЕНО],тблСвята[ДЕНЬ]),0),2),\"\"),\"\"),\"\")","v":""},{"$f":"IFERROR(IF(ВідображатиСвяткові,IF(INDEX(тблСвята[],MATCH(DATE(РікКал,MONTH(E9),DAY(E9)),IF(ВідображатиВихідні,тблСвята[ПЕРЕНЕСЕНО],тблСвята[ДЕНЬ]),0),6),INDEX(тблСвята[],MATCH(DATE(РікКал,MONTH(E9),DAY(E9)),IF(ВідображатиВихідні,тблСвята[ПЕРЕНЕСЕНО],тблСвята[ДЕНЬ]),0),2),\"\"),\"\"),\"\")","v":""},{"$f":"IFERROR(IF(ВідображатиСвяткові,IF(INDEX(тблСвята[],MATCH(DATE(РікКал,MONTH(F9),DAY(F9)),IF(ВідображатиВихідні,тблСвята[ПЕРЕНЕСЕНО],тблСвята[ДЕНЬ]),0),6),INDEX(тблСвята[],MATCH(DATE(РікКал,MONTH(F9),DAY(F9)),IF(ВідображатиВихідні,тблСвята[ПЕРЕНЕСЕНО],тблСвята[ДЕНЬ]),0),2),\"\"),\"\"),\"\")","v":""},{"$f":"IFERROR(IF(ВідображатиСвяткові,IF(INDEX(тблСвята[],MATCH(DATE(РікКал,MONTH(G9),DAY(G9)),IF(ВідображатиВихідні,тблСвята[ПЕРЕНЕСЕНО],тблСвята[ДЕНЬ]),0),6),INDEX(тблСвята[],MATCH(DATE(РікКал,MONTH(G9),DAY(G9)),IF(ВідображатиВихідні,тблСвята[ПЕРЕНЕСЕНО],тблСвята[ДЕНЬ]),0),2),\"\"),\"\"),\"\")","v":""},{"$f":"IFERROR(IF(ВідображатиСвяткові,IF(INDEX(тблСвята[],MATCH(DATE(РікКал,MONTH(H9),DAY(H9)),IF(ВідображатиВихідні,тблСвята[ПЕРЕНЕСЕНО],тблСвята[ДЕНЬ]),0),6),INDEX(тблСвята[],MATCH(DATE(РікКал,MONTH(H9),DAY(H9)),IF(ВідображатиВихідні,тблСвята[ПЕРЕНЕСЕНО],тблСвята[ДЕНЬ]),0),2),\"\"),\"\"),\"\")","v":""}]
[null,{"$f":"Дні+DATE(РікКал,5,1)-WEEKDAY(DATE(РікКал,5,1),(ПочатокТижня=\"Понеділок\")+1)+22","v":"2018-05-20"},"2018-05-21","2018-05-22","2018-05-23","2018-05-24","2018-05-25","2018-05-26"]
[null,{"$f":"IFERROR(IF(ВідображатиСвяткові,IF(INDEX(тблСвята[],MATCH(DATE(РікКал,MONTH(B11),DAY(B11)),IF(ВідображатиВихідні,тблСвята[ПЕРЕНЕСЕНО],тблСвята[ДЕНЬ]),0),6),INDEX(тблСвята[],MATCH(DATE(РікКал,MONTH(B11),DAY(B11)),IF(ВідображатиВихідні,тблСвята[ПЕРЕНЕСЕНО],тблСвята[ДЕНЬ]),0),2),\"\"),\"\"),\"\")","v":""},{"$f":"IFERROR(IF(ВідображатиСвяткові,IF(INDEX(тблСвята[],MATCH(DATE(РікКал,MONTH(C11),DAY(C11)),IF(ВідображатиВихідні,тблСвята[ПЕРЕНЕСЕНО],тблСвята[ДЕНЬ]),0),6),INDEX(тблСвята[],MATCH(DATE(РікКал,MONTH(C11),DAY(C11)),IF(ВідображатиВихідні,тблСвята[ПЕРЕНЕСЕНО],тблСвята[ДЕНЬ]),0),2),\"\"),\"\"),\"\")","v":""},{"$f":"IFERROR(IF(ВідображатиСвяткові,IF(INDEX(тблСвята[],MATCH(DATE(РікКал,MONTH(D11),DAY(D11)),IF(ВідображатиВихідні,тблСвята[ПЕРЕНЕСЕНО],тблСвята[ДЕНЬ]),0),6),INDEX(тблСвята[],MATCH(DATE(РікКал,MONTH(D11),DAY(D11)),IF(ВідображатиВихідні,тблСвята[ПЕРЕНЕСЕНО],тблСвята[ДЕНЬ]),0),2),\"\"),\"\"),\"\")","v":""},{"$f":"IFERROR(IF(ВідображатиСвяткові,IF(INDEX(тблСвята[],MATCH(DATE(РікКал,MONTH(E11),DAY(E11)),IF(ВідображатиВихідні,тблСвята[ПЕРЕНЕСЕНО],тблСвята[ДЕНЬ]),0),6),INDEX(тблСвята[],MATCH(DATE(РікКал,MONTH(E11),DAY(E11)),IF(ВідображатиВихідні,тблСвята[ПЕРЕНЕСЕНО],тблСвята[ДЕНЬ]),0),2),\"\"),\"\"),\"\")","v":""},{"$f":"IFERROR(IF(ВідображатиСвяткові,IF(INDEX(тблСвята[],MATCH(DATE(РікКал,MONTH(F11),DAY(F11)),IF(ВідображатиВихідні,тблСвята[ПЕРЕНЕСЕНО],тблСвята[ДЕНЬ]),0),6),INDEX(тблСвята[],MATCH(DATE(РікКал,MONTH(F11),DAY(F11)),IF(ВідображатиВихідні,тблСвята[ПЕРЕНЕСЕНО],тблСвята[ДЕНЬ]),0),2),\"\"),\"\"),\"\")","v":""},{"$f":"IFERROR(IF(ВідображатиСвяткові,IF(INDEX(тблСвята[],MATCH(DATE(РікКал,MONTH(G11),DAY(G11)),IF(ВідображатиВихідні,тблСвята[ПЕРЕНЕСЕНО],тблСвята[ДЕНЬ]),0),6),INDEX(тблСвята[],MATCH(DATE(РікКал,MONTH(G11),DAY(G11)),IF(ВідображатиВихідні,тблСвята[ПЕРЕНЕСЕНО],тблСвята[ДЕНЬ]),0),2),\"\"),\"\"),\"\")","v":""},{"$f":"IFERROR(IF(ВідображатиСвяткові,IF(INDEX(тблСвята[],MATCH(DATE(РікКал,MONTH(H11),DAY(H11)),IF(ВідображатиВихідні,тблСвята[ПЕРЕНЕСЕНО],тблСвята[ДЕНЬ]),0),6),INDEX(тблСвята[],MATCH(DATE(РікКал,MONTH(H11),DAY(H11)),IF(ВідображатиВихідні,тблСвята[ПЕРЕНЕСЕНО],тблСвята[ДЕНЬ]),0),2),\"\"),\"\"),\"\")","v":""}]
[null,{"$f":"Дні+DATE(РікКал,5,1)-WEEKDAY(DATE(РікКал,5,1),(ПочатокТижня=\"Понеділок\")+1)+29","v":"2018-05-27"},"2018-05-28","2018-05-29","2018-05-30","2018-05-31","2018-06-01","2018-06-02"]
[null,{"$f":"IFERROR(IF(ВідображатиСвяткові,IF(INDEX(тблСвята[],MATCH(DATE(РікКал,MONTH(B13),DAY(B13)),IF(ВідображатиВихідні,тблСвята[ПЕРЕНЕСЕНО],тблСвята[ДЕНЬ]),0),6),INDEX(тблСвята[],MATCH(DATE(РікКал,MONTH(B13),DAY(B13)),IF(ВідображатиВихідні,тблСвята[ПЕРЕНЕСЕНО],тблСвята[ДЕНЬ]),0),2),\"\"),\"\"),\"\")","v":""},{"$f":"IFERROR(IF(ВідображатиСвяткові,IF(INDEX(тблСвята[],MATCH(DATE(РікКал,MONTH(C13),DAY(C13)),IF(ВідображатиВихідні,тблСвята[ПЕРЕНЕСЕНО],тблСвята[ДЕНЬ]),0),6),INDEX(тблСвята[],MATCH(DATE(РікКал,MONTH(C13),DAY(C13)),IF(ВідображатиВихідні,тблСвята[ПЕРЕНЕСЕНО],тблСвята[ДЕНЬ]),0),2),\"\"),\"\"),\"\")","v":"День праці"},{"$f":"IFERROR(IF(ВідображатиСвяткові,IF(INDEX(тблСвята[],MATCH(DATE(РікКал,MONTH(D13),DAY(D13)),IF(ВідображатиВихідні,тблСвята[ПЕРЕНЕСЕНО],тблСвята[ДЕНЬ]),0),6),INDEX(тблСвята[],MATCH(DATE(РікКал,MONTH(D13),DAY(D13)),IF(ВідображатиВихідні,тблСвята[ПЕРЕНЕСЕНО],тблСвята[ДЕНЬ]),0),2),\"\"),\"\"),\"\")","v":""},{"$f":"IFERROR(IF(ВідображатиСвяткові,IF(INDEX(тблСвята[],MATCH(DATE(РікКал,MONTH(E13),DAY(E13)),IF(ВідображатиВихідні,тблСвята[ПЕРЕНЕСЕНО],тблСвята[ДЕНЬ]),0),6),INDEX(тблСвята[],MATCH(DATE(РікКал,MONTH(E13),DAY(E13)),IF(ВідображатиВихідні,тблСвята[ПЕРЕНЕСЕНО],тблСвята[ДЕНЬ]),0),2),\"\"),\"\"),\"\")","v":""},{"$f":"IFERROR(IF(ВідображатиСвяткові,IF(INDEX(тблСвята[],MATCH(DATE(РікКал,MONTH(F13),DAY(F13)),IF(ВідображатиВихідні,тблСвята[ПЕРЕНЕСЕНО],тблСвята[ДЕНЬ]),0),6),INDEX(тблСвята[],MATCH(DATE(РікКал,MONTH(F13),DAY(F13)),IF(ВідображатиВихідні,тблСвята[ПЕРЕНЕСЕНО],тблСвята[ДЕНЬ]),0),2),\"\"),\"\"),\"\")","v":""},{"$f":"IFERROR(IF(ВідображатиСвяткові,IF(INDEX(тблСвята[],MATCH(DATE(РікКал,MONTH(G13),DAY(G13)),IF(ВідображатиВихідні,тблСвята[ПЕРЕНЕСЕНО],тблСвята[ДЕНЬ]),0),6),INDEX(тблСвята[],MATCH(DATE(РікКал,MONTH(G13),DAY(G13)),IF(ВідображатиВихідні,тблСвята[ПЕРЕНЕСЕНО],тблСвята[ДЕНЬ]),0),2),\"\"),\"\"),\"\")","v":""},{"$f":"IFERROR(IF(ВідображатиСвяткові,IF(INDEX(тблСвята[],MATCH(DATE(РікКал,MONTH(H13),DAY(H13)),IF(ВідображатиВихідні,тблСвята[ПЕРЕНЕСЕНО],тблСвята[ДЕНЬ]),0),6),INDEX(тблСвята[],MATCH(DATE(РікКал,MONTH(H13),DAY(H13)),IF(ВідображатиВихідні,тблСвята[ПЕРЕНЕСЕНО],тблСвята[ДЕНЬ]),0),2),\"\"),\"\"),\"\")","v":""}]
[null,{"$f":"Дні+DATE(РікКал,5,1)-WEEKDAY(DATE(РікКал,5,1),(ПочатокТижня=\"Понеділок\")+1)+36","v":"2018-06-03"},"2018-06-04","НОТАТКИ"]
[null,{"$f":"IFERROR(IF(ВідображатиСвяткові,IF(INDEX(тблСвята[],MATCH(DATE(РікКал,MONTH(B15),DAY(B15)),IF(ВідображатиВихідні,тблСвята[ПЕРЕНЕСЕНО],тблСвята[ДЕНЬ]),0),6),INDEX(тблСвята[],MATCH(DATE(РікКал,MONTH(B15),DAY(B15)),IF(ВідображатиВихідні,тблСвята[ПЕРЕНЕСЕНО],тблСвята[ДЕНЬ]),0),2),\"\"),\"\"),\"\")","v":""},{"$f":"IFERROR(IF(ВідображатиСвяткові,IF(INDEX(тблСвята[],MATCH(DATE(РікКал,MONTH(C15),DAY(C15)),IF(ВідображатиВихідні,тблСвята[ПЕРЕНЕСЕНО],тблСвята[ДЕНЬ]),0),6),INDEX(тблСвята[],MATCH(DATE(РікКал,MONTH(C15),DAY(C15)),IF(ВідображатиВихідні,тблСвята[ПЕРЕНЕСЕНО],тблСвята[ДЕНЬ]),0),2),\"\"),\"\"),\"\")","v":""}]

{"sheet":"Червень","index":6,"n_rows":16,"n_cols":8,"rows_kept":16,"merged":[[1,1,1,3],[14,3,14,7],[15,3,15,7],[16,1,16,7]]}
[]
[null,{"$f":"B9","v":"2018-06-10"}]
[]
[null,{"$f":"ПочатокТижня","v":"НЕДІЛЯ"},{"$f":"UPPER(TEXT(C5,\"dddd\"))","v":"ПОНЕДІЛОК"},"ВІВТОРОК","СЕРЕДА","ЧЕТВЕР","П'ЯТНИЦЯ","СУБОТА"]
[null,{"$f":"Дні+DATE(РікКал,6,1)-WEEKDAY(DATE(РікКал,6,1),(ПочатокТижня=\"Понеділок\")+1)+1","v":"2018-05-27"},"2018-05-28","2018-05-29","2018-05-30","2018-05-31","2018-06-01","2018-06-02"]
[null,{"$f":"IFERROR(IF(ВідображатиСвяткові,IF(INDEX(тблСвята[],MATCH(DATE(РікКал-(DAY(B5)>15)+(ROW()>6),MONTH(B5),DAY(B5)),IF(ВідображатиВихідні,тблСвята[ПЕРЕНЕСЕНО],тблСвята[ДЕНЬ]),0),6),INDEX(тблСвята[],MATCH(DATE(РікКал-(DAY(B5)>15)+(ROW()>6),MONTH(B5),DAY(B5)),IF(ВідображатиВихідні,тблСвята[ПЕРЕНЕСЕНО],тблСвята[ДЕНЬ]),0),2),\"\"),\"\"),\"\")","v":""},{"$f":"IFERROR(IF(ВідображатиСвяткові,IF(INDEX(тблСвята[],MATCH(DATE(РікКал-(DAY(C5)>15)+(ROW()>6),MONTH(C5),DAY(C5)),IF(ВідображатиВихідні,тблСвята[ПЕРЕНЕСЕНО],тблСвята[ДЕНЬ]),0),6),INDEX(тблСвята[],MATCH(DATE(РікКал-(DAY(C5)>15)+(ROW()>6),MONTH(C5),DAY(C5)),IF(ВідображатиВихідні,тблСвята[ПЕРЕНЕСЕНО],тблСвята[ДЕНЬ]),0),2),\"\"),\"\"),\"\")","v":""},{"$f":"IFERROR(IF(ВідображатиСвяткові,IF(INDEX(тблСвята[],MATCH(DATE(РікКал-(DAY(D5)>15)+(ROW()>6),MONTH(D5),DAY(D5)),IF(ВідображатиВихідні,тблСвята[ПЕРЕНЕСЕНО],тблСвята[ДЕНЬ]),0),6),INDEX(тблСвята[],MATCH(DATE(РікКал-(DAY(D5)>15)+(ROW()>6),MONTH(D5),DAY(D5)),IF(ВідображатиВихідні,тблСвята[ПЕРЕНЕСЕНО],тблСвята[ДЕНЬ]),0),2),\"\"),\"\"),\"\")","v":""},{"$f":"IFERROR(IF(ВідображатиСвяткові,IF(INDEX(тблСвята[],MATCH(DATE(РікКал-(DAY(E5)>15)+(ROW()>6),MONTH(E5),DAY(E5)),IF(ВідображатиВихідні,тблСвята[ПЕРЕНЕСЕНО],тблСвята[ДЕНЬ]),0),6),INDEX(тблСвята[],MATCH(DATE(РікКал-(DAY(E5)>15)+(ROW()>6),MONTH(E5),DAY(E5)),IF(ВідображатиВихідні,тблСвята[ПЕРЕНЕСЕНО],тблСвята[ДЕНЬ]),0),2),\"\"),\"\"),\"\")","v":""},{"$f":"IFERROR(IF(ВідображатиСвяткові,IF(INDEX(тблСвята[],MATCH(DATE(РікКал-(DAY(F5)>15)+(ROW()>6),MONTH(F5),DAY(F5)),IF(ВідображатиВихідні,тблСвята[ПЕРЕНЕСЕНО],тблСвята[ДЕНЬ]),0),6),INDEX(тблСвята[],MATCH(DATE(РікКал-(DAY(F5)>15)+(ROW()>6),MONTH(F5),DAY(F5)),IF(ВідображатиВихідні,тблСвята[ПЕРЕНЕСЕНО],тблСвята[ДЕНЬ]),0),2),\"\"),\"\"),\"\")","v":""},{"$f":"IFERROR(IF(ВідображатиСвяткові,IF(INDEX(тблСвята[],MATCH(DATE(РікКал-(DAY(G5)>15)+(ROW()>6),MONTH(G5),DAY(G5)),IF(ВідображатиВихідні,тблСвята[ПЕРЕНЕСЕНО],тблСвята[ДЕНЬ]),0),6),INDEX(тблСвята[],MATCH(DATE(РікКал-(DAY(G5)>15)+(ROW()>6),MONTH(G5),DAY(G5)),IF(ВідображатиВихідні,тблСвята[ПЕРЕНЕСЕНО],тблСвята[ДЕНЬ]),0),2),\"\"),\"\"),\"\")","v":""},{"$f":"IFERROR(IF(ВідображатиСвяткові,IF(INDEX(тблСвята[],MATCH(DATE(РікКал-(DAY(H5)>15)+(ROW()>6),MONTH(H5),DAY(H5)),IF(ВідображатиВихідні,тблСвята[ПЕРЕНЕСЕНО],тблСвята[ДЕНЬ]),0),6),INDEX(тблСвята[],MATCH(DATE(РікКал-(DAY(H5)>15)+(ROW()>6),MONTH(H5),DAY(H5)),IF(ВідображатиВихідні,тблСвята[ПЕРЕНЕСЕНО],тблСвята[ДЕНЬ]),0),2),\"\"),\"\"),\"\")","v":""}]
[null,{"$f":"Дні+DATE(РікКал,6,1)-WEEKDAY(DATE(РікКал,6,1),(ПочатокТижня=\"Понеділок\")+1)+8","v":"2018-06-03"},"2018-06-04","2018-06-05","2018-06-06","2018-06-07","2018-06-08","2018-06-09"]
[null,{"$f":"IFERROR(IF(ВідображатиСвяткові,IF(INDEX(тблСвята[],MATCH(DATE(РікКал,MONTH(B7),DAY(B7)),IF(ВідображатиВихідні,тблСвята[ПЕРЕНЕСЕНО],тблСвята[ДЕНЬ]),0),6),INDEX(тблСвята[],MATCH(DATE(РікКал,MONTH(B7),DAY(B7)),IF(ВідображатиВихідні,тблСвята[ПЕРЕНЕСЕНО],тблСвята[ДЕНЬ]),0),2),\"\"),\"\"),\"\")","v":""},{"$f":"IFERROR(IF(ВідображатиСвяткові,IF(INDEX(тблСвята[],MATCH(DATE(РікКал,MONTH(C7),DAY(C7)),IF(ВідображатиВихідні,тблСвята[ПЕРЕНЕСЕНО],тблСвята[ДЕНЬ]),0),6),INDEX(тблСвята[],MATCH(DATE(РікКал,MONTH(C7),DAY(C7)),IF(ВідображатиВихідні,тблСвята[ПЕРЕНЕСЕНО],тблСвята[ДЕНЬ]),0),2),\"\"),\"\"),\"\")","v":""},{"$f":"IFERROR(IF(ВідображатиСвяткові,IF(INDEX(тблСвята[],MATCH(DATE(РікКал,MONTH(D7),DAY(D7)),IF(ВідображатиВихідні,тблСвята[ПЕРЕНЕСЕНО],тблСвята[ДЕНЬ]),0),6),INDEX(тблСвята[],MATCH(DATE(РікКал,MONTH(D7),DAY(D7)),IF(ВідображатиВихідні,тблСвята[ПЕРЕНЕСЕНО],тблСвята[ДЕНЬ]),0),2),\"\"),\"\"),\"\")","v":""},{"$f":"IFERROR(IF(ВідображатиСвяткові,IF(INDEX(тблСвята[],MATCH(DATE(РікКал,MONTH(E7),DAY(E7)),IF(ВідображатиВихідні,тблСвята[ПЕРЕНЕСЕНО],тблСвята[ДЕНЬ]),0),6),INDEX(тблСвята[],MATCH(DATE(РікКал,MONTH(E7),DAY(E7)),IF(ВідображатиВихідні,тблСвята[ПЕРЕНЕСЕНО],тблСвята[ДЕНЬ]),0),2),\"\"),\"\"),\"\")","v":""},{"$f":"IFERROR(IF(ВідображатиСвяткові,IF(INDEX(тблСвята[],MATCH(DATE(РікКал,MONTH(F7),DAY(F7)),IF(ВідображатиВихідні,тблСвята[ПЕРЕНЕСЕНО],тблСвята[ДЕНЬ]),0),6),INDEX(тблСвята[],MATCH(DATE(РікКал,MONTH(F7),DAY(F7)),IF(ВідображатиВихідні,тблСвята[ПЕРЕНЕСЕНО],тблСвята[ДЕНЬ]),0),2),\"\"),\"\"),\"\")","v":""},{"$f":"IFERROR(IF(ВідображатиСвяткові,IF(INDEX(тблСвята[],MATCH(DATE(РікКал,MONTH(G7),DAY(G7)),IF(ВідображатиВихідні,тблСвята[ПЕРЕНЕСЕНО],тблСвята[ДЕНЬ]),0),6),INDEX(тблСвята[],MATCH(DATE(РікКал,MONTH(G7),DAY(G7)),IF(ВідображатиВихідні,тблСвята[ПЕРЕНЕСЕНО],тблСвята[ДЕНЬ]),0),2),\"\"),\"\"),\"\")","v":""},{"$f":"IFERROR(IF(ВідображатиСвяткові,IF(INDEX(тблСвята[],MATCH(DATE(РікКал,MONTH(H7),DAY(H7)),IF(ВідображатиВихідні,тблСвята[ПЕРЕНЕСЕНО],тблСвята[ДЕНЬ]),0),6),INDEX(тблСвята[],MATCH(DATE(РікКал,MONTH(H7),DAY(H7)),IF(ВідображатиВихідні,тблСвята[ПЕРЕНЕСЕНО],тблСвята[ДЕНЬ]),0),2),\"\"),\"\"),\"\")","v":""}]
[null,{"$f":"Дні+DATE(РікКал,6,1)-WEEKDAY(DATE(РікКал,6,1),(ПочатокТижня=\"Понеділок\")+1)+15","v":"2018-06-10"},"2018-06-11","2018-06-12","2018-06-13","2018-06-14","2018-06-15","2018-06-16"]
[null,{"$f":"IFERROR(IF(ВідображатиСвяткові,IF(INDEX(тблСвята[],MATCH(DATE(РікКал,MONTH(B9),DAY(B9)),IF(ВідображатиВихідні,тблСвята[ПЕРЕНЕСЕНО],тблСвята[ДЕНЬ]),0),6),INDEX(тблСвята[],MATCH(DATE(РікКал,MONTH(B9),DAY(B9)),IF(ВідображатиВихідні,тблСвята[ПЕРЕНЕСЕНО],тблСвята[ДЕНЬ]),0),2),\"\"),\"\"),\"\")","v":""},{"$f":"IFERROR(IF(ВідображатиСвяткові,IF(INDEX(тблСвята[],MATCH(DATE(РікКал,MONTH(C9),DAY(C9)),IF(ВідображатиВихідні,тблСвята[ПЕРЕНЕСЕНО],тблСвята[ДЕНЬ]),0),6),INDEX(тблСвята[],MATCH(DATE(РікКал,MONTH(C9),DAY(C9)),IF(ВідображатиВихідні,тблСвята[ПЕРЕНЕСЕНО],тблСвята[ДЕНЬ]),0),2),\"\"),\"\"),\"\")","v":""},{"$f":"IFERROR(IF(ВідображатиСвяткові,IF(INDEX(тблСвята[],MATCH(DATE(РікКал,MONTH(D9),DAY(D9)),IF(ВідображатиВихідні,тблСвята[ПЕРЕНЕСЕНО],тблСвята[ДЕНЬ]),0),6),INDEX(тблСвята[],MATCH(DATE(РікКал,MONTH(D9),DAY(D9)),IF(ВідображатиВихідні,тблСвята[ПЕРЕНЕСЕНО],тблСвята[ДЕНЬ]),0),2),\"\"),\"\"),\"\")","v":""},{"$f":"IFERROR(IF(ВідображатиСвяткові,IF(INDEX(тблСвята[],MATCH(DATE(РікКал,MONTH(E9),DAY(E9)),IF(ВідображатиВихідні,тблСвята[ПЕРЕНЕСЕНО],тблСвята[ДЕНЬ]),0),6),INDEX(тблСвята[],MATCH(DATE(РікКал,MONTH(E9),DAY(E9)),IF(ВідображатиВихідні,тблСвята[ПЕРЕНЕСЕНО],тблСвята[ДЕНЬ]),0),2),\"\"),\"\"),\"\")","v":""},{"$f":"IFERROR(IF(ВідображатиСвяткові,IF(INDEX(тблСвята[],MATCH(DATE(РікКал,MONTH(F9),DAY(F9)),IF(ВідображатиВихідні,тблСвята[ПЕРЕНЕСЕНО],тблСвята[ДЕНЬ]),0),6),INDEX(тблСвята[],MATCH(DATE(РікКал,MONTH(F9),DAY(F9)),IF(ВідображатиВихідні,тблСвята[ПЕРЕНЕСЕНО],тблСвята[ДЕНЬ]),0),2),\"\"),\"\"),\"\")","v":""},{"$f":"IFERROR(IF(ВідображатиСвяткові,IF(INDEX(тблСвята[],MATCH(DATE(РікКал,MONTH(G9),DAY(G9)),IF(ВідображатиВихідні,тблСвята[ПЕРЕНЕСЕНО],тблСвята[ДЕНЬ]),0),6),INDEX(тблСвята[],MATCH(DATE(РікКал,MONTH(G9),DAY(G9)),IF(ВідображатиВихідні,тблСвята[ПЕРЕНЕСЕНО],тблСвята[ДЕНЬ]),0),2),\"\"),\"\"),\"\")","v":""},{"$f":"IFERROR(IF(ВідображатиСвяткові,IF(INDEX(тблСвята[],MATCH(DATE(РікКал,MONTH(H9),DAY(H9)),IF(ВідображатиВихідні,тблСвята[ПЕРЕНЕСЕНО],тблСвята[ДЕНЬ]),0),6),INDEX(тблСвята[],MATCH(DATE(РікКал,MONTH(H9),DAY(H9)),IF(ВідображатиВихідні,тблСвята[ПЕРЕНЕСЕНО],тблСвята[ДЕНЬ]),0),2),\"\"),\"\"),\"\")","v":""}]
[null,{"$f":"Дні+DATE(РікКал,6,1)-WEEKDAY(DATE(РікКал,6,1),(ПочатокТижня=\"Понеділок\")+1)+22","v":"2018-06-17"},"2018-06-18","2018-06-19","2018-06-20","2018-06-21","2018-06-22","2018-06-23"]
[null,{"$f":"IFERROR(IF(ВідображатиСвяткові,IF(INDEX(тблСвята[],MATCH(DATE(РікКал,MONTH(B11),DAY(B11)),IF(ВідображатиВихідні,тблСвята[ПЕРЕНЕСЕНО],тблСвята[ДЕНЬ]),0),6),INDEX(тблСвята[],MATCH(DATE(РікКал,MONTH(B11),DAY(B11)),IF(ВідображатиВихідні,тблСвята[ПЕРЕНЕСЕНО],тблСвята[ДЕНЬ]),0),2),\"\"),\"\"),\"\")","v":""},{"$f":"IFERROR(IF(ВідображатиСвяткові,IF(INDEX(тблСвята[],MATCH(DATE(РікКал,MONTH(C11),DAY(C11)),IF(ВідображатиВихідні,тблСвята[ПЕРЕНЕСЕНО],тблСвята[ДЕНЬ]),0),6),INDEX(тблСвята[],MATCH(DATE(РікКал,MONTH(C11),DAY(C11)),IF(ВідображатиВихідні,тблСвята[ПЕРЕНЕСЕНО],тблСвята[ДЕНЬ]),0),2),\"\"),\"\"),\"\")","v":""},{"$f":"IFERROR(IF(ВідображатиСвяткові,IF(INDEX(тблСвята[],MATCH(DATE(РікКал,MONTH(D11),DAY(D11)),IF(ВідображатиВихідні,тблСвята[ПЕРЕНЕСЕНО],тблСвята[ДЕНЬ]),0),6),INDEX(тблСвята[],MATCH(DATE(РікКал,MONTH(D11),DAY(D11)),IF(ВідображатиВихідні,тблСвята[ПЕРЕНЕСЕНО],тблСвята[ДЕНЬ]),0),2),\"\"),\"\"),\"\")","v":""},{"$f":"IFERROR(IF(ВідображатиСвяткові,IF(INDEX(тблСвята[],MATCH(DATE(РікКал,MONTH(E11),DAY(E11)),IF(ВідображатиВихідні,тблСвята[ПЕРЕНЕСЕНО],тблСвята[ДЕНЬ]),0),6),INDEX(тблСвята[],MATCH(DATE(РікКал,MONTH(E11),DAY(E11)),IF(ВідображатиВихідні,тблСвята[ПЕРЕНЕСЕНО],тблСвята[ДЕНЬ]),0),2),\"\"),\"\"),\"\")","v":""},{"$f":"IFERROR(IF(ВідображатиСвяткові,IF(INDEX(тблСвята[],MATCH(DATE(РікКал,MONTH(F11),DAY(F11)),IF(ВідображатиВихідні,тблСвята[ПЕРЕНЕСЕНО],тблСвята[ДЕНЬ]),0),6),INDEX(тблСвята[],MATCH(DATE(РікКал,MONTH(F11),DAY(F11)),IF(ВідображатиВихідні,тблСвята[ПЕРЕНЕСЕНО],тблСвята[ДЕНЬ]),0),2),\"\"),\"\"),\"\")","v":""},{"$f":"IFERROR(IF(ВідображатиСвяткові,IF(INDEX(тблСвята[],MATCH(DATE(РікКал,MONTH(G11),DAY(G11)),IF(ВідображатиВихідні,тблСвята[ПЕРЕНЕСЕНО],тблСвята[ДЕНЬ]),0),6),INDEX(тблСвята[],MATCH(DATE(РікКал,MONTH(G11),DAY(G11)),IF(ВідображатиВихідні,тблСвята[ПЕРЕНЕСЕНО],тблСвята[ДЕНЬ]),0),2),\"\"),\"\"),\"\")","v":""},{"$f":"IFERROR(IF(ВідображатиСвяткові,IF(INDEX(тблСвята[],MATCH(DATE(РікКал,MONTH(H11),DAY(H11)),IF(ВідображатиВихідні,тблСвята[ПЕРЕНЕСЕНО],тблСвята[ДЕНЬ]),0),6),INDEX(тблСвята[],MATCH(DATE(РікКал,MONTH(H11),DAY(H11)),IF(ВідображатиВихідні,тблСвята[ПЕРЕНЕСЕНО],тблСвята[ДЕНЬ]),0),2),\"\"),\"\"),\"\")","v":""}]
[null,{"$f":"Дні+DATE(РікКал,6,1)-WEEKDAY(DATE(РікКал,6,1),(ПочатокТижня=\"Понеділок\")+1)+29","v":"2018-06-24"},"2018-06-25","2018-06-26","2018-06-27","2018-06-28","2018-06-29","2018-06-30"]
[null,{"$f":"IFERROR(IF(ВідображатиСвяткові,IF(INDEX(тблСвята[],MATCH(DATE(РікКал,MONTH(B13),DAY(B13)),IF(ВідображатиВихідні,тблСвята[ПЕРЕНЕСЕНО],тблСвята[ДЕНЬ]),0),6),INDEX(тблСвята[],MATCH(DATE(РікКал,MONTH(B13),DAY(B13)),IF(ВідображатиВихідні,тблСвята[ПЕРЕНЕСЕНО],тблСвята[ДЕНЬ]),0),2),\"\"),\"\"),\"\")","v":""},{"$f":"IFERROR(IF(ВідображатиСвяткові,IF(INDEX(тблСвята[],MATCH(DATE(РікКал,MONTH(C13),DAY(C13)),IF(ВідображатиВихідні,тблСвята[ПЕРЕНЕСЕНО],тблСвята[ДЕНЬ]),0),6),INDEX(тблСвята[],MATCH(DATE(РікКал,MONTH(C13),DAY(C13)),IF(ВідображатиВихідні,тблСвята[ПЕРЕНЕСЕНО],тблСвята[ДЕНЬ]),0),2),\"\"),\"\"),\"\")","v":""},{"$f":"IFERROR(IF(ВідображатиСвяткові,IF(INDEX(тблСвята[],MATCH(DATE(РікКал,MONTH(D13),DAY(D13)),IF(ВідображатиВихідні,тблСвята[ПЕРЕНЕСЕНО],тблСвята[ДЕНЬ]),0),6),INDEX(тблСвята[],MATCH(DATE(РікКал,MONTH(D13),DAY(D13)),IF(ВідображатиВихідні,тблСвята[ПЕРЕНЕСЕНО],тблСвята[ДЕНЬ]),0),2),\"\"),\"\"),\"\")","v":""},{"$f":"IFERROR(IF(ВідображатиСвяткові,IF(INDEX(тблСвята[],MATCH(DATE(РікКал,MONTH(E13),DAY(E13)),IF(ВідображатиВихідні,тблСвята[ПЕРЕНЕСЕНО],тблСвята[ДЕНЬ]),0),6),INDEX(тблСвята[],MATCH(DATE(РікКал,MONTH(E13),DAY(E13)),IF(ВідображатиВихідні,тблСвята[ПЕРЕНЕСЕНО],тблСвята[ДЕНЬ]),0),2),\"\"),\"\"),\"\")","v":""},{"$f":"IFERROR(IF(ВідображатиСвяткові,IF(INDEX(тблСвята[],MATCH(DATE(РікКал,MONTH(F13),DAY(F13)),IF(ВідображатиВихідні,тблСвята[ПЕРЕНЕСЕНО],тблСвята[ДЕНЬ]),0),6),INDEX(тблСвята[],MATCH(DATE(РікКал,MONTH(F13),DAY(F13)),IF(ВідображатиВихідні,тблСвята[ПЕРЕНЕСЕНО],тблСвята[ДЕНЬ]),0),2),\"\"),\"\"),\"\")","v":""},{"$f":"IFERROR(IF(ВідображатиСвяткові,IF(INDEX(тблСвята[],MATCH(DATE(РікКал,MONTH(G13),DAY(G13)),IF(ВідображатиВихідні,тблСвята[ПЕРЕНЕСЕНО],тблСвята[ДЕНЬ]),0),6),INDEX(тблСвята[],MATCH(DATE(РікКал,MONTH(G13),DAY(G13)),IF(ВідображатиВихідні,тблСвята[ПЕРЕНЕСЕНО],тблСвята[ДЕНЬ]),0),2),\"\"),\"\"),\"\")","v":""},{"$f":"IFERROR(IF(ВідображатиСвяткові,IF(INDEX(тблСвята[],MATCH(DATE(РікКал,MONTH(H13),DAY(H13)),IF(ВідображатиВихідні,тблСвята[ПЕРЕНЕСЕНО],тблСвята[ДЕНЬ]),0),6),INDEX(тблСвята[],MATCH(DATE(РікКал,MONTH(H13),DAY(H13)),IF(ВідображатиВихідні,тблСвята[ПЕРЕНЕСЕНО],тблСвята[ДЕНЬ]),0),2),\"\"),\"\"),\"\")","v":""}]
[null,{"$f":"Дні+DATE(РікКал,6,1)-WEEKDAY(DATE(РікКал,6,1),(ПочатокТижня=\"Понеділок\")+1)+36","v":"2018-07-01"},"2018-07-02","НОТАТКИ"]
[null,{"$f":"IFERROR(IF(ВідображатиСвяткові,IF(INDEX(тблСвята[],MATCH(DATE(РікКал,MONTH(B15),DAY(B15)),IF(ВідображатиВихідні,тблСвята[ПЕРЕНЕСЕНО],тблСвята[ДЕНЬ]),0),6),INDEX(тблСвята[],MATCH(DATE(РікКал,MONTH(B15),DAY(B15)),IF(ВідображатиВихідні,тблСвята[ПЕРЕНЕСЕНО],тблСвята[ДЕНЬ]),0),2),\"\"),\"\"),\"\")","v":""},{"$f":"IFERROR(IF(ВідображатиСвяткові,IF(INDEX(тблСвята[],MATCH(DATE(РікКал,MONTH(C15),DAY(C15)),IF(ВідображатиВихідні,тблСвята[ПЕРЕНЕСЕНО],тблСвята[ДЕНЬ]),0),6),INDEX(тблСвята[],MATCH(DATE(РікКал,MONTH(C15),DAY(C15)),IF(ВідображатиВихідні,тблСвята[ПЕРЕНЕСЕНО],тблСвята[ДЕНЬ]),0),2),\"\"),\"\"),\"\")","v":""}]

{"sheet":"Липень","index":7,"n_rows":16,"n_cols":8,"rows_kept":16,"merged":[[1,1,1,3],[14,3,14,7],[15,3,15,7],[16,1,16,7]]}
[]
[null,{"$f":"B9","v":"2018-07-15"}]
[]
[null,{"$f":"ПочатокТижня","v":"НЕДІЛЯ"},{"$f":"UPPER(TEXT(C5,\"dddd\"))","v":"ПОНЕДІЛОК"},"ВІВТОРОК","СЕРЕДА","ЧЕТВЕР","П'ЯТНИЦЯ","СУБОТА"]
[null,{"$f":"Дні+DATE(РікКал,7,1)-WEEKDAY(DATE(РікКал,7,1),(ПочатокТижня=\"Понеділок\")+1)+1","v":"2018-07-01"},"2018-07-02","2018-07-03","2018-07-04","2018-07-05","2018-07-06","2018-07-07"]
[null,{"$f":"IFERROR(IF(ВідображатиСвяткові,IF(INDEX(тблСвята[],MATCH(DATE(РікКал-(DAY(B5)>15)+(ROW()>6),MONTH(B5),DAY(B5)),IF(ВідображатиВихідні,тблСвята[ПЕРЕНЕСЕНО],тблСвята[ДЕНЬ]),0),6),INDEX(тблСвята[],MATCH(DATE(РікКал-(DAY(B5)>15)+(ROW()>6),MONTH(B5),DAY(B5)),IF(ВідображатиВихідні,тблСвята[ПЕРЕНЕСЕНО],тблСвята[ДЕНЬ]),0),2),\"\"),\"\"),\"\")","v":""},{"$f":"IFERROR(IF(ВідображатиСвяткові,IF(INDEX(тблСвята[],MATCH(DATE(РікКал-(DAY(C5)>15)+(ROW()>6),MONTH(C5),DAY(C5)),IF(ВідображатиВихідні,тблСвята[ПЕРЕНЕСЕНО],тблСвята[ДЕНЬ]),0),6),INDEX(тблСвята[],MATCH(DATE(РікКал-(DAY(C5)>15)+(ROW()>6),MONTH(C5),DAY(C5)),IF(ВідображатиВихідні,тблСвята[ПЕРЕНЕСЕНО],тблСвята[ДЕНЬ]),0),2),\"\"),\"\"),\"\")","v":""},{"$f":"IFERROR(IF(ВідображатиСвяткові,IF(INDEX(тблСвята[],MATCH(DATE(РікКал-(DAY(D5)>15)+(ROW()>6),MONTH(D5),DAY(D5)),IF(ВідображатиВихідні,тблСвята[ПЕРЕНЕСЕНО],тблСвята[ДЕНЬ]),0),6),INDEX(тблСвята[],MATCH(DATE(РікКал-(DAY(D5)>15)+(ROW()>6),MONTH(D5),DAY(D5)),IF(ВідображатиВихідні,тблСвята[ПЕРЕНЕСЕНО],тблСвята[ДЕНЬ]),0),2),\"\"),\"\"),\"\")","v":""},{"$f":"IFERROR(IF(ВідображатиСвяткові,IF(INDEX(тблСвята[],MATCH(DATE(РікКал-(DAY(E5)>15)+(ROW()>6),MONTH(E5),DAY(E5)),IF(ВідображатиВихідні,тблСвята[ПЕРЕНЕСЕНО],тблСвята[ДЕНЬ]),0),6),INDEX(тблСвята[],MATCH(DATE(РікКал-(DAY(E5)>15)+(ROW()>6),MONTH(E5),DAY(E5)),IF(ВідображатиВихідні,тблСвята[ПЕРЕНЕСЕНО],тблСвята[ДЕНЬ]),0),2),\"\"),\"\"),\"\")","v":"День перемоги"},{"$f":"IFERROR(IF(ВідображатиСвяткові,IF(INDEX(тблСвята[],MATCH(DATE(РікКал-(DAY(F5)>15)+(ROW()>6),MONTH(F5),DAY(F5)),IF(ВідображатиВихідні,тблСвята[ПЕРЕНЕСЕНО],тблСвята[ДЕНЬ]),0),6),INDEX(тблСвята[],MATCH(DATE(РікКал-(DAY(F5)>15)+(ROW()>6),MONTH(F5),DAY(F5)),IF(ВідображатиВихідні,тблСвята[ПЕРЕНЕСЕНО],тблСвята[ДЕНЬ]),0),2),\"\"),\"\"),\"\")","v":""},{"$f":"IFERROR(IF(ВідображатиСвяткові,IF(INDEX(тблСвята[],MATCH(DATE(РікКал-(DAY(G5)>15)+(ROW()>6),MONTH(G5),DAY(G5)),IF(ВідображатиВихідні,тблСвята[ПЕРЕНЕСЕНО],тблСвята[ДЕНЬ]),0),6),INDEX(тблСвята[],MATCH(DATE(РікКал-(DAY(G5)>15)+(ROW()>6),MONTH(G5),DAY(G5)),IF(ВідображатиВихідні,тблСвята[ПЕРЕНЕСЕНО],тблСвята[ДЕНЬ]),0),2),\"\"),\"\"),\"\")","v":""},{"$f":"IFERROR(IF(ВідображатиСвяткові,IF(INDEX(тблСвята[],MATCH(DATE(РікКал-(DAY(H5)>15)+(ROW()>6),MONTH(H5),DAY(H5)),IF(ВідображатиВихідні,тблСвята[ПЕРЕНЕСЕНО],тблСвята[ДЕНЬ]),0),6),INDEX(тблСвята[],MATCH(DATE(РікКал-(DAY(H5)>15)+(ROW()>6),MONTH(H5),DAY(H5)),IF(ВідображатиВихідні,тблСвята[ПЕРЕНЕСЕНО],тблСвята[ДЕНЬ]),0),2),\"\"),\"\"),\"\")","v":""}]
[null,{"$f":"Дні+DATE(РікКал,7,1)-WEEKDAY(DATE(РікКал,7,1),(ПочатокТижня=\"Понеділок\")+1)+8","v":"2018-07-08"},"2018-07-09","2018-07-10","2018-07-11","2018-07-12","2018-07-13","2018-07-14"]
[null,{"$f":"IFERROR(IF(ВідображатиСвяткові,IF(INDEX(тблСвята[],MATCH(DATE(РікКал,MONTH(B7),DAY(B7)),IF(ВідображатиВихідні,тблСвята[ПЕРЕНЕСЕНО],тблСвята[ДЕНЬ]),0),6),INDEX(тблСвята[],MATCH(DATE(РікКал,MONTH(B7),DAY(B7)),IF(ВідображатиВихідні,тблСвята[ПЕРЕНЕСЕНО],тблСвята[ДЕНЬ]),0),2),\"\"),\"\"),\"\")","v":""},{"$f":"IFERROR(IF(ВідображатиСвяткові,IF(INDEX(тблСвята[],MATCH(DATE(РікКал,MONTH(C7),DAY(C7)),IF(ВідображатиВихідні,тблСвята[ПЕРЕНЕСЕНО],тблСвята[ДЕНЬ]),0),6),INDEX(тблСвята[],MATCH(DATE(РікКал,MONTH(C7),DAY(C7)),IF(ВідображатиВихідні,тблСвята[ПЕРЕНЕСЕНО],тблСвята[ДЕНЬ]),0),2),\"\"),\"\"),\"\")","v":""},{"$f":"IFERROR(IF(ВідображатиСвяткові,IF(INDEX(тблСвята[],MATCH(DATE(РікКал,MONTH(D7),DAY(D7)),IF(ВідображатиВихідні,тблСвята[ПЕРЕНЕСЕНО],тблСвята[ДЕНЬ]),0),6),INDEX(тблСвята[],MATCH(DATE(РікКал,MONTH(D7),DAY(D7)),IF(ВідображатиВихідні,тблСвята[ПЕРЕНЕСЕНО],тблСвята[ДЕНЬ]),0),2),\"\"),\"\"),\"\")","v":""},{"$f":"IFERROR(IF(ВідображатиСвяткові,IF(INDEX(тблСвята[],MATCH(DATE(РікКал,MONTH(E7),DAY(E7)),IF(ВідображатиВихідні,тблСвята[ПЕРЕНЕСЕНО],тблСвята[ДЕНЬ]),0),6),INDEX(тблСвята[],MATCH(DATE(РікКал,MONTH(E7),DAY(E7)),IF(ВідображатиВихідні,тблСвята[ПЕРЕНЕСЕНО],тблСвята[ДЕНЬ]),0),2),\"\"),\"\"),\"\")","v":""},{"$f":"IFERROR(IF(ВідображатиСвяткові,IF(INDEX(тблСвята[],MATCH(DATE(РікКал,MONTH(F7),DAY(F7)),IF(ВідображатиВихідні,тблСвята[ПЕРЕНЕСЕНО],тблСвята[ДЕНЬ]),0),6),INDEX(тблСвята[],MATCH(DATE(РікКал,MONTH(F7),DAY(F7)),IF(ВідображатиВихідні,тблСвята[ПЕРЕНЕСЕНО],тблСвята[ДЕНЬ]),0),2),\"\"),\"\"),\"\")","v":""},{"$f":"IFERROR(IF(ВідображатиСвяткові,IF(INDEX(тблСвята[],MATCH(DATE(РікКал,MONTH(G7),DAY(G7)),IF(ВідображатиВихідні,тблСвята[ПЕРЕНЕСЕНО],тблСвята[ДЕНЬ]),0),6),INDEX(тблСвята[],MATCH(DATE(РікКал,MONTH(G7),DAY(G7)),IF(ВідображатиВихідні,тблСвята[ПЕРЕНЕСЕНО],тблСвята[ДЕНЬ]),0),2),\"\"),\"\"),\"\")","v":""},{"$f":"IFERROR(IF(ВідображатиСвяткові,IF(INDEX(тблСвята[],MATCH(DATE(РікКал,MONTH(H7),DAY(H7)),IF(ВідображатиВихідні,тблСвята[ПЕРЕНЕСЕНО],тблСвята[ДЕНЬ]),0),6),INDEX(тблСвята[],MATCH(DATE(РікКал,MONTH(H7),DAY(H7)),IF(ВідображатиВихідні,тблСвята[ПЕРЕНЕСЕНО],тблСвята[ДЕНЬ]),0),2),\"\"),\"\"),\"\")","v":""}]
[null,{"$f":"Дні+DATE(РікКал,7,1)-WEEKDAY(DATE(РікКал,7,1),(ПочатокТижня=\"Понеділок\")+1)+15","v":"2018-07-15"},"2018-07-16","2018-07-17","2018-07-18","2018-07-19","2018-07-20","2018-07-21"]
[null,{"$f":"IFERROR(IF(ВідображатиСвяткові,IF(INDEX(тблСвята[],MATCH(DATE(РікКал,MONTH(B9),DAY(B9)),IF(ВідображатиВихідні,тблСвята[ПЕРЕНЕСЕНО],тблСвята[ДЕНЬ]),0),6),INDEX(тблСвята[],MATCH(DATE(РікКал,MONTH(B9),DAY(B9)),IF(ВідображатиВихідні,тблСвята[ПЕРЕНЕСЕНО],тблСвята[ДЕНЬ]),0),2),\"\"),\"\"),\"\")","v":""},{"$f":"IFERROR(IF(ВідображатиСвяткові,IF(INDEX(тблСвята[],MATCH(DATE(РікКал,MONTH(C9),DAY(C9)),IF(ВідображатиВихідні,тблСвята[ПЕРЕНЕСЕНО],тблСвята[ДЕНЬ]),0),6),INDEX(тблСвята[],MATCH(DATE(РікКал,MONTH(C9),DAY(C9)),IF(ВідображатиВихідні,тблСвята[ПЕРЕНЕСЕНО],тблСвята[ДЕНЬ]),0),2),\"\"),\"\"),\"\")","v":""},{"$f":"IFERROR(IF(ВідображатиСвяткові,IF(INDEX(тблСвята[],MATCH(DATE(РікКал,MONTH(D9),DAY(D9)),IF(ВідображатиВихідні,тблСвята[ПЕРЕНЕСЕНО],тблСвята[ДЕНЬ]),0),6),INDEX(тблСвята[],MATCH(DATE(РікКал,MONTH(D9),DAY(D9)),IF(ВідображатиВихідні,тблСвята[ПЕРЕНЕСЕНО],тблСвята[ДЕНЬ]),0),2),\"\"),\"\"),\"\")","v":""},{"$f":"IFERROR(IF(ВідображатиСвяткові,IF(INDEX(тблСвята[],MATCH(DATE(РікКал,MONTH(E9),DAY(E9)),IF(ВідображатиВихідні,тблСвята[ПЕРЕНЕСЕНО],тблСвята[ДЕНЬ]),0),6),INDEX(тблСвята[],MATCH(DATE(РікКал,MONTH(E9),DAY(E9)),IF(ВідображатиВихідні,тблСвята[ПЕРЕНЕСЕНО],тблСвята[ДЕНЬ]),0),2),\"\"),\"\"),\"\")","v":""},{"$f":"IFERROR(IF(ВідображатиСвяткові,IF(INDEX(тблСвята[],MATCH(DATE(РікКал,MONTH(F9),DAY(F9)),IF(ВідображатиВихідні,тблСвята[ПЕРЕНЕСЕНО],тблСвята[ДЕНЬ]),0),6),INDEX(тблСвята[],MATCH(DATE(РікКал,MONTH(F9),DAY(F9)),IF(ВідображатиВихідні,тблСвята[ПЕРЕНЕСЕНО],тблСвята[ДЕНЬ]),0),2),\"\"),\"\"),\"\")","v":""},{"$f":"IFERROR(IF(ВідображатиСвяткові,IF(INDEX(тблСвята[],MATCH(DATE(РікКал,MONTH(G9),DAY(G9)),IF(ВідображатиВихідні,тблСвята[ПЕРЕНЕСЕНО],тблСвята[ДЕНЬ]),0),6),INDEX(тблСвята[],MATCH(DATE(РікКал,MONTH(G9),DAY(G9)),IF(ВідображатиВихідні,тблСвята[ПЕРЕНЕСЕНО],тблСвята[ДЕНЬ]),0),2),\"\"),\"\"),\"\")","v":""},{"$f":"IFERROR(IF(ВідображатиСвяткові,IF(INDEX(тблСвята[],MATCH(DATE(РікКал,MONTH(H9),DAY(H9)),IF(ВідображатиВихідні,тблСвята[ПЕРЕНЕСЕНО],тблСвята[ДЕНЬ]),0),6),INDEX(тблСвята[],MATCH(DATE(РікКал,MONTH(H9),DAY(H9)),IF(ВідображатиВихідні,тблСвята[ПЕРЕНЕСЕНО],тблСвята[ДЕНЬ]),0),2),\"\"),\"\"),\"\")","v":""}]
[null,{"$f":"Дні+DATE(РікКал,7,1)-WEEKDAY(DATE(РікКал,7,1),(ПочатокТижня=\"Понеділок\")+1)+22","v":"2018-07-22"},"2018-07-23","2018-07-24","2018-07-25","2018-07-26","2018-07-27","2018-07-28"]
[null,{"$f":"IFERROR(IF(ВідображатиСвяткові,IF(INDEX(тблСвята[],MATCH(DATE(РікКал,MONTH(B11),DAY(B11)),IF(ВідображатиВихідні,тблСвята[ПЕРЕНЕСЕНО],тблСвята[ДЕНЬ]),0),6),INDEX(тблСвята[],MATCH(DATE(РікКал,MONTH(B11),DAY(B11)),IF(ВідображатиВихідні,тблСвята[ПЕРЕНЕСЕНО],тблСвята[ДЕНЬ]),0),2),\"\"),\"\"),\"\")","v":""},{"$f":"IFERROR(IF(ВідображатиСвяткові,IF(INDEX(тблСвята[],MATCH(DATE(РікКал,MONTH(C11),DAY(C11)),IF(ВідображатиВихідні,тблСвята[ПЕРЕНЕСЕНО],тблСвята[ДЕНЬ]),0),6),INDEX(тблСвята[],MATCH(DATE(РікКал,MONTH(C11),DAY(C11)),IF(ВідображатиВихідні,тблСвята[ПЕРЕНЕСЕНО],тблСвята[ДЕНЬ]),0),2),\"\"),\"\"),\"\")","v":""},{"$f":"IFERROR(IF(ВідображатиСвяткові,IF(INDEX(тблСвята[],MATCH(DATE(РікКал,MONTH(D11),DAY(D11)),IF(ВідображатиВихідні,тблСвята[ПЕРЕНЕСЕНО],тблСвята[ДЕНЬ]),0),6),INDEX(тблСвята[],MATCH(DATE(РікКал,MONTH(D11),DAY(D11)),IF(ВідображатиВихідні,тблСвята[ПЕРЕНЕСЕНО],тблСвята[ДЕНЬ]),0),2),\"\"),\"\"),\"\")","v":""},{"$f":"IFERROR(IF(ВідображатиСвяткові,IF(INDEX(тблСвята[],MATCH(DATE(РікКал,MONTH(E11),DAY(E11)),IF(ВідображатиВихідні,тблСвята[ПЕРЕНЕСЕНО],тблСвята[ДЕНЬ]),0),6),INDEX(тблСвята[],MATCH(DATE(РікКал,MONTH(E11),DAY(E11)),IF(ВідображатиВихідні,тблСвята[ПЕРЕНЕСЕНО],тблСвята[ДЕНЬ]),0),2),\"\"),\"\"),\"\")","v":""},{"$f":"IFERROR(IF(ВідображатиСвяткові,IF(INDEX(тблСвята[],MATCH(DATE(РікКал,MONTH(F11),DAY(F11)),IF(ВідображатиВихідні,тблСвята[ПЕРЕНЕСЕНО],тблСвята[ДЕНЬ]),0),6),INDEX(тблСвята[],MATCH(DATE(РікКал,MONTH(F11),DAY(F11)),IF(ВідображатиВихідні,тблСвята[ПЕРЕНЕСЕНО],тблСвята[ДЕНЬ]),0),2),\"\"),\"\"),\"\")","v":""},{"$f":"IFERROR(IF(ВідображатиСвяткові,IF(INDEX(тблСвята[],MATCH(DATE(РікКал,MONTH(G11),DAY(G11)),IF(ВідображатиВихідні,тблСвята[ПЕРЕНЕСЕНО],тблСвята[ДЕНЬ]),0),6),INDEX(тблСвята[],MATCH(DATE(РікКал,MONTH(G11),DAY(G11)),IF(ВідображатиВихідні,тблСвята[ПЕРЕНЕСЕНО],тблСвята[ДЕНЬ]),0),2),\"\"),\"\"),\"\")","v":""},{"$f":"IFERROR(IF(ВідображатиСвяткові,IF(INDEX(тблСвята[],MATCH(DATE(РікКал,MONTH(H11),DAY(H11)),IF(ВідображатиВихідні,тблСвята[ПЕРЕНЕСЕНО],тблСвята[ДЕНЬ]),0),6),INDEX(тблСвята[],MATCH(DATE(РікКал,MONTH(H11),DAY(H11)),IF(ВідображатиВихідні,тблСвята[ПЕРЕНЕСЕНО],тблСвята[ДЕНЬ]),0),2),\"\"),\"\"),\"\")","v":""}]
[null,{"$f":"Дні+DATE(РікКал,7,1)-WEEKDAY(DATE(РікКал,7,1),(ПочатокТижня=\"Понеділок\")+1)+29","v":"2018-07-29"},"2018-07-30","2018-07-31","2018-08-01","2018-08-02","2018-08-03","2018-08-04"]
[null,{"$f":"IFERROR(IF(ВідображатиСвяткові,IF(INDEX(тблСвята[],MATCH(DATE(РікКал,MONTH(B13),DAY(B13)),IF(ВідображатиВихідні,тблСвята[ПЕРЕНЕСЕНО],тблСвята[ДЕНЬ]),0),6),INDEX(тблСвята[],MATCH(DATE(РікКал,MONTH(B13),DAY(B13)),IF(ВідображатиВихідні,тблСвята[ПЕРЕНЕСЕНО],тблСвята[ДЕНЬ]),0),2),\"\"),\"\"),\"\")","v":""},{"$f":"IFERROR(IF(ВідображатиСвяткові,IF(INDEX(тблСвята[],MATCH(DATE(РікКал,MONTH(C13),DAY(C13)),IF(ВідображатиВихідні,тблСвята[ПЕРЕНЕСЕНО],тблСвята[ДЕНЬ]),0),6),INDEX(тблСвята[],MATCH(DATE(РікКал,MONTH(C13),DAY(C13)),IF(ВідображатиВихідні,тблСвята[ПЕРЕНЕСЕНО],тблСвята[ДЕНЬ]),0),2),\"\"),\"\"),\"\")","v":""},{"$f":"IFERROR(IF(ВідображатиСвяткові,IF(INDEX(тблСвята[],MATCH(DATE(РікКал,MONTH(D13),DAY(D13)),IF(ВідображатиВихідні,тблСвята[ПЕРЕНЕСЕНО],тблСвята[ДЕНЬ]),0),6),INDEX(тблСвята[],MATCH(DATE(РікКал,MONTH(D13),DAY(D13)),IF(ВідображатиВихідні,тблСвята[ПЕРЕНЕСЕНО],тблСвята[ДЕНЬ]),0),2),\"\"),\"\"),\"\")","v":""},{"$f":"IFERROR(IF(ВідображатиСвяткові,IF(INDEX(тблСвята[],MATCH(DATE(РікКал,MONTH(E13),DAY(E13)),IF(ВідображатиВихідні,тблСвята[ПЕРЕНЕСЕНО],тблСвята[ДЕНЬ]),0),6),INDEX(тблСвята[],MATCH(DATE(РікКал,MONTH(E13),DAY(E13)),IF(ВідображатиВихідні,тблСвята[ПЕРЕНЕСЕНО],тблСвята[ДЕНЬ]),0),2),\"\"),\"\"),\"\")","v":""},{"$f":"IFERROR(IF(ВідображатиСвяткові,IF(INDEX(тблСвята[],MATCH(DATE(РікКал,MONTH(F13),DAY(F13)),IF(ВідображатиВихідні,тблСвята[ПЕРЕНЕСЕНО],тблСвята[ДЕНЬ]),0),6),INDEX(тблСвята[],MATCH(DATE(РікКал,MONTH(F13),DAY(F13)),IF(ВідображатиВихідні,тблСвята[ПЕРЕНЕСЕНО],тблСвята[ДЕНЬ]),0),2),\"\"),\"\"),\"\")","v":""},{"$f":"IFERROR(IF(ВідображатиСвяткові,IF(INDEX(тблСвята[],MATCH(DATE(РікКал,MONTH(G13),DAY(G13)),IF(ВідображатиВихідні,тблСвята[ПЕРЕНЕСЕНО],тблСвята[ДЕНЬ]),0),6),INDEX(тблСвята[],MATCH(DATE(РікКал,MONTH(G13),DAY(G13)),IF(ВідображатиВихідні,тблСвята[ПЕРЕНЕСЕНО],тблСвята[ДЕНЬ]),0),2),\"\"),\"\"),\"\")","v":""},{"$f":"IFERROR(IF(ВідображатиСвяткові,IF(INDEX(тблСвята[],MATCH(DATE(РікКал,MONTH(H13),DAY(H13)),IF(ВідображатиВихідні,тблСвята[ПЕРЕНЕСЕНО],тблСвята[ДЕНЬ]),0),6),INDEX(тблСвята[],MATCH(DATE(РікКал,MONTH(H13),DAY(H13)),IF(ВідображатиВихідні,тблСвята[ПЕРЕНЕСЕНО],тблСвята[ДЕНЬ]),0),2),\"\"),\"\"),\"\")","v":""}]
[null,{"$f":"Дні+DATE(РікКал,7,1)-WEEKDAY(DATE(РікКал,7,1),(ПочатокТижня=\"Понеділок\")+1)+36","v":"2018-08-05"},"2018-08-06","НОТАТКИ"]
[null,{"$f":"IFERROR(IF(ВідображатиСвяткові,IF(INDEX(тблСвята[],MATCH(DATE(РікКал,MONTH(B15),DAY(B15)),IF(ВідображатиВихідні,тблСвята[ПЕРЕНЕСЕНО],тблСвята[ДЕНЬ]),0),6),INDEX(тблСвята[],MATCH(DATE(РікКал,MONTH(B15),DAY(B15)),IF(ВідображатиВихідні,тблСвята[ПЕРЕНЕСЕНО],тблСвята[ДЕНЬ]),0),2),\"\"),\"\"),\"\")","v":""},{"$f":"IFERROR(IF(ВідображатиСвяткові,IF(INDEX(тблСвята[],MATCH(DATE(РікКал,MONTH(C15),DAY(C15)),IF(ВідображатиВихідні,тблСвята[ПЕРЕНЕСЕНО],тблСвята[ДЕНЬ]),0),6),INDEX(тблСвята[],MATCH(DATE(РікКал,MONTH(C15),DAY(C15)),IF(ВідображатиВихідні,тблСвята[ПЕРЕНЕСЕНО],тблСвята[ДЕНЬ]),0),2),\"\"),\"\"),\"\")","v":""}]

{"sheet":"Серпень","index":8,"n_rows":16,"n_cols":8,"rows_kept":16,"merged":[[1,1,1,3],[14,3,14,7],[15,3,15,7],[16,1,16,7]]}
[]
[null,{"$f":"B9","v":"2018-08-12"}]
[]
[null,{"$f":"ПочатокТижня","v":"НЕДІЛЯ"},{"$f":"UPPER(TEXT(C5,\"dddd\"))","v":"ПОНЕДІЛОК"},"ВІВТОРОК","СЕРЕДА","ЧЕТВЕР","П'ЯТНИЦЯ","СУБОТА"]
[null,{"$f":"Дні+DATE(РікКал,8,1)-WEEKDAY(DATE(РікКал,8,1),(ПочатокТижня=\"Понеділок\")+1)+1","v":"2018-07-29"},"2018-07-30","2018-07-31","2018-08-01","2018-08-02","2018-08-03","2018-08-04"]
[null,{"$f":"IFERROR(IF(ВідображатиСвяткові,IF(INDEX(тблСвята[],MATCH(DATE(РікКал-(DAY(B5)>15)+(ROW()>6),MONTH(B5),DAY(B5)),IF(ВідображатиВихідні,тблСвята[ПЕРЕНЕСЕНО],тблСвята[ДЕНЬ]),0),6),INDEX(тблСвята[],MATCH(DATE(РікКал-(DAY(B5)>15)+(ROW()>6),MONTH(B5),DAY(B5)),IF(ВідображатиВихідні,тблСвята[ПЕРЕНЕСЕНО],тблСвята[ДЕНЬ]),0),2),\"\"),\"\"),\"\")","v":""},{"$f":"IFERROR(IF(ВідображатиСвяткові,IF(INDEX(тблСвята[],MATCH(DATE(РікКал-(DAY(C5)>15)+(ROW()>6),MONTH(C5),DAY(C5)),IF(ВідображатиВихідні,тблСвята[ПЕРЕНЕСЕНО],тблСвята[ДЕНЬ]),0),6),INDEX(тблСвята[],MATCH(DATE(РікКал-(DAY(C5)>15)+(ROW()>6),MONTH(C5),DAY(C5)),IF(ВідображатиВихідні,тблСвята[ПЕРЕНЕСЕНО],тблСвята[ДЕНЬ]),0),2),\"\"),\"\"),\"\")","v":""},{"$f":"IFERROR(IF(ВідображатиСвяткові,IF(INDEX(тблСвята[],MATCH(DATE(РікКал-(DAY(D5)>15)+(ROW()>6),MONTH(D5),DAY(D5)),IF(ВідображатиВихідні,тблСвята[ПЕРЕНЕСЕНО],тблСвята[ДЕНЬ]),0),6),INDEX(тблСвята[],MATCH(DATE(РікКал-(DAY(D5)>15)+(ROW()>6),MONTH(D5),DAY(D5)),IF(ВідображатиВихідні,тблСвята[ПЕРЕНЕСЕНО],тблСвята[ДЕНЬ]),0),2),\"\"),\"\"),\"\")","v":""},{"$f":"IFERROR(IF(ВідображатиСвяткові,IF(INDEX(тблСвята[],MATCH(DATE(РікКал-(DAY(E5)>15)+(ROW()>6),MONTH(E5),DAY(E5)),IF(ВідображатиВихідні,тблСвята[ПЕРЕНЕСЕНО],тблСвята[ДЕНЬ]),0),6),INDEX(тблСвята[],MATCH(DATE(РікКал-(DAY(E5)>15)+(ROW()>6),MONTH(E5),DAY(E5)),IF(ВідображатиВихідні,тблСвята[ПЕРЕНЕСЕНО],тблСвята[ДЕНЬ]),0),2),\"\"),\"\"),\"\")","v":""},{"$f":"IFERROR(IF(ВідображатиСвяткові,IF(INDEX(тблСвята[],MATCH(DATE(РікКал-(DAY(F5)>15)+(ROW()>6),MONTH(F5),DAY(F5)),IF(ВідображатиВихідні,тблСвята[ПЕРЕНЕСЕНО],тблСвята[ДЕНЬ]),0),6),INDEX(тблСвята[],MATCH(DATE(РікКал-(DAY(F5)>15)+(ROW()>6),MONTH(F5),DAY(F5)),IF(ВідображатиВихідні,тблСвята[ПЕРЕНЕСЕНО],тблСвята[ДЕНЬ]),0),2),\"\"),\"\"),\"\")","v":""},{"$f":"IFERROR(IF(ВідображатиСвяткові,IF(INDEX(тблСвята[],MATCH(DATE(РікКал-(DAY(G5)>15)+(ROW()>6),MONTH(G5),DAY(G5)),IF(ВідображатиВихідні,тблСвята[ПЕРЕНЕСЕНО],тблСвята[ДЕНЬ]),0),6),INDEX(тблСвята[],MATCH(DATE(РікКал-(DAY(G5)>15)+(ROW()>6),MONTH(G5),DAY(G5)),IF(ВідображатиВихідні,тблСвята[ПЕРЕНЕСЕНО],тблСвята[ДЕНЬ]),0),2),\"\"),\"\"),\"\")","v":""},{"$f":"IFERROR(IF(ВідображатиСвяткові,IF(INDEX(тблСвята[],MATCH(DATE(РікКал-(DAY(H5)>15)+(ROW()>6),MONTH(H5),DAY(H5)),IF(ВідображатиВихідні,тблСвята[ПЕРЕНЕСЕНО],тблСвята[ДЕНЬ]),0),6),INDEX(тблСвята[],MATCH(DATE(РікКал-(DAY(H5)>15)+(ROW()>6),MONTH(H5),DAY(H5)),IF(ВідображатиВихідні,тблСвята[ПЕРЕНЕСЕНО],тблСвята[ДЕНЬ]),0),2),\"\"),\"\"),\"\")","v":""}]
[null,{"$f":"Дні+DATE(РікКал,8,1)-WEEKDAY(DATE(РікКал,8,1),(ПочатокТижня=\"Понеділок\")+1)+8","v":"2018-08-05"},"2018-08-06","2018-08-07","2018-08-08","2018-08-09","2018-08-10","2018-08-11"]
[null,{"$f":"IFERROR(IF(ВідображатиСвяткові,IF(INDEX(тблСвята[],MATCH(DATE(РікКал,MONTH(B7),DAY(B7)),IF(ВідображатиВихідні,тблСвята[ПЕРЕНЕСЕНО],тблСвята[ДЕНЬ]),0),6),INDEX(тблСвята[],MATCH(DATE(РікКал,MONTH(B7),DAY(B7)),IF(ВідображатиВихідні,тблСвята[ПЕРЕНЕСЕНО],тблСвята[ДЕНЬ]),0),2),\"\"),\"\"),\"\")","v":""},{"$f":"IFERROR(IF(ВідображатиСвяткові,IF(INDEX(тблСвята[],MATCH(DATE(РікКал,MONTH(C7),DAY(C7)),IF(ВідображатиВихідні,тблСвята[ПЕРЕНЕСЕНО],тблСвята[ДЕНЬ]),0),6),INDEX(тблСвята[],MATCH(DATE(РікКал,MONTH(C7),DAY(C7)),IF(ВідображатиВихідні,тблСвята[ПЕРЕНЕСЕНО],тблСвята[ДЕНЬ]),0),2),\"\"),\"\"),\"\")","v":""},{"$f":"IFERROR(IF(ВідображатиСвяткові,IF(INDEX(тблСвята[],MATCH(DATE(РікКал,MONTH(D7),DAY(D7)),IF(ВідображатиВихідні,тблСвята[ПЕРЕНЕСЕНО],тблСвята[ДЕНЬ]),0),6),INDEX(тблСвята[],MATCH(DATE(РікКал,MONTH(D7),DAY(D7)),IF(ВідображатиВихідні,тблСвята[ПЕРЕНЕСЕНО],тблСвята[ДЕНЬ]),0),2),\"\"),\"\"),\"\")","v":""},{"$f":"IFERROR(IF(ВідображатиСвяткові,IF(INDEX(тблСвята[],MATCH(DATE(РікКал,MONTH(E7),DAY(E7)),IF(ВідображатиВихідні,тблСвята[ПЕРЕНЕСЕНО],тблСвята[ДЕНЬ]),0),6),INDEX(тблСвята[],MATCH(DATE(РікКал,MONTH(E7),DAY(E7)),IF(ВідображатиВихідні,тблСвята[ПЕРЕНЕСЕНО],тблСвята[ДЕНЬ]),0),2),\"\"),\"\"),\"\")","v":""},{"$f":"IFERROR(IF(ВідображатиСвяткові,IF(INDEX(тблСвята[],MATCH(DATE(РікКал,MONTH(F7),DAY(F7)),IF(ВідображатиВихідні,тблСвята[ПЕРЕНЕСЕНО],тблСвята[ДЕНЬ]),0),6),INDEX(тблСвята[],MATCH(DATE(РікКал,MONTH(F7),DAY(F7)),IF(ВідображатиВихідні,тблСвята[ПЕРЕНЕСЕНО],тблСвята[ДЕНЬ]),0),2),\"\"),\"\"),\"\")","v":""},{"$f":"IFERROR(IF(ВідображатиСвяткові,IF(INDEX(тблСвята[],MATCH(DATE(РікКал,MONTH(G7),DAY(G7)),IF(ВідображатиВихідні,тблСвята[ПЕРЕНЕСЕНО],тблСвята[ДЕНЬ]),0),6),INDEX(тблСвята[],MATCH(DATE(РікКал,MONTH(G7),DAY(G7)),IF(ВідображатиВихідні,тблСвята[ПЕРЕНЕСЕНО],тблСвята[ДЕНЬ]),0),2),\"\"),\"\"),\"\")","v":""},{"$f":"IFERROR(IF(ВідображатиСвяткові,IF(INDEX(тблСвята[],MATCH(DATE(РікКал,MONTH(H7),DAY(H7)),IF(ВідображатиВихідні,тблСвята[ПЕРЕНЕСЕНО],тблСвята[ДЕНЬ]),0),6),INDEX(тблСвята[],MATCH(DATE(РікКал,MONTH(H7),DAY(H7)),IF(ВідображатиВихідні,тблСвята[ПЕРЕНЕСЕНО],тблСвята[ДЕНЬ]),0),2),\"\"),\"\"),\"\")","v":""}]
[null,{"$f":"Дні+DATE(РікКал,8,1)-WEEKDAY(DATE(РікКал,8,1),(ПочатокТижня=\"Понеділок\")+1)+15","v":"2018-08-12"},"2018-08-13","2018-08-14","2018-08-15","2018-08-16","2018-08-17","2018-08-18"]
[null,{"$f":"IFERROR(IF(ВідображатиСвяткові,IF(INDEX(тблСвята[],MATCH(DATE(РікКал,MONTH(B9),DAY(B9)),IF(ВідображатиВихідні,тблСвята[ПЕРЕНЕСЕНО],тблСвята[ДЕНЬ]),0),6),INDEX(тблСвята[],MATCH(DATE(РікКал,MONTH(B9),DAY(B9)),IF(ВідображатиВихідні,тблСвята[ПЕРЕНЕСЕНО],тблСвята[ДЕНЬ]),0),2),\"\"),\"\"),\"\")","v":""},{"$f":"IFERROR(IF(ВідображатиСвяткові,IF(INDEX(тблСвята[],MATCH(DATE(РікКал,MONTH(C9),DAY(C9)),IF(ВідображатиВихідні,тблСвята[ПЕРЕНЕСЕНО],тблСвята[ДЕНЬ]),0),6),INDEX(тблСвята[],MATCH(DATE(РікКал,MONTH(C9),DAY(C9)),IF(ВідображатиВихідні,тблСвята[ПЕРЕНЕСЕНО],тблСвята[ДЕНЬ]),0),2),\"\"),\"\"),\"\")","v":""},{"$f":"IFERROR(IF(ВідображатиСвяткові,IF(INDEX(тблСвята[],MATCH(DATE(РікКал,MONTH(D9),DAY(D9)),IF(ВідображатиВихідні,тблСвята[ПЕРЕНЕСЕНО],тблСвята[ДЕНЬ]),0),6),INDEX(тблСвята[],MATCH(DATE(РікКал,MONTH(D9),DAY(D9)),IF(ВідображатиВихідні,тблСвята[ПЕРЕНЕСЕНО],тблСвята[ДЕНЬ]),0),2),\"\"),\"\"),\"\")","v":""},{"$f":"IFERROR(IF(ВідображатиСвяткові,IF(INDEX(тблСвята[],MATCH(DATE(РікКал,MONTH(E9),DAY(E9)),IF(ВідображатиВихідні,тблСвята[ПЕРЕНЕСЕНО],тблСвята[ДЕНЬ]),0),6),INDEX(тблСвята[],MATCH(DATE(РікКал,MONTH(E9),DAY(E9)),IF(ВідображатиВихідні,тблСвята[ПЕРЕНЕСЕНО],тблСвята[ДЕНЬ]),0),2),\"\"),\"\"),\"\")","v":""},{"$f":"IFERROR(IF(ВідображатиСвяткові,IF(INDEX(тблСвята[],MATCH(DATE(РікКал,MONTH(F9),DAY(F9)),IF(ВідображатиВихідні,тблСвята[ПЕРЕНЕСЕНО],тблСвята[ДЕНЬ]),0),6),INDEX(тблСвята[],MATCH(DATE(РікКал,MONTH(F9),DAY(F9)),IF(ВідображатиВихідні,тблСвята[ПЕРЕНЕСЕНО],тблСвята[ДЕНЬ]),0),2),\"\"),\"\"),\"\")","v":""},{"$f":"IFERROR(IF(ВідображатиСвяткові,IF(INDEX(тблСвята[],MATCH(DATE(РікКал,MONTH(G9),DAY(G9)),IF(ВідображатиВихідні,тблСвята[ПЕРЕНЕСЕНО],тблСвята[ДЕНЬ]),0),6),INDEX(тблСвята[],MATCH(DATE(РікКал,MONTH(G9),DAY(G9)),IF(ВідображатиВихідні,тблСвята[ПЕРЕНЕСЕНО],тблСвята[ДЕНЬ]),0),2),\"\"),\"\"),\"\")","v":""},{"$f":"IFERROR(IF(ВідображатиСвяткові,IF(INDEX(тблСвята[],MATCH(DATE(РікКал,MONTH(H9),DAY(H9)),IF(ВідображатиВихідні,тблСвята[ПЕРЕНЕСЕНО],тблСвята[ДЕНЬ]),0),6),INDEX(тблСвята[],MATCH(DATE(РікКал,MONTH(H9),DAY(H9)),IF(ВідображатиВихідні,тблСвята[ПЕРЕНЕСЕНО],тблСвята[ДЕНЬ]),0),2),\"\"),\"\"),\"\")","v":""}]
[null,{"$f":"Дні+DATE(РікКал,8,1)-WEEKDAY(DATE(РікКал,8,1),(ПочатокТижня=\"Понеділок\")+1)+22","v":"2018-08-19"},"2018-08-20","2018-08-21","2018-08-22","2018-08-23","2018-08-24","2018-08-25"]
[null,{"$f":"IFERROR(IF(ВідображатиСвяткові,IF(INDEX(тблСвята[],MATCH(DATE(РікКал,MONTH(B11),DAY(B11)),IF(ВідображатиВихідні,тблСвята[ПЕРЕНЕСЕНО],тблСвята[ДЕНЬ]),0),6),INDEX(тблСвята[],MATCH(DATE(РікКал,MONTH(B11),DAY(B11)),IF(ВідображатиВихідні,тблСвята[ПЕРЕНЕСЕНО],тблСвята[ДЕНЬ]),0),2),\"\"),\"\"),\"\")","v":""},{"$f":"IFERROR(IF(ВідображатиСвяткові,IF(INDEX(тблСвята[],MATCH(DATE(РікКал,MONTH(C11),DAY(C11)),IF(ВідображатиВихідні,тблСвята[ПЕРЕНЕСЕНО],тблСвята[ДЕНЬ]),0),6),INDEX(тблСвята[],MATCH(DATE(РікКал,MONTH(C11),DAY(C11)),IF(ВідображатиВихідні,тблСвята[ПЕРЕНЕСЕНО],тблСвята[ДЕНЬ]),0),2),\"\"),\"\"),\"\")","v":""},{"$f":"IFERROR(IF(ВідображатиСвяткові,IF(INDEX(тблСвята[],MATCH(DATE(РікКал,MONTH(D11),DAY(D11)),IF(ВідображатиВихідні,тблСвята[ПЕРЕНЕСЕНО],тблСвята[ДЕНЬ]),0),6),INDEX(тблСвята[],MATCH(DATE(РікКал,MONTH(D11),DAY(D11)),IF(ВідображатиВихідні,тблСвята[ПЕРЕНЕСЕНО],тблСвята[ДЕНЬ]),0),2),\"\"),\"\"),\"\")","v":""},{"$f":"IFERROR(IF(ВідображатиСвяткові,IF(INDEX(тблСвята[],MATCH(DATE(РікКал,MONTH(E11),DAY(E11)),IF(ВідображатиВихідні,тблСвята[ПЕРЕНЕСЕНО],тблСвята[ДЕНЬ]),0),6),INDEX(тблСвята[],MATCH(DATE(РікКал,MONTH(E11),DAY(E11)),IF(ВідображатиВихідні,тблСвята[ПЕРЕНЕСЕНО],тблСвята[ДЕНЬ]),0),2),\"\"),\"\"),\"\")","v":""},{"$f":"IFERROR(IF(ВідображатиСвяткові,IF(INDEX(тблСвята[],MATCH(DATE(РікКал,MONTH(F11),DAY(F11)),IF(ВідображатиВихідні,тблСвята[ПЕРЕНЕСЕНО],тблСвята[ДЕНЬ]),0),6),INDEX(тблСвята[],MATCH(DATE(РікКал,MONTH(F11),DAY(F11)),IF(ВідображатиВихідні,тблСвята[ПЕРЕНЕСЕНО],тблСвята[ДЕНЬ]),0),2),\"\"),\"\"),\"\")","v":""},{"$f":"IFERROR(IF(ВідображатиСвяткові,IF(INDEX(тблСвята[],MATCH(DATE(РікКал,MONTH(G11),DAY(G11)),IF(ВідображатиВихідні,тблСвята[ПЕРЕНЕСЕНО],тблСвята[ДЕНЬ]),0),6),INDEX(тблСвята[],MATCH(DATE(РікКал,MONTH(G11),DAY(G11)),IF(ВідображатиВихідні,тблСвята[ПЕРЕНЕСЕНО],тблСвята[ДЕНЬ]),0),2),\"\"),\"\"),\"\")","v":""},{"$f":"IFERROR(IF(ВідображатиСвяткові,IF(INDEX(тблСвята[],MATCH(DATE(РікКал,MONTH(H11),DAY(H11)),IF(ВідображатиВихідні,тблСвята[ПЕРЕНЕСЕНО],тблСвята[ДЕНЬ]),0),6),INDEX(тблСвята[],MATCH(DATE(РікКал,MONTH(H11),DAY(H11)),IF(ВідображатиВихідні,тблСвята[ПЕРЕНЕСЕНО],тблСвята[ДЕНЬ]),0),2),\"\"),\"\"),\"\")","v":""}]
[null,{"$f":"Дні+DATE(РікКал,8,1)-WEEKDAY(DATE(РікКал,8,1),(ПочатокТижня=\"Понеділок\")+1)+29","v":"2018-08-26"},"2018-08-27","2018-08-28","2018-08-29","2018-08-30","2018-08-31","2018-09-01"]
[null,{"$f":"IFERROR(IF(ВідображатиСвяткові,IF(INDEX(тблСвята[],MATCH(DATE(РікКал,MONTH(B13),DAY(B13)),IF(ВідображатиВихідні,тблСвята[ПЕРЕНЕСЕНО],тблСвята[ДЕНЬ]),0),6),INDEX(тблСвята[],MATCH(DATE(РікКал,MONTH(B13),DAY(B13)),IF(ВідображатиВихідні,тблСвята[ПЕРЕНЕСЕНО],тблСвята[ДЕНЬ]),0),2),\"\"),\"\"),\"\")","v":""},{"$f":"IFERROR(IF(ВідображатиСвяткові,IF(INDEX(тблСвята[],MATCH(DATE(РікКал,MONTH(C13),DAY(C13)),IF(ВідображатиВихідні,тблСвята[ПЕРЕНЕСЕНО],тблСвята[ДЕНЬ]),0),6),INDEX(тблСвята[],MATCH(DATE(РікКал,MONTH(C13),DAY(C13)),IF(ВідображатиВихідні,тблСвята[ПЕРЕНЕСЕНО],тблСвята[ДЕНЬ]),0),2),\"\"),\"\"),\"\")","v":""},{"$f":"IFERROR(IF(ВідображатиСвяткові,IF(INDEX(тблСвята[],MATCH(DATE(РікКал,MONTH(D13),DAY(D13)),IF(ВідображатиВихідні,тблСвята[ПЕРЕНЕСЕНО],тблСвята[ДЕНЬ]),0),6),INDEX(тблСвята[],MATCH(DATE(РікКал,MONTH(D13),DAY(D13)),IF(ВідображатиВихідні,тблСвята[ПЕРЕНЕСЕНО],тблСвята[ДЕНЬ]),0),2),\"\"),\"\"),\"\")","v":""},{"$f":"IFERROR(IF(ВідображатиСвяткові,IF(INDEX(тблСвята[],MATCH(DATE(РікКал,MONTH(E13),DAY(E13)),IF(ВідображатиВихідні,тблСвята[ПЕРЕНЕСЕНО],тблСвята[ДЕНЬ]),0),6),INDEX(тблСвята[],MATCH(DATE(РікКал,MONTH(E13),DAY(E13)),IF(ВідображатиВихідні,тблСвята[ПЕРЕНЕСЕНО],тблСвята[ДЕНЬ]),0),2),\"\"),\"\"),\"\")","v":""},{"$f":"IFERROR(IF(ВідображатиСвяткові,IF(INDEX(тблСвята[],MATCH(DATE(РікКал,MONTH(F13),DAY(F13)),IF(ВідображатиВихідні,тблСвята[ПЕРЕНЕСЕНО],тблСвята[ДЕНЬ]),0),6),INDEX(тблСвята[],MATCH(DATE(РікКал,MONTH(F13),DAY(F13)),IF(ВідображатиВихідні,тблСвята[ПЕРЕНЕСЕНО],тблСвята[ДЕНЬ]),0),2),\"\"),\"\"),\"\")","v":""},{"$f":"IFERROR(IF(ВідображатиСвяткові,IF(INDEX(тблСвята[],MATCH(DATE(РікКал,MONTH(G13),DAY(G13)),IF(ВідображатиВихідні,тблСвята[ПЕРЕНЕСЕНО],тблСвята[ДЕНЬ]),0),6),INDEX(тблСвята[],MATCH(DATE(РікКал,MONTH(G13),DAY(G13)),IF(ВідображатиВихідні,тблСвята[ПЕРЕНЕСЕНО],тблСвята[ДЕНЬ]),0),2),\"\"),\"\"),\"\")","v":""},{"$f":"IFERROR(IF(ВідображатиСвяткові,IF(INDEX(тблСвята[],MATCH(DATE(РікКал,MONTH(H13),DAY(H13)),IF(ВідображатиВихідні,тблСвята[ПЕРЕНЕСЕНО],тблСвята[ДЕНЬ]),0),6),INDEX(тблСвята[],MATCH(DATE(РікКал,MONTH(H13),DAY(H13)),IF(ВідображатиВихідні,тблСвята[ПЕРЕНЕСЕНО],тблСвята[ДЕНЬ]),0),2),\"\"),\"\"),\"\")","v":""}]
[null,{"$f":"Дні+DATE(РікКал,8,1)-WEEKDAY(DATE(РікКал,8,1),(ПочатокТижня=\"Понеділок\")+1)+36","v":"2018-09-02"},"2018-09-03","НОТАТКИ"]
[null,{"$f":"IFERROR(IF(ВідображатиСвяткові,IF(INDEX(тблСвята[],MATCH(DATE(РікКал,MONTH(B15),DAY(B15)),IF(ВідображатиВихідні,тблСвята[ПЕРЕНЕСЕНО],тблСвята[ДЕНЬ]),0),6),INDEX(тблСвята[],MATCH(DATE(РікКал,MONTH(B15),DAY(B15)),IF(ВідображатиВихідні,тблСвята[ПЕРЕНЕСЕНО],тблСвята[ДЕНЬ]),0),2),\"\"),\"\"),\"\")","v":""},{"$f":"IFERROR(IF(ВідображатиСвяткові,IF(INDEX(тблСвята[],MATCH(DATE(РікКал,MONTH(C15),DAY(C15)),IF(ВідображатиВихідні,тблСвята[ПЕРЕНЕСЕНО],тблСвята[ДЕНЬ]),0),6),INDEX(тблСвята[],MATCH(DATE(РікКал,MONTH(C15),DAY(C15)),IF(ВідображатиВихідні,тблСвята[ПЕРЕНЕСЕНО],тблСвята[ДЕНЬ]),0),2),\"\"),\"\"),\"\")","v":"Трійця"}]

{"sheet":"Вересень","index":9,"n_rows":16,"n_cols":8,"rows_kept":16,"merged":[[1,1,1,3],[14,3,14,7],[15,3,15,7],[16,1,16,7]]}
[]
[null,{"$f":"B9","v":"2018-09-09"}]
[]
[null,{"$f":"ПочатокТижня","v":"НЕДІЛЯ"},{"$f":"UPPER(TEXT(C5,\"dddd\"))","v":"ПОНЕДІЛОК"},"ВІВТОРОК","СЕРЕДА","ЧЕТВЕР","П'ЯТНИЦЯ","СУБОТА"]
[null,{"$f":"Дні+DATE(РікКал,9,1)-WEEKDAY(DATE(РікКал,9,1),(ПочатокТижня=\"Понеділок\")+1)+1","v":"2018-08-26"},"2018-08-27","2018-08-28","2018-08-29","2018-08-30","2018-08-31","2018-09-01"]
[null,{"$f":"IFERROR(IF(ВідображатиСвяткові,IF(INDEX(тблСвята[],MATCH(DATE(РікКал-(DAY(B5)>15)+(ROW()>6),MONTH(B5),DAY(B5)),IF(ВідображатиВихідні,тблСвята[ПЕРЕНЕСЕНО],тблСвята[ДЕНЬ]),0),6),INDEX(тблСвята[],MATCH(DATE(РікКал-(DAY(B5)>15)+(ROW()>6),MONTH(B5),DAY(B5)),IF(ВідображатиВихідні,тблСвята[ПЕРЕНЕСЕНО],тблСвята[ДЕНЬ]),0),2),\"\"),\"\"),\"\")","v":""},{"$f":"IFERROR(IF(ВідображатиСвяткові,IF(INDEX(тблСвята[],MATCH(DATE(РікКал-(DAY(C5)>15)+(ROW()>6),MONTH(C5),DAY(C5)),IF(ВідображатиВихідні,тблСвята[ПЕРЕНЕСЕНО],тблСвята[ДЕНЬ]),0),6),INDEX(тблСвята[],MATCH(DATE(РікКал-(DAY(C5)>15)+(ROW()>6),MONTH(C5),DAY(C5)),IF(ВідображатиВихідні,тблСвята[ПЕРЕНЕСЕНО],тблСвята[ДЕНЬ]),0),2),\"\"),\"\"),\"\")","v":""},{"$f":"IFERROR(IF(ВідображатиСвяткові,IF(INDEX(тблСвята[],MATCH(DATE(РікКал-(DAY(D5)>15)+(ROW()>6),MONTH(D5),DAY(D5)),IF(ВідображатиВихідні,тблСвята[ПЕРЕНЕСЕНО],тблСвята[ДЕНЬ]),0),6),INDEX(тблСвята[],MATCH(DATE(РікКал-(DAY(D5)>15)+(ROW()>6),MONTH(D5),DAY(D5)),IF(ВідображатиВихідні,тблСвята[ПЕРЕНЕСЕНО],тблСвята[ДЕНЬ]),0),2),\"\"),\"\"),\"\")","v":""},{"$f":"IFERROR(IF(ВідображатиСвяткові,IF(INDEX(тблСвята[],MATCH(DATE(РікКал-(DAY(E5)>15)+(ROW()>6),MONTH(E5),DAY(E5)),IF(ВідображатиВихідні,тблСвята[ПЕРЕНЕСЕНО],тблСвята[ДЕНЬ]),0),6),INDEX(тблСвята[],MATCH(DATE(РікКал-(DAY(E5)>15)+(ROW()>6),MONTH(E5),DAY(E5)),IF(ВідображатиВихідні,тблСвята[ПЕРЕНЕСЕНО],тблСвята[ДЕНЬ]),0),2),\"\"),\"\"),\"\")","v":""},{"$f":"IFERROR(IF(ВідображатиСвяткові,IF(INDEX(тблСвята[],MATCH(DATE(РікКал-(DAY(F5)>15)+(ROW()>6),MONTH(F5),DAY(F5)),IF(ВідображатиВихідні,тблСвята[ПЕРЕНЕСЕНО],тблСвята[ДЕНЬ]),0),6),INDEX(тблСвята[],MATCH(DATE(РікКал-(DAY(F5)>15)+(ROW()>6),MONTH(F5),DAY(F5)),IF(ВідображатиВихідні,тблСвята[ПЕРЕНЕСЕНО],тблСвята[ДЕНЬ]),0),2),\"\"),\"\"),\"\")","v":""},{"$f":"IFERROR(IF(ВідображатиСвяткові,IF(INDEX(тблСвята[],MATCH(DATE(РікКал-(DAY(G5)>15)+(ROW()>6),MONTH(G5),DAY(G5)),IF(ВідображатиВихідні,тблСвята[ПЕРЕНЕСЕНО],тблСвята[ДЕНЬ]),0),6),INDEX(тблСвята[],MATCH(DATE(РікКал-(DAY(G5)>15)+(ROW()>6),MONTH(G5),DAY(G5)),IF(ВідображатиВихідні,тблСвята[ПЕРЕНЕСЕНО],тблСвята[ДЕНЬ]),0),2),\"\"),\"\"),\"\")","v":""},{"$f":"IFERROR(IF(ВідображатиСвяткові,IF(INDEX(тблСвята[],MATCH(DATE(РікКал-(DAY(H5)>15)+(ROW()>6),MONTH(H5),DAY(H5)),IF(ВідображатиВихідні,тблСвята[ПЕРЕНЕСЕНО],тблСвята[ДЕНЬ]),0),6),INDEX(тблСвята[],MATCH(DATE(РікКал-(DAY(H5)>15)+(ROW()>6),MONTH(H5),DAY(H5)),IF(ВідображатиВихідні,тблСвята[ПЕРЕНЕСЕНО],тблСвята[ДЕНЬ]),0),2),\"\"),\"\"),\"\")","v":""}]
[null,{"$f":"Дні+DATE(РікКал,9,1)-WEEKDAY(DATE(РікКал,9,1),(ПочатокТижня=\"Понеділок\")+1)+8","v":"2018-09-02"},"2018-09-03","2018-09-04","2018-09-05","2018-09-06","2018-09-07","2018-09-08"]
[null,{"$f":"IFERROR(IF(ВідображатиСвяткові,IF(INDEX(тблСвята[],MATCH(DATE(РікКал,MONTH(B7),DAY(B7)),IF(ВідображатиВихідні,тблСвята[ПЕРЕНЕСЕНО],тблСвята[ДЕНЬ]),0),6),INDEX(тблСвята[],MATCH(DATE(РікКал,MONTH(B7),DAY(B7)),IF(ВідображатиВихідні,тблСвята[ПЕРЕНЕСЕНО],тблСвята[ДЕНЬ]),0),2),\"\"),\"\"),\"\")","v":""},{"$f":"IFERROR(IF(ВідображатиСвяткові,IF(INDEX(тблСвята[],MATCH(DATE(РікКал,MONTH(C7),DAY(C7)),IF(ВідображатиВихідні,тблСвята[ПЕРЕНЕСЕНО],тблСвята[ДЕНЬ]),0),6),INDEX(тблСвята[],MATCH(DATE(РікКал,MONTH(C7),DAY(C7)),IF(ВідображатиВихідні,тблСвята[ПЕРЕНЕСЕНО],тблСвята[ДЕНЬ]),0),2),\"\"),\"\"),\"\")","v":"Трійця"},{"$f":"IFERROR(IF(ВідображатиСвяткові,IF(INDEX(тблСвята[],MATCH(DATE(РікКал,MONTH(D7),DAY(D7)),IF(ВідображатиВихідні,тблСвята[ПЕРЕНЕСЕНО],тблСвята[ДЕНЬ]),0),6),INDEX(тблСвята[],MATCH(DATE(РікКал,MONTH(D7),DAY(D7)),IF(ВідображатиВихідні,тблСвята[ПЕРЕНЕСЕНО],тблСвята[ДЕНЬ]),0),2),\"\"),\"\"),\"\")","v":""},{"$f":"IFERROR(IF(ВідображатиСвяткові,IF(INDEX(тблСвята[],MATCH(DATE(РікКал,MONTH(E7),DAY(E7)),IF(ВідображатиВихідні,тблСвята[ПЕРЕНЕСЕНО],тблСвята[ДЕНЬ]),0),6),INDEX(тблСвята[],MATCH(DATE(РікКал,MONTH(E7),DAY(E7)),IF(ВідображатиВихідні,тблСвята[ПЕРЕНЕСЕНО],тблСвята[ДЕНЬ]),0),2),\"\"),\"\"),\"\")","v":""},{"$f":"IFERROR(IF(ВідображатиСвяткові,IF(INDEX(тблСвята[],MATCH(DATE(РікКал,MONTH(F7),DAY(F7)),IF(ВідображатиВихідні,тблСвята[ПЕРЕНЕСЕНО],тблСвята[ДЕНЬ]),0),6),INDEX(тблСвята[],MATCH(DATE(РікКал,MONTH(F7),DAY(F7)),IF(ВідображатиВихідні,тблСвята[ПЕРЕНЕСЕНО],тблСвята[ДЕНЬ]),0),2),\"\"),\"\"),\"\")","v":""},{"$f":"IFERROR(IF(ВідображатиСвяткові,IF(INDEX(тблСвята[],MATCH(DATE(РікКал,MONTH(G7),DAY(G7)),IF(ВідображатиВихідні,тблСвята[ПЕРЕНЕСЕНО],тблСвята[ДЕНЬ]),0),6),INDEX(тблСвята[],MATCH(DATE(РікКал,MONTH(G7),DAY(G7)),IF(ВідображатиВихідні,тблСвята[ПЕРЕНЕСЕНО],тблСвята[ДЕНЬ]),0),2),\"\"),\"\"),\"\")","v":""},{"$f":"IFERROR(IF(ВідображатиСвяткові,IF(INDEX(тблСвята[],MATCH(DATE(РікКал,MONTH(H7),DAY(H7)),IF(ВідображатиВихідні,тблСвята[ПЕРЕНЕСЕНО],тблСвята[ДЕНЬ]),0),6),INDEX(тблСвята[],MATCH(DATE(РікКал,MONTH(H7),DAY(H7)),IF(ВідображатиВихідні,тблСвята[ПЕРЕНЕСЕНО],тблСвята[ДЕНЬ]),0),2),\"\"),\"\"),\"\")","v":""}]
[null,{"$f":"Дні+DATE(РікКал,9,1)-WEEKDAY(DATE(РікКал,9,1),(ПочатокТижня=\"Понеділок\")+1)+15","v":"2018-09-09"},"2018-09-10","2018-09-11","2018-09-12","2018-09-13","2018-09-14","2018-09-15"]
[null,{"$f":"IFERROR(IF(ВідображатиСвяткові,IF(INDEX(тблСвята[],MATCH(DATE(РікКал,MONTH(B9),DAY(B9)),IF(ВідображатиВихідні,тблСвята[ПЕРЕНЕСЕНО],тблСвята[ДЕНЬ]),0),6),INDEX(тблСвята[],MATCH(DATE(РікКал,MONTH(B9),DAY(B9)),IF(ВідображатиВихідні,тблСвята[ПЕРЕНЕСЕНО],тблСвята[ДЕНЬ]),0),2),\"\"),\"\"),\"\")","v":""},{"$f":"IFERROR(IF(ВідображатиСвяткові,IF(INDEX(тблСвята[],MATCH(DATE(РікКал,MONTH(C9),DAY(C9)),IF(ВідображатиВихідні,тблСвята[ПЕРЕНЕСЕНО],тблСвята[ДЕНЬ]),0),6),INDEX(тблСвята[],MATCH(DATE(РікКал,MONTH(C9),DAY(C9)),IF(ВідображатиВихідні,тблСвята[ПЕРЕНЕСЕНО],тблСвята[ДЕНЬ]),0),2),\"\"),\"\"),\"\")","v":""},{"$f":"IFERROR(IF(ВідображатиСвяткові,IF(INDEX(тблСвята[],MATCH(DATE(РікКал,MONTH(D9),DAY(D9)),IF(ВідображатиВихідні,тблСвята[ПЕРЕНЕСЕНО],тблСвята[ДЕНЬ]),0),6),INDEX(тблСвята[],MATCH(DATE(РікКал,MONTH(D9),DAY(D9)),IF(ВідображатиВихідні,тблСвята[ПЕРЕНЕСЕНО],тблСвята[ДЕНЬ]),0),2),\"\"),\"\"),\"\")","v":""},{"$f":"IFERROR(IF(ВідображатиСвяткові,IF(INDEX(тблСвята[],MATCH(DATE(РікКал,MONTH(E9),DAY(E9)),IF(ВідображатиВихідні,тблСвята[ПЕРЕНЕСЕНО],тблСвята[ДЕНЬ]),0),6),INDEX(тблСвята[],MATCH(DATE(РікКал,MONTH(E9),DAY(E9)),IF(ВідображатиВихідні,тблСвята[ПЕРЕНЕСЕНО],тблСвята[ДЕНЬ]),0),2),\"\"),\"\"),\"\")","v":""},{"$f":"IFERROR(IF(ВідображатиСвяткові,IF(INDEX(тблСвята[],MATCH(DATE(РікКал,MONTH(F9),DAY(F9)),IF(ВідображатиВихідні,тблСвята[ПЕРЕНЕСЕНО],тблСвята[ДЕНЬ]),0),6),INDEX(тблСвята[],MATCH(DATE(РікКал,MONTH(F9),DAY(F9)),IF(ВідображатиВихідні,тблСвята[ПЕРЕНЕСЕНО],тблСвята[ДЕНЬ]),0),2),\"\"),\"\"),\"\")","v":""},{"$f":"IFERROR(IF(ВідображатиСвяткові,IF(INDEX(тблСвята[],MATCH(DATE(РікКал,MONTH(G9),DAY(G9)),IF(ВідображатиВихідні,тблСвята[ПЕРЕНЕСЕНО],тблСвята[ДЕНЬ]),0),6),INDEX(тблСвята[],MATCH(DATE(РікКал,MONTH(G9),DAY(G9)),IF(ВідображатиВихідні,тблСвята[ПЕРЕНЕСЕНО],тблСвята[ДЕНЬ]),0),2),\"\"),\"\"),\"\")","v":""},{"$f":"IFERROR(IF(ВідображатиСвяткові,IF(INDEX(тблСвята[],MATCH(DATE(РікКал,MONTH(H9),DAY(H9)),IF(ВідображатиВихідні,тблСвята[ПЕРЕНЕСЕНО],тблСвята[ДЕНЬ]),0),6),INDEX(тблСвята[],MATCH(DATE(РікКал,MONTH(H9),DAY(H9)),IF(ВідображатиВихідні,тблСвята[ПЕРЕНЕСЕНО],тблСвята[ДЕНЬ]),0),2),\"\"),\"\"),\"\")","v":""}]
[null,{"$f":"Дні+DATE(РікКал,9,1)-WEEKDAY(DATE(РікКал,9,1),(ПочатокТижня=\"Понеділок\")+1)+22","v":"2018-09-16"},"2018-09-17","2018-09-18","2018-09-19","2018-09-20","2018-09-21","2018-09-22"]
[null,{"$f":"IFERROR(IF(ВідображатиСвяткові,IF(INDEX(тблСвята[],MATCH(DATE(РікКал,MONTH(B11),DAY(B11)),IF(ВідображатиВихідні,тблСвята[ПЕРЕНЕСЕНО],тблСвята[ДЕНЬ]),0),6),INDEX(тблСвята[],MATCH(DATE(РікКал,MONTH(B11),DAY(B11)),IF(ВідображатиВихідні,тблСвята[ПЕРЕНЕСЕНО],тблСвята[ДЕНЬ]),0),2),\"\"),\"\"),\"\")","v":""},{"$f":"IFERROR(IF(ВідображатиСвяткові,IF(INDEX(тблСвята[],MATCH(DATE(РікКал,MONTH(C11),DAY(C11)),IF(ВідображатиВихідні,тблСвята[ПЕРЕНЕСЕНО],тблСвята[ДЕНЬ]),0),6),INDEX(тблСвята[],MATCH(DATE(РікКал,MONTH(C11),DAY(C11)),IF(ВідображатиВихідні,тблСвята[ПЕРЕНЕСЕНО],тблСвята[ДЕНЬ]),0),2),\"\"),\"\"),\"\")","v":""},{"$f":"IFERROR(IF(ВідображатиСвяткові,IF(INDEX(тблСвята[],MATCH(DATE(РікКал,MONTH(D11),DAY(D11)),IF(ВідображатиВихідні,тблСвята[ПЕРЕНЕСЕНО],тблСвята[ДЕНЬ]),0),6),INDEX(тблСвята[],MATCH(DATE(РікКал,MONTH(D11),DAY(D11)),IF(ВідображатиВихідні,тблСвята[ПЕРЕНЕСЕНО],тблСвята[ДЕНЬ]),0),2),\"\"),\"\"),\"\")","v":""},{"$f":"IFERROR(IF(ВідображатиСвяткові,IF(INDEX(тблСвята[],MATCH(DATE(РікКал,MONTH(E11),DAY(E11)),IF(ВідображатиВихідні,тблСвята[ПЕРЕНЕСЕНО],тблСвята[ДЕНЬ]),0),6),INDEX(тблСвята[],MATCH(DATE(РікКал,MONTH(E11),DAY(E11)),IF(ВідображатиВихідні,тблСвята[ПЕРЕНЕСЕНО],тблСвята[ДЕНЬ]),0),2),\"\"),\"\"),\"\")","v":""},{"$f":"IFERROR(IF(ВідображатиСвяткові,IF(INDEX(тблСвята[],MATCH(DATE(РікКал,MONTH(F11),DAY(F11)),IF(ВідображатиВихідні,тблСвята[ПЕРЕНЕСЕНО],тблСвята[ДЕНЬ]),0),6),INDEX(тблСвята[],MATCH(DATE(РікКал,MONTH(F11),DAY(F11)),IF(ВідображатиВихідні,тблСвята[ПЕРЕНЕСЕНО],тблСвята[ДЕНЬ]),0),2),\"\"),\"\"),\"\")","v":""},{"$f":"IFERROR(IF(ВідображатиСвяткові,IF(INDEX(тблСвята[],MATCH(DATE(РікКал,MONTH(G11),DAY(G11)),IF(ВідображатиВихідні,тблСвята[ПЕРЕНЕСЕНО],тблСвята[ДЕНЬ]),0),6),INDEX(тблСвята[],MATCH(DATE(РікКал,MONTH(G11),DAY(G11)),IF(ВідображатиВихідні,тблСвята[ПЕРЕНЕСЕНО],тблСвята[ДЕНЬ]),0),2),\"\"),\"\"),\"\")","v":""},{"$f":"IFERROR(IF(ВідображатиСвяткові,IF(INDEX(тблСвята[],MATCH(DATE(РікКал,MONTH(H11),DAY(H11)),IF(ВідображатиВихідні,тблСвята[ПЕРЕНЕСЕНО],тблСвята[ДЕНЬ]),0),6),INDEX(тблСвята[],MATCH(DATE(РікКал,MONTH(H11),DAY(H11)),IF(ВідображатиВихідні,тблСвята[ПЕРЕНЕСЕНО],тблСвята[ДЕНЬ]),0),2),\"\"),\"\"),\"\")","v":""}]
[null,{"$f":"Дні+DATE(РікКал,9,1)-WEEKDAY(DATE(РікКал,9,1),(ПочатокТижня=\"Понеділок\")+1)+29","v":"2018-09-23"},"2018-09-24","2018-09-25","2018-09-26","2018-09-27","2018-09-28","2018-09-29"]
[null,{"$f":"IFERROR(IF(ВідображатиСвяткові,IF(INDEX(тблСвята[],MATCH(DATE(РікКал,MONTH(B13),DAY(B13)),IF(ВідображатиВихідні,тблСвята[ПЕРЕНЕСЕНО],тблСвята[ДЕНЬ]),0),6),INDEX(тблСвята[],MATCH(DATE(РікКал,MONTH(B13),DAY(B13)),IF(ВідображатиВихідні,тблСвята[ПЕРЕНЕСЕНО],тблСвята[ДЕНЬ]),0),2),\"\"),\"\"),\"\")","v":""},{"$f":"IFERROR(IF(ВідображатиСвяткові,IF(INDEX(тблСвята[],MATCH(DATE(РікКал,MONTH(C13),DAY(C13)),IF(ВідображатиВихідні,тблСвята[ПЕРЕНЕСЕНО],тблСвята[ДЕНЬ]),0),6),INDEX(тблСвята[],MATCH(DATE(РікКал,MONTH(C13),DAY(C13)),IF(ВідображатиВихідні,тблСвята[ПЕРЕНЕСЕНО],тблСвята[ДЕНЬ]),0),2),\"\"),\"\"),\"\")","v":""},{"$f":"IFERROR(IF(ВідображатиСвяткові,IF(INDEX(тблСвята[],MATCH(DATE(РікКал,MONTH(D13),DAY(D13)),IF(ВідображатиВихідні,тблСвята[ПЕРЕНЕСЕНО],тблСвята[ДЕНЬ]),0),6),INDEX(тблСвята[],MATCH(DATE(РікКал,MONTH(D13),DAY(D13)),IF(ВідображатиВихідні,тблСвята[ПЕРЕНЕСЕНО],тблСвята[ДЕНЬ]),0),2),\"\"),\"\"),\"\")","v":""},{"$f":"IFERROR(IF(ВідображатиСвяткові,IF(INDEX(тблСвята[],MATCH(DATE(РікКал,MONTH(E13),DAY(E13)),IF(ВідображатиВихідні,тблСвята[ПЕРЕНЕСЕНО],тблСвята[ДЕНЬ]),0),6),INDEX(тблСвята[],MATCH(DATE(РікКал,MONTH(E13),DAY(E13)),IF(ВідображатиВихідні,тблСвята[ПЕРЕНЕСЕНО],тблСвята[ДЕНЬ]),0),2),\"\"),\"\"),\"\")","v":""},{"$f":"IFERROR(IF(ВідображатиСвяткові,IF(INDEX(тблСвята[],MATCH(DATE(РікКал,MONTH(F13),DAY(F13)),IF(ВідображатиВихідні,тблСвята[ПЕРЕНЕСЕНО],тблСвята[ДЕНЬ]),0),6),INDEX(тблСвята[],MATCH(DATE(РікКал,MONTH(F13),DAY(F13)),IF(ВідображатиВихідні,тблСвята[ПЕРЕНЕСЕНО],тблСвята[ДЕНЬ]),0),2),\"\"),\"\"),\"\")","v":""},{"$f":"IFERROR(IF(ВідображатиСвяткові,IF(INDEX(тблСвята[],MATCH(DATE(РікКал,MONTH(G13),DAY(G13)),IF(ВідображатиВихідні,тблСвята[ПЕРЕНЕСЕНО],тблСвята[ДЕНЬ]),0),6),INDEX(тблСвята[],MATCH(DATE(РікКал,MONTH(G13),DAY(G13)),IF(ВідображатиВихідні,тблСвята[ПЕРЕНЕСЕНО],тблСвята[ДЕНЬ]),0),2),\"\"),\"\"),\"\")","v":""},{"$f":"IFERROR(IF(ВідображатиСвяткові,IF(INDEX(тблСвята[],MATCH(DATE(РікКал,MONTH(H13),DAY(H13)),IF(ВідображатиВихідні,тблСвята[ПЕРЕНЕСЕНО],тблСвята[ДЕНЬ]),0),6),INDEX(тблСвята[],MATCH(DATE(РікКал,MONTH(H13),DAY(H13)),IF(ВідображатиВихідні,тблСвята[ПЕРЕНЕСЕНО],тблСвята[ДЕНЬ]),0),2),\"\"),\"\"),\"\")","v":""}]
[null,{"$f":"Дні+DATE(РікКал,9,1)-WEEKDAY(DATE(РікКал,9,1),(ПочатокТижня=\"Понеділок\")+1)+36","v":"2018-09-30"},"2018-10-01","НОТАТКИ"]
[null,{"$f":"IFERROR(IF(ВідображатиСвяткові,IF(INDEX(тблСвята[],MATCH(DATE(РікКал,MONTH(B15),DAY(B15)),IF(ВідображатиВихідні,тблСвята[ПЕРЕНЕСЕНО],тблСвята[ДЕНЬ]),0),6),INDEX(тблСвята[],MATCH(DATE(РікКал,MONTH(B15),DAY(B15)),IF(ВідображатиВихідні,тблСвята[ПЕРЕНЕСЕНО],тблСвята[ДЕНЬ]),0),2),\"\"),\"\"),\"\")","v":""},{"$f":"IFERROR(IF(ВідображатиСвяткові,IF(INDEX(тблСвята[],MATCH(DATE(РікКал,MONTH(C15),DAY(C15)),IF(ВідображатиВихідні,тблСвята[ПЕРЕНЕСЕНО],тблСвята[ДЕНЬ]),0),6),INDEX(тблСвята[],MATCH(DATE(РікКал,MONTH(C15),DAY(C15)),IF(ВідображатиВихідні,тблСвята[ПЕРЕНЕСЕНО],тблСвята[ДЕНЬ]),0),2),\"\"),\"\"),\"\")","v":""}]

{"sheet":"Жовтень","index":10,"n_rows":16,"n_cols":8,"rows_kept":16,"merged":[[1,1,1,3],[14,3,14,7],[15,3,15,7],[16,1,16,7]]}
[]
[null,{"$f":"B9","v":"2018-10-14"}]
[]
[null,{"$f":"ПочатокТижня","v":"НЕДІЛЯ"},{"$f":"UPPER(TEXT(C5,\"dddd\"))","v":"ПОНЕДІЛОК"},"ВІВТОРОК","СЕРЕДА","ЧЕТВЕР","П'ЯТНИЦЯ","СУБОТА"]
[null,{"$f":"Дні+DATE(РікКал,10,1)-WEEKDAY(DATE(РікКал,10,1),(ПочатокТижня=\"Понеділок\")+1)+1","v":"2018-09-30"},"2018-10-01","2018-10-02","2018-10-03","2018-10-04","2018-10-05","2018-10-06"]
[null,{"$f":"IFERROR(IF(ВідображатиСвяткові,IF(INDEX(тблСвята[],MATCH(DATE(РікКал-(DAY(B5)>15)+(ROW()>6),MONTH(B5),DAY(B5)),IF(ВідображатиВихідні,тблСвята[ПЕРЕНЕСЕНО],тблСвята[ДЕНЬ]),0),6),INDEX(тблСвята[],MATCH(DATE(РікКал-(DAY(B5)>15)+(ROW()>6),MONTH(B5),DAY(B5)),IF(ВідображатиВихідні,тблСвята[ПЕРЕНЕСЕНО],тблСвята[ДЕНЬ]),0),2),\"\"),\"\"),\"\")","v":""},{"$f":"IFERROR(IF(ВідображатиСвяткові,IF(INDEX(тблСвята[],MATCH(DATE(РікКал-(DAY(C5)>15)+(ROW()>6),MONTH(C5),DAY(C5)),IF(ВідображатиВихідні,тблСвята[ПЕРЕНЕСЕНО],тблСвята[ДЕНЬ]),0),6),INDEX(тблСвята[],MATCH(DATE(РікКал-(DAY(C5)>15)+(ROW()>6),MONTH(C5),DAY(C5)),IF(ВідображатиВихідні,тблСвята[ПЕРЕНЕСЕНО],тблСвята[ДЕНЬ]),0),2),\"\"),\"\"),\"\")","v":""},{"$f":"IFERROR(IF(ВідображатиСвяткові,IF(INDEX(тблСвята[],MATCH(DATE(РікКал-(DAY(D5)>15)+(ROW()>6),MONTH(D5),DAY(D5)),IF(ВідображатиВихідні,тблСвята[ПЕРЕНЕСЕНО],тблСвята[ДЕНЬ]),0),6),INDEX(тблСвята[],MATCH(DATE(РікКал-(DAY(D5)>15)+(ROW()>6),MONTH(D5),DAY(D5)),IF(ВідображатиВихідні,тблСвята[ПЕРЕНЕСЕНО],тблСвята[ДЕНЬ]),0),2),\"\"),\"\"),\"\")","v":""},{"$f":"IFERROR(IF(ВідображатиСвяткові,IF(INDEX(тблСвята[],MATCH(DATE(РікКал-(DAY(E5)>15)+(ROW()>6),MONTH(E5),DAY(E5)),IF(ВідображатиВихідні,тблСвята[ПЕРЕНЕСЕНО],тблСвята[ДЕНЬ]),0),6),INDEX(тблСвята[],MATCH(DATE(РікКал-(DAY(E5)>15)+(ROW()>6),MONTH(E5),DAY(E5)),IF(ВідображатиВихідні,тблСвята[ПЕРЕНЕСЕНО],тблСвята[ДЕНЬ]),0),2),\"\"),\"\"),\"\")","v":""},{"$f":"IFERROR(IF(ВідображатиСвяткові,IF(INDEX(тблСвята[],MATCH(DATE(РікКал-(DAY(F5)>15)+(ROW()>6),MONTH(F5),DAY(F5)),IF(ВідображатиВихідні,тблСвята[ПЕРЕНЕСЕНО],тблСвята[ДЕНЬ]),0),6),INDEX(тблСвята[],MATCH(DATE(РікКал-(DAY(F5)>15)+(ROW()>6),MONTH(F5),DAY(F5)),IF(ВідображатиВихідні,тблСвята[ПЕРЕНЕСЕНО],тблСвята[ДЕНЬ]),0),2),\"\"),\"\"),\"\")","v":""},{"$f":"IFERROR(IF(ВідображатиСвяткові,IF(INDEX(тблСвята[],MATCH(DATE(РікКал-(DAY(G5)>15)+(ROW()>6),MONTH(G5),DAY(G5)),IF(ВідображатиВихідні,тблСвята[ПЕРЕНЕСЕНО],тблСвята[ДЕНЬ]),0),6),INDEX(тблСвята[],MATCH(DATE(РікКал-(DAY(G5)>15)+(ROW()>6),MONTH(G5),DAY(G5)),IF(ВідображатиВихідні,тблСвята[ПЕРЕНЕСЕНО],тблСвята[ДЕНЬ]),0),2),\"\"),\"\"),\"\")","v":""},{"$f":"IFERROR(IF(ВідображатиСвяткові,IF(INDEX(тблСвята[],MATCH(DATE(РікКал-(DAY(H5)>15)+(ROW()>6),MONTH(H5),DAY(H5)),IF(ВідображатиВихідні,тблСвята[ПЕРЕНЕСЕНО],тблСвята[ДЕНЬ]),0),6),INDEX(тблСвята[],MATCH(DATE(РікКал-(DAY(H5)>15)+(ROW()>6),MONTH(H5),DAY(H5)),IF(ВідображатиВихідні,тблСвята[ПЕРЕНЕСЕНО],тблСвята[ДЕНЬ]),0),2),\"\"),\"\"),\"\")","v":""}]
[null,{"$f":"Дні+DATE(РікКал,10,1)-WEEKDAY(DATE(РікКал,10,1),(ПочатокТижня=\"Понеділок\")+1)+8","v":"2018-10-07"},"2018-10-08","2018-10-09","2018-10-10","2018-10-11","2018-10-12","2018-10-13"]
[null,{"$f":"IFERROR(IF(ВідображатиСвяткові,IF(INDEX(тблСвята[],MATCH(DATE(РікКал,MONTH(B7),DAY(B7)),IF(ВідображатиВихідні,тблСвята[ПЕРЕНЕСЕНО],тблСвята[ДЕНЬ]),0),6),INDEX(тблСвята[],MATCH(DATE(РікКал,MONTH(B7),DAY(B7)),IF(ВідображатиВихідні,тблСвята[ПЕРЕНЕСЕНО],тблСвята[ДЕНЬ]),0),2),\"\"),\"\"),\"\")","v":""},{"$f":"IFERROR(IF(ВідображатиСвяткові,IF(INDEX(тблСвята[],MATCH(DATE(РікКал,MONTH(C7),DAY(C7)),IF(ВідображатиВихідні,тблСвята[ПЕРЕНЕСЕНО],тблСвята[ДЕНЬ]),0),6),INDEX(тблСвята[],MATCH(DATE(РікКал,MONTH(C7),DAY(C7)),IF(ВідображатиВихідні,тблСвята[ПЕРЕНЕСЕНО],тблСвята[ДЕНЬ]),0),2),\"\"),\"\"),\"\")","v":"День конституції"},{"$f":"IFERROR(IF(ВідображатиСвяткові,IF(INDEX(тблСвята[],MATCH(DATE(РікКал,MONTH(D7),DAY(D7)),IF(ВідображатиВихідні,тблСвята[ПЕРЕНЕСЕНО],тблСвята[ДЕНЬ]),0),6),INDEX(тблСвята[],MATCH(DATE(РікКал,MONTH(D7),DAY(D7)),IF(ВідображатиВихідні,тблСвята[ПЕРЕНЕСЕНО],тблСвята[ДЕНЬ]),0),2),\"\"),\"\"),\"\")","v":""},{"$f":"IFERROR(IF(ВідображатиСвяткові,IF(INDEX(тблСвята[],MATCH(DATE(РікКал,MONTH(E7),DAY(E7)),IF(ВідображатиВихідні,тблСвята[ПЕРЕНЕСЕНО],тблСвята[ДЕНЬ]),0),6),INDEX(тблСвята[],MATCH(DATE(РікКал,MONTH(E7),DAY(E7)),IF(ВідображатиВихідні,тблСвята[ПЕРЕНЕСЕНО],тблСвята[ДЕНЬ]),0),2),\"\"),\"\"),\"\")","v":""},{"$f":"IFERROR(IF(ВідображатиСвяткові,IF(INDEX(тблСвята[],MATCH(DATE(РікКал,MONTH(F7),DAY(F7)),IF(ВідображатиВихідні,тблСвята[ПЕРЕНЕСЕНО],тблСвята[ДЕНЬ]),0),6),INDEX(тблСвята[],MATCH(DATE(РікКал,MONTH(F7),DAY(F7)),IF(ВідображатиВихідні,тблСвята[ПЕРЕНЕСЕНО],тблСвята[ДЕНЬ]),0),2),\"\"),\"\"),\"\")","v":""},{"$f":"IFERROR(IF(ВідображатиСвяткові,IF(INDEX(тблСвята[],MATCH(DATE(РікКал,MONTH(G7),DAY(G7)),IF(ВідображатиВихідні,тблСвята[ПЕРЕНЕСЕНО],тблСвята[ДЕНЬ]),0),6),INDEX(тблСвята[],MATCH(DATE(РікКал,MONTH(G7),DAY(G7)),IF(ВідображатиВихідні,тблСвята[ПЕРЕНЕСЕНО],тблСвята[ДЕНЬ]),0),2),\"\"),\"\"),\"\")","v":""},{"$f":"IFERROR(IF(ВідображатиСвяткові,IF(INDEX(тблСвята[],MATCH(DATE(РікКал,MONTH(H7),DAY(H7)),IF(ВідображатиВихідні,тблСвята[ПЕРЕНЕСЕНО],тблСвята[ДЕНЬ]),0),6),INDEX(тблСвята[],MATCH(DATE(РікКал,MONTH(H7),DAY(H7)),IF(ВідображатиВихідні,тблСвята[ПЕРЕНЕСЕНО],тблСвята[ДЕНЬ]),0),2),\"\"),\"\"),\"\")","v":""}]
[null,{"$f":"Дні+DATE(РікКал,10,1)-WEEKDAY(DATE(РікКал,10,1),(ПочатокТижня=\"Понеділок\")+1)+15","v":"2018-10-14"},"2018-10-15","2018-10-16","2018-10-17","2018-10-18","2018-10-19","2018-10-20"]
[null,{"$f":"IFERROR(IF(ВідображатиСвяткові,IF(INDEX(тблСвята[],MATCH(DATE(РікКал,MONTH(B9),DAY(B9)),IF(ВідображатиВихідні,тблСвята[ПЕРЕНЕСЕНО],тблСвята[ДЕНЬ]),0),6),INDEX(тблСвята[],MATCH(DATE(РікКал,MONTH(B9),DAY(B9)),IF(ВідображатиВихідні,тблСвята[ПЕРЕНЕСЕНО],тблСвята[ДЕНЬ]),0),2),\"\"),\"\"),\"\")","v":""},{"$f":"IFERROR(IF(ВідображатиСвяткові,IF(INDEX(тблСвята[],MATCH(DATE(РікКал,MONTH(C9),DAY(C9)),IF(ВідображатиВихідні,тблСвята[ПЕРЕНЕСЕНО],тблСвята[ДЕНЬ]),0),6),INDEX(тблСвята[],MATCH(DATE(РікКал,MONTH(C9),DAY(C9)),IF(ВідображатиВихідні,тблСвята[ПЕРЕНЕСЕНО],тблСвята[ДЕНЬ]),0),2),\"\"),\"\"),\"\")","v":""},{"$f":"IFERROR(IF(ВідображатиСвяткові,IF(INDEX(тблСвята[],MATCH(DATE(РікКал,MONTH(D9),DAY(D9)),IF(ВідображатиВихідні,тблСвята[ПЕРЕНЕСЕНО],тблСвята[ДЕНЬ]),0),6),INDEX(тблСвята[],MATCH(DATE(РікКал,MONTH(D9),DAY(D9)),IF(ВідображатиВихідні,тблСвята[ПЕРЕНЕСЕНО],тблСвята[ДЕНЬ]),0),2),\"\"),\"\"),\"\")","v":""},{"$f":"IFERROR(IF(ВідображатиСвяткові,IF(INDEX(тблСвята[],MATCH(DATE(РікКал,MONTH(E9),DAY(E9)),IF(ВідображатиВихідні,тблСвята[ПЕРЕНЕСЕНО],тблСвята[ДЕНЬ]),0),6),INDEX(тблСвята[],MATCH(DATE(РікКал,MONTH(E9),DAY(E9)),IF(ВідображатиВихідні,тблСвята[ПЕРЕНЕСЕНО],тблСвята[ДЕНЬ]),0),2),\"\"),\"\"),\"\")","v":""},{"$f":"IFERROR(IF(ВідображатиСвяткові,IF(INDEX(тблСвята[],MATCH(DATE(РікКал,MONTH(F9),DAY(F9)),IF(ВідображатиВихідні,тблСвята[ПЕРЕНЕСЕНО],тблСвята[ДЕНЬ]),0),6),INDEX(тблСвята[],MATCH(DATE(РікКал,MONTH(F9),DAY(F9)),IF(ВідображатиВихідні,тблСвята[ПЕРЕНЕСЕНО],тблСвята[ДЕНЬ]),0),2),\"\"),\"\"),\"\")","v":""},{"$f":"IFERROR(IF(ВідображатиСвяткові,IF(INDEX(тблСвята[],MATCH(DATE(РікКал,MONTH(G9),DAY(G9)),IF(ВідображатиВихідні,тблСвята[ПЕРЕНЕСЕНО],тблСвята[ДЕНЬ]),0),6),INDEX(тблСвята[],MATCH(DATE(РікКал,MONTH(G9),DAY(G9)),IF(ВідображатиВихідні,тблСвята[ПЕРЕНЕСЕНО],тблСвята[ДЕНЬ]),0),2),\"\"),\"\"),\"\")","v":""},{"$f":"IFERROR(IF(ВідображатиСвяткові,IF(INDEX(тблСвята[],MATCH(DATE(РікКал,MONTH(H9),DAY(H9)),IF(ВідображатиВихідні,тблСвята[ПЕРЕНЕСЕНО],тблСвята[ДЕНЬ]),0),6),INDEX(тблСвята[],MATCH(DATE(РікКал,MONTH(H9),DAY(H9)),IF(ВідображатиВихідні,тблСвята[ПЕРЕНЕСЕНО],тблСвята[ДЕНЬ]),0),2),\"\"),\"\"),\"\")","v":""}]
[null,{"$f":"Дні+DATE(РікКал,10,1)-WEEKDAY(DATE(РікКал,10,1),(ПочатокТижня=\"Понеділок\")+1)+22","v":"2018-10-21"},"2018-10-22","2018-10-23","2018-10-24","2018-10-25","2018-10-26","2018-10-27"]
[null,{"$f":"IFERROR(IF(ВідображатиСвяткові,IF(INDEX(тблСвята[],MATCH(DATE(РікКал,MONTH(B11),DAY(B11)),IF(ВідображатиВихідні,тблСвята[ПЕРЕНЕСЕНО],тблСвята[ДЕНЬ]),0),6),INDEX(тблСвята[],MATCH(DATE(РікКал,MONTH(B11),DAY(B11)),IF(ВідображатиВихідні,тблСвята[ПЕРЕНЕСЕНО],тблСвята[ДЕНЬ]),0),2),\"\"),\"\"),\"\")","v":""},{"$f":"IFERROR(IF(ВідображатиСвяткові,IF(INDEX(тблСвята[],MATCH(DATE(РікКал,MONTH(C11),DAY(C11)),IF(ВідображатиВихідні,тблСвята[ПЕРЕНЕСЕНО],тблСвята[ДЕНЬ]),0),6),INDEX(тблСвята[],MATCH(DATE(РікКал,MONTH(C11),DAY(C11)),IF(ВідображатиВихідні,тблСвята[ПЕРЕНЕСЕНО],тблСвята[ДЕНЬ]),0),2),\"\"),\"\"),\"\")","v":""},{"$f":"IFERROR(IF(ВідображатиСвяткові,IF(INDEX(тблСвята[],MATCH(DATE(РікКал,MONTH(D11),DAY(D11)),IF(ВідображатиВихідні,тблСвята[ПЕРЕНЕСЕНО],тблСвята[ДЕНЬ]),0),6),INDEX(тблСвята[],MATCH(DATE(РікКал,MONTH(D11),DAY(D11)),IF(ВідображатиВихідні,тблСвята[ПЕРЕНЕСЕНО],тблСвята[ДЕНЬ]),0),2),\"\"),\"\"),\"\")","v":""},{"$f":"IFERROR(IF(ВідображатиСвяткові,IF(INDEX(тблСвята[],MATCH(DATE(РікКал,MONTH(E11),DAY(E11)),IF(ВідображатиВихідні,тблСвята[ПЕРЕНЕСЕНО],тблСвята[ДЕНЬ]),0),6),INDEX(тблСвята[],MATCH(DATE(РікКал,MONTH(E11),DAY(E11)),IF(ВідображатиВихідні,тблСвята[ПЕРЕНЕСЕНО],тблСвята[ДЕНЬ]),0),2),\"\"),\"\"),\"\")","v":""},{"$f":"IFERROR(IF(ВідображатиСвяткові,IF(INDEX(тблСвята[],MATCH(DATE(РікКал,MONTH(F11),DAY(F11)),IF(ВідображатиВихідні,тблСвята[ПЕРЕНЕСЕНО],тблСвята[ДЕНЬ]),0),6),INDEX(тблСвята[],MATCH(DATE(РікКал,MONTH(F11),DAY(F11)),IF(ВідображатиВихідні,тблСвята[ПЕРЕНЕСЕНО],тблСвята[ДЕНЬ]),0),2),\"\"),\"\"),\"\")","v":""},{"$f":"IFERROR(IF(ВідображатиСвяткові,IF(INDEX(тблСвята[],MATCH(DATE(РікКал,MONTH(G11),DAY(G11)),IF(ВідображатиВихідні,тблСвята[ПЕРЕНЕСЕНО],тблСвята[ДЕНЬ]),0),6),INDEX(тблСвята[],MATCH(DATE(РікКал,MONTH(G11),DAY(G11)),IF(ВідображатиВихідні,тблСвята[ПЕРЕНЕСЕНО],тблСвята[ДЕНЬ]),0),2),\"\"),\"\"),\"\")","v":""},{"$f":"IFERROR(IF(ВідображатиСвяткові,IF(INDEX(тблСвята[],MATCH(DATE(РікКал,MONTH(H11),DAY(H11)),IF(ВідображатиВихідні,тблСвята[ПЕРЕНЕСЕНО],тблСвята[ДЕНЬ]),0),6),INDEX(тблСвята[],MATCH(DATE(РікКал,MONTH(H11),DAY(H11)),IF(ВідображатиВихідні,тблСвята[ПЕРЕНЕСЕНО],тблСвята[ДЕНЬ]),0),2),\"\"),\"\"),\"\")","v":""}]
[null,{"$f":"Дні+DATE(РікКал,10,1)-WEEKDAY(DATE(РікКал,10,1),(ПочатокТижня=\"Понеділок\")+1)+29","v":"2018-10-28"},"2018-10-29","2018-10-30","2018-10-31","2018-11-01","2018-11-02","2018-11-03"]
[null,{"$f":"IFERROR(IF(ВідображатиСвяткові,IF(INDEX(тблСвята[],MATCH(DATE(РікКал,MONTH(B13),DAY(B13)),IF(ВідображатиВихідні,тблСвята[ПЕРЕНЕСЕНО],тблСвята[ДЕНЬ]),0),6),INDEX(тблСвята[],MATCH(DATE(РікКал,MONTH(B13),DAY(B13)),IF(ВідображатиВихідні,тблСвята[ПЕРЕНЕСЕНО],тблСвята[ДЕНЬ]),0),2),\"\"),\"\"),\"\")","v":""},{"$f":"IFERROR(IF(ВідображатиСвяткові,IF(INDEX(тблСвята[],MATCH(DATE(РікКал,MONTH(C13),DAY(C13)),IF(ВідображатиВихідні,тблСвята[ПЕРЕНЕСЕНО],тблСвята[ДЕНЬ]),0),6),INDEX(тблСвята[],MATCH(DATE(РікКал,MONTH(C13),DAY(C13)),IF(ВідображатиВихідні,тблСвята[ПЕРЕНЕСЕНО],тблСвята[ДЕНЬ]),0),2),\"\"),\"\"),\"\")","v":""},{"$f":"IFERROR(IF(ВідображатиСвяткові,IF(INDEX(тблСвята[],MATCH(DATE(РікКал,MONTH(D13),DAY(D13)),IF(ВідображатиВихідні,тблСвята[ПЕРЕНЕСЕНО],тблСвята[ДЕНЬ]),0),6),INDEX(тблСвята[],MATCH(DATE(РікКал,MONTH(D13),DAY(D13)),IF(ВідображатиВихідні,тблСвята[ПЕРЕНЕСЕНО],тблСвята[ДЕНЬ]),0),2),\"\"),\"\"),\"\")","v":""},{"$f":"IFERROR(IF(ВідображатиСвяткові,IF(INDEX(тблСвята[],MATCH(DATE(РікКал,MONTH(E13),DAY(E13)),IF(ВідображатиВихідні,тблСвята[ПЕРЕНЕСЕНО],тблСвята[ДЕНЬ]),0),6),INDEX(тблСвята[],MATCH(DATE(РікКал,MONTH(E13),DAY(E13)),IF(ВідображатиВихідні,тблСвята[ПЕРЕНЕСЕНО],тблСвята[ДЕНЬ]),0),2),\"\"),\"\"),\"\")","v":""},{"$f":"IFERROR(IF(ВідображатиСвяткові,IF(INDEX(тблСвята[],MATCH(DATE(РікКал,MONTH(F13),DAY(F13)),IF(ВідображатиВихідні,тблСвята[ПЕРЕНЕСЕНО],тблСвята[ДЕНЬ]),0),6),INDEX(тблСвята[],MATCH(DATE(РікКал,MONTH(F13),DAY(F13)),IF(ВідображатиВихідні,тблСвята[ПЕРЕНЕСЕНО],тблСвята[ДЕНЬ]),0),2),\"\"),\"\"),\"\")","v":""},{"$f":"IFERROR(IF(ВідображатиСвяткові,IF(INDEX(тблСвята[],MATCH(DATE(РікКал,MONTH(G13),DAY(G13)),IF(ВідображатиВихідні,тблСвята[ПЕРЕНЕСЕНО],тблСвята[ДЕНЬ]),0),6),INDEX(тблСвята[],MATCH(DATE(РікКал,MONTH(G13),DAY(G13)),IF(ВідображатиВихідні,тблСвята[ПЕРЕНЕСЕНО],тблСвята[ДЕНЬ]),0),2),\"\"),\"\"),\"\")","v":""},{"$f":"IFERROR(IF(ВідображатиСвяткові,IF(INDEX(тблСвята[],MATCH(DATE(РікКал,MONTH(H13),DAY(H13)),IF(ВідображатиВихідні,тблСвята[ПЕРЕНЕСЕНО],тблСвята[ДЕНЬ]),0),6),INDEX(тблСвята[],MATCH(DATE(РікКал,MONTH(H13),DAY(H13)),IF(ВідображатиВихідні,тблСвята[ПЕРЕНЕСЕНО],тблСвята[ДЕНЬ]),0),2),\"\"),\"\"),\"\")","v":""}]
[null,{"$f":"Дні+DATE(РікКал,10,1)-WEEKDAY(DATE(РікКал,10,1),(ПочатокТижня=\"Понеділок\")+1)+36","v":"2018-11-04"},"2018-11-05","НОТАТКИ"]
[null,{"$f":"IFERROR(IF(ВідображатиСвяткові,IF(INDEX(тблСвята[],MATCH(DATE(РікКал,MONTH(B15),DAY(B15)),IF(ВідображатиВихідні,тблСвята[ПЕРЕНЕСЕНО],тблСвята[ДЕНЬ]),0),6),INDEX(тблСвята[],MATCH(DATE(РікКал,MONTH(B15),DAY(B15)),IF(ВідображатиВихідні,тблСвята[ПЕРЕНЕСЕНО],тблСвята[ДЕНЬ]),0),2),\"\"),\"\"),\"\")","v":""},{"$f":"IFERROR(IF(ВідображатиСвяткові,IF(INDEX(тблСвята[],MATCH(DATE(РікКал,MONTH(C15),DAY(C15)),IF(ВідображатиВихідні,тблСвята[ПЕРЕНЕСЕНО],тблСвята[ДЕНЬ]),0),6),INDEX(тблСвята[],MATCH(DATE(РікКал,MONTH(C15),DAY(C15)),IF(ВідображатиВихідні,тблСвята[ПЕРЕНЕСЕНО],тблСвята[ДЕНЬ]),0),2),\"\"),\"\"),\"\")","v":""}]

{"sheet":"Листопад","index":11,"n_rows":16,"n_cols":8,"rows_kept":16,"merged":[[1,1,1,3],[14,3,14,7],[15,3,15,7],[16,1,16,7]]}
[]
[null,{"$f":"B9","v":"2018-11-11"}]
[]
[null,{"$f":"ПочатокТижня","v":"НЕДІЛЯ"},{"$f":"UPPER(TEXT(C5,\"dddd\"))","v":"ПОНЕДІЛОК"},"ВІВТОРОК","СЕРЕДА","ЧЕТВЕР","П'ЯТНИЦЯ","СУБОТА"]
[null,{"$f":"Дні+DATE(РікКал,11,1)-WEEKDAY(DATE(РікКал,11,1),(ПочатокТижня=\"Понеділок\")+1)+1","v":"2018-10-28"},"2018-10-29","2018-10-30","2018-10-31","2018-11-01","2018-11-02","2018-11-03"]
[null,{"$f":"IFERROR(IF(ВідображатиСвяткові,IF(INDEX(тблСвята[],MATCH(DATE(РікКал-(DAY(B5)>15)+(ROW()>6),MONTH(B5),DAY(B5)),IF(ВідображатиВихідні,тблСвята[ПЕРЕНЕСЕНО],тблСвята[ДЕНЬ]),0),6),INDEX(тблСвята[],MATCH(DATE(РікКал-(DAY(B5)>15)+(ROW()>6),MONTH(B5),DAY(B5)),IF(ВідображатиВихідні,тблСвята[ПЕРЕНЕСЕНО],тблСвята[ДЕНЬ]),0),2),\"\"),\"\"),\"\")","v":""},{"$f":"IFERROR(IF(ВідображатиСвяткові,IF(INDEX(тблСвята[],MATCH(DATE(РікКал-(DAY(C5)>15)+(ROW()>6),MONTH(C5),DAY(C5)),IF(ВідображатиВихідні,тблСвята[ПЕРЕНЕСЕНО],тблСвята[ДЕНЬ]),0),6),INDEX(тблСвята[],MATCH(DATE(РікКал-(DAY(C5)>15)+(ROW()>6),MONTH(C5),DAY(C5)),IF(ВідображатиВихідні,тблСвята[ПЕРЕНЕСЕНО],тблСвята[ДЕНЬ]),0),2),\"\"),\"\"),\"\")","v":""},{"$f":"IFERROR(IF(ВідображатиСвяткові,IF(INDEX(тблСвята[],MATCH(DATE(РікКал-(DAY(D5)>15)+(ROW()>6),MONTH(D5),DAY(D5)),IF(ВідображатиВихідні,тблСвята[ПЕРЕНЕСЕНО],тблСвята[ДЕНЬ]),0),6),INDEX(тблСвята[],MATCH(DATE(РікКал-(DAY(D5)>15)+(ROW()>6),MONTH(D5),DAY(D5)),IF(ВідображатиВихідні,тблСвята[ПЕРЕНЕСЕНО],тблСвята[ДЕНЬ]),0),2),\"\"),\"\"),\"\")","v":""},{"$f":"IFERROR(IF(ВідображатиСвяткові,IF(INDEX(тблСвята[],MATCH(DATE(РікКал-(DAY(E5)>15)+(ROW()>6),MONTH(E5),DAY(E5)),IF(ВідображатиВихідні,тблСвята[ПЕРЕНЕСЕНО],тблСвята[ДЕНЬ]),0),6),INDEX(тблСвята[],MATCH(DATE(РікКал-(DAY(E5)>15)+(ROW()>6),MONTH(E5),DAY(E5)),IF(ВідображатиВихідні,тблСвята[ПЕРЕНЕСЕНО],тблСвята[ДЕНЬ]),0),2),\"\"),\"\"),\"\")","v":""},{"$f":"IFERROR(IF(ВідображатиСвяткові,IF(INDEX(тблСвята[],MATCH(DATE(РікКал-(DAY(F5)>15)+(ROW()>6),MONTH(F5),DAY(F5)),IF(ВідображатиВихідні,тблСвята[ПЕРЕНЕСЕНО],тблСвята[ДЕНЬ]),0),6),INDEX(тблСвята[],MATCH(DATE(РікКал-(DAY(F5)>15)+(ROW()>6),MONTH(F5),DAY(F5)),IF(ВідображатиВихідні,тблСвята[ПЕРЕНЕСЕНО],тблСвята[ДЕНЬ]),0),2),\"\"),\"\"),\"\")","v":""},{"$f":"IFERROR(IF(ВідображатиСвяткові,IF(INDEX(тблСвята[],MATCH(DATE(РікКал-(DAY(G5)>15)+(ROW()>6),MONTH(G5),DAY(G5)),IF(ВідображатиВихідні,тблСвята[ПЕРЕНЕСЕНО],тблСвята[ДЕНЬ]),0),6),INDEX(тблСвята[],MATCH(DATE(РікКал-(DAY(G5)>15)+(ROW()>6),MONTH(G5),DAY(G5)),IF(ВідображатиВихідні,тблСвята[ПЕРЕНЕСЕНО],тблСвята[ДЕНЬ]),0),2),\"\"),\"\"),\"\")","v":""},{"$f":"IFERROR(IF(ВідображатиСвяткові,IF(INDEX(тблСвята[],MATCH(DATE(РікКал-(DAY(H5)>15)+(ROW()>6),MONTH(H5),DAY(H5)),IF(ВідображатиВихідні,тблСвята[ПЕРЕНЕСЕНО],тблСвята[ДЕНЬ]),0),6),INDEX(тблСвята[],MATCH(DATE(РікКал-(DAY(H5)>15)+(ROW()>6),MONTH(H5),DAY(H5)),IF(ВідображатиВихідні,тблСвята[ПЕРЕНЕСЕНО],тблСвята[ДЕНЬ]),0),2),\"\"),\"\"),\"\")","v":""}]
[null,{"$f":"Дні+DATE(РікКал,11,1)-WEEKDAY(DATE(РікКал,11,1),(ПочатокТижня=\"Понеділок\")+1)+8","v":"2018-11-04"},"2018-11-05","2018-11-06","2018-11-07","2018-11-08","2018-11-09","2018-11-10"]
[null,{"$f":"IFERROR(IF(ВідображатиСвяткові,IF(INDEX(тблСвята[],MATCH(DATE(РікКал,MONTH(B7),DAY(B7)),IF(ВідображатиВихідні,тблСвята[ПЕРЕНЕСЕНО],тблСвята[ДЕНЬ]),0),6),INDEX(тблСвята[],MATCH(DATE(РікКал,MONTH(B7),DAY(B7)),IF(ВідображатиВихідні,тблСвята[ПЕРЕНЕСЕНО],тблСвята[ДЕНЬ]),0),2),\"\"),\"\"),\"\")","v":""},{"$f":"IFERROR(IF(ВідображатиСвяткові,IF(INDEX(тблСвята[],MATCH(DATE(РікКал,MONTH(C7),DAY(C7)),IF(ВідображатиВихідні,тблСвята[ПЕРЕНЕСЕНО],тблСвята[ДЕНЬ]),0),6),INDEX(тблСвята[],MATCH(DATE(РікКал,MONTH(C7),DAY(C7)),IF(ВідображатиВихідні,тблСвята[ПЕРЕНЕСЕНО],тблСвята[ДЕНЬ]),0),2),\"\"),\"\"),\"\")","v":""},{"$f":"IFERROR(IF(ВідображатиСвяткові,IF(INDEX(тблСвята[],MATCH(DATE(РікКал,MONTH(D7),DAY(D7)),IF(ВідображатиВихідні,тблСвята[ПЕРЕНЕСЕНО],тблСвята[ДЕНЬ]),0),6),INDEX(тблСвята[],MATCH(DATE(РікКал,MONTH(D7),DAY(D7)),IF(ВідображатиВихідні,тблСвята[ПЕРЕНЕСЕНО],тблСвята[ДЕНЬ]),0),2),\"\"),\"\"),\"\")","v":""},{"$f":"IFERROR(IF(ВідображатиСвяткові,IF(INDEX(тблСвята[],MATCH(DATE(РікКал,MONTH(E7),DAY(E7)),IF(ВідображатиВихідні,тблСвята[ПЕРЕНЕСЕНО],тблСвята[ДЕНЬ]),0),6),INDEX(тблСвята[],MATCH(DATE(РікКал,MONTH(E7),DAY(E7)),IF(ВідображатиВихідні,тблСвята[ПЕРЕНЕСЕНО],тблСвята[ДЕНЬ]),0),2),\"\"),\"\"),\"\")","v":""},{"$f":"IFERROR(IF(ВідображатиСвяткові,IF(INDEX(тблСвята[],MATCH(DATE(РікКал,MONTH(F7),DAY(F7)),IF(ВідображатиВихідні,тблСвята[ПЕРЕНЕСЕНО],тблСвята[ДЕНЬ]),0),6),INDEX(тблСвята[],MATCH(DATE(РікКал,MONTH(F7),DAY(F7)),IF(ВідображатиВихідні,тблСвята[ПЕРЕНЕСЕНО],тблСвята[ДЕНЬ]),0),2),\"\"),\"\"),\"\")","v":""},{"$f":"IFERROR(IF(ВідображатиСвяткові,IF(INDEX(тблСвята[],MATCH(DATE(РікКал,MONTH(G7),DAY(G7)),IF(ВідображатиВихідні,тблСвята[ПЕРЕНЕСЕНО],тблСвята[ДЕНЬ]),0),6),INDEX(тблСвята[],MATCH(DATE(РікКал,MONTH(G7),DAY(G7)),IF(ВідображатиВихідні,тблСвята[ПЕРЕНЕСЕНО],тблСвята[ДЕНЬ]),0),2),\"\"),\"\"),\"\")","v":""},{"$f":"IFERROR(IF(ВідображатиСвяткові,IF(INDEX(тблСвята[],MATCH(DATE(РікКал,MONTH(H7),DAY(H7)),IF(ВідображатиВихідні,тблСвята[ПЕРЕНЕСЕНО],тблСвята[ДЕНЬ]),0),6),INDEX(тблСвята[],MATCH(DATE(РікКал,MONTH(H7),DAY(H7)),IF(ВідображатиВихідні,тблСвята[ПЕРЕНЕСЕНО],тблСвята[ДЕНЬ]),0),2),\"\"),\"\"),\"\")","v":""}]
[null,{"$f":"Дні+DATE(РікКал,11,1)-WEEKDAY(DATE(РікКал,11,1),(ПочатокТижня=\"Понеділок\")+1)+15","v":"2018-11-11"},"2018-11-12","2018-11-13","2018-11-14","2018-11-15","2018-11-16","2018-11-17"]
[null,{"$f":"IFERROR(IF(ВідображатиСвяткові,IF(INDEX(тблСвята[],MATCH(DATE(РікКал,MONTH(B9),DAY(B9)),IF(ВідображатиВихідні,тблСвята[ПЕРЕНЕСЕНО],тблСвята[ДЕНЬ]),0),6),INDEX(тблСвята[],MATCH(DATE(РікКал,MONTH(B9),DAY(B9)),IF(ВідображатиВихідні,тблСвята[ПЕРЕНЕСЕНО],тблСвята[ДЕНЬ]),0),2),\"\"),\"\"),\"\")","v":""},{"$f":"IFERROR(IF(ВідображатиСвяткові,IF(INDEX(тблСвята[],MATCH(DATE(РікКал,MONTH(C9),DAY(C9)),IF(ВідображатиВихідні,тблСвята[ПЕРЕНЕСЕНО],тблСвята[ДЕНЬ]),0),6),INDEX(тблСвята[],MATCH(DATE(РікКал,MONTH(C9),DAY(C9)),IF(ВідображатиВихідні,тблСвята[ПЕРЕНЕСЕНО],тблСвята[ДЕНЬ]),0),2),\"\"),\"\"),\"\")","v":"День незалежності"},{"$f":"IFERROR(IF(ВідображатиСвяткові,IF(INDEX(тблСвята[],MATCH(DATE(РікКал,MONTH(D9),DAY(D9)),IF(ВідображатиВихідні,тблСвята[ПЕРЕНЕСЕНО],тблСвята[ДЕНЬ]),0),6),INDEX(тблСвята[],MATCH(DATE(РікКал,MONTH(D9),DAY(D9)),IF(ВідображатиВихідні,тблСвята[ПЕРЕНЕСЕНО],тблСвята[ДЕНЬ]),0),2),\"\"),\"\"),\"\")","v":""},{"$f":"IFERROR(IF(ВідображатиСвяткові,IF(INDEX(тблСвята[],MATCH(DATE(РікКал,MONTH(E9),DAY(E9)),IF(ВідображатиВихідні,тблСвята[ПЕРЕНЕСЕНО],тблСвята[ДЕНЬ]),0),6),INDEX(тблСвята[],MATCH(DATE(РікКал,MONTH(E9),DAY(E9)),IF(ВідображатиВихідні,тблСвята[ПЕРЕНЕСЕНО],тблСвята[ДЕНЬ]),0),2),\"\"),\"\"),\"\")","v":""},{"$f":"IFERROR(IF(ВідображатиСвяткові,IF(INDEX(тблСвята[],MATCH(DATE(РікКал,MONTH(F9),DAY(F9)),IF(ВідображатиВихідні,тблСвята[ПЕРЕНЕСЕНО],тблСвята[ДЕНЬ]),0),6),INDEX(тблСвята[],MATCH(DATE(РікКал,MONTH(F9),DAY(F9)),IF(ВідображатиВихідні,тблСвята[ПЕРЕНЕСЕНО],тблСвята[ДЕНЬ]),0),2),\"\"),\"\"),\"\")","v":""},{"$f":"IFERROR(IF(ВідображатиСвяткові,IF(INDEX(тблСвята[],MATCH(DATE(РікКал,MONTH(G9),DAY(G9)),IF(ВідображатиВихідні,тблСвята[ПЕРЕНЕСЕНО],тблСвята[ДЕНЬ]),0),6),INDEX(тблСвята[],MATCH(DATE(РікКал,MONTH(G9),DAY(G9)),IF(ВідображатиВихідні,тблСвята[ПЕРЕНЕСЕНО],тблСвята[ДЕНЬ]),0),2),\"\"),\"\"),\"\")","v":""},{"$f":"IFERROR(IF(ВідображатиСвяткові,IF(INDEX(тблСвята[],MATCH(DATE(РікКал,MONTH(H9),DAY(H9)),IF(ВідображатиВихідні,тблСвята[ПЕРЕНЕСЕНО],тблСвята[ДЕНЬ]),0),6),INDEX(тблСвята[],MATCH(DATE(РікКал,MONTH(H9),DAY(H9)),IF(ВідображатиВихідні,тблСвята[ПЕРЕНЕСЕНО],тблСвята[ДЕНЬ]),0),2),\"\"),\"\"),\"\")","v":""}]
[null,{"$f":"Дні+DATE(РікКал,11,1)-WEEKDAY(DATE(РікКал,11,1),(ПочатокТижня=\"Понеділок\")+1)+22","v":"2018-11-18"},"2018-11-19","2018-11-20","2018-11-21","2018-11-22","2018-11-23","2018-11-24"]
[null,{"$f":"IFERROR(IF(ВідображатиСвяткові,IF(INDEX(тблСвята[],MATCH(DATE(РікКал,MONTH(B11),DAY(B11)),IF(ВідображатиВихідні,тблСвята[ПЕРЕНЕСЕНО],тблСвята[ДЕНЬ]),0),6),INDEX(тблСвята[],MATCH(DATE(РікКал,MONTH(B11),DAY(B11)),IF(ВідображатиВихідні,тблСвята[ПЕРЕНЕСЕНО],тблСвята[ДЕНЬ]),0),2),\"\"),\"\"),\"\")","v":""},{"$f":"IFERROR(IF(ВідображатиСвяткові,IF(INDEX(тблСвята[],MATCH(DATE(РікКал,MONTH(C11),DAY(C11)),IF(ВідображатиВихідні,тблСвята[ПЕРЕНЕСЕНО],тблСвята[ДЕНЬ]),0),6),INDEX(тблСвята[],MATCH(DATE(РікКал,MONTH(C11),DAY(C11)),IF(ВідображатиВихідні,тблСвята[ПЕРЕНЕСЕНО],тблСвята[ДЕНЬ]),0),2),\"\"),\"\"),\"\")","v":""},{"$f":"IFERROR(IF(ВідображатиСвяткові,IF(INDEX(тблСвята[],MATCH(DATE(РікКал,MONTH(D11),DAY(D11)),IF(ВідображатиВихідні,тблСвята[ПЕРЕНЕСЕНО],тблСвята[ДЕНЬ]),0),6),INDEX(тблСвята[],MATCH(DATE(РікКал,MONTH(D11),DAY(D11)),IF(ВідображатиВихідні,тблСвята[ПЕРЕНЕСЕНО],тблСвята[ДЕНЬ]),0),2),\"\"),\"\"),\"\")","v":""},{"$f":"IFERROR(IF(ВідображатиСвяткові,IF(INDEX(тблСвята[],MATCH(DATE(РікКал,MONTH(E11),DAY(E11)),IF(ВідображатиВихідні,тблСвята[ПЕРЕНЕСЕНО],тблСвята[ДЕНЬ]),0),6),INDEX(тблСвята[],MATCH(DATE(РікКал,MONTH(E11),DAY(E11)),IF(ВідображатиВихідні,тблСвята[ПЕРЕНЕСЕНО],тблСвята[ДЕНЬ]),0),2),\"\"),\"\"),\"\")","v":""},{"$f":"IFERROR(IF(ВідображатиСвяткові,IF(INDEX(тблСвята[],MATCH(DATE(РікКал,MONTH(F11),DAY(F11)),IF(ВідображатиВихідні,тблСвята[ПЕРЕНЕСЕНО],тблСвята[ДЕНЬ]),0),6),INDEX(тблСвята[],MATCH(DATE(РікКал,MONTH(F11),DAY(F11)),IF(ВідображатиВихідні,тблСвята[ПЕРЕНЕСЕНО],тблСвята[ДЕНЬ]),0),2),\"\"),\"\"),\"\")","v":"День захисника України"},{"$f":"IFERROR(IF(ВідображатиСвяткові,IF(INDEX(тблСвята[],MATCH(DATE(РікКал,MONTH(G11),DAY(G11)),IF(ВідображатиВихідні,тблСвята[ПЕРЕНЕСЕНО],тблСвята[ДЕНЬ]),0),6),INDEX(тблСвята[],MATCH(DATE(РікКал,MONTH(G11),DAY(G11)),IF(ВідображатиВихідні,тблСвята[ПЕРЕНЕСЕНО],тблСвята[ДЕНЬ]),0),2),\"\"),\"\"),\"\")","v":""},{"$f":"IFERROR(IF(ВідображатиСвяткові,IF(INDEX(тблСвята[],MATCH(DATE(РікКал,MONTH(H11),DAY(H11)),IF(ВідображатиВихідні,тблСвята[ПЕРЕНЕСЕНО],тблСвята[ДЕНЬ]),0),6),INDEX(тблСвята[],MATCH(DATE(РікКал,MONTH(H11),DAY(H11)),IF(ВідображатиВихідні,тблСвята[ПЕРЕНЕСЕНО],тблСвята[ДЕНЬ]),0),2),\"\"),\"\"),\"\")","v":""}]
[null,{"$f":"Дні+DATE(РікКал,11,1)-WEEKDAY(DATE(РікКал,11,1),(ПочатокТижня=\"Понеділок\")+1)+29","v":"2018-11-25"},"2018-11-26","2018-11-27","2018-11-28","2018-11-29","2018-11-30","2018-12-01"]
[null,{"$f":"IFERROR(IF(ВідображатиСвяткові,IF(INDEX(тблСвята[],MATCH(DATE(РікКал,MONTH(B13),DAY(B13)),IF(ВідображатиВихідні,тблСвята[ПЕРЕНЕСЕНО],тблСвята[ДЕНЬ]),0),6),INDEX(тблСвята[],MATCH(DATE(РікКал,MONTH(B13),DAY(B13)),IF(ВідображатиВихідні,тблСвята[ПЕРЕНЕСЕНО],тблСвята[ДЕНЬ]),0),2),\"\"),\"\"),\"\")","v":""},{"$f":"IFERROR(IF(ВідображатиСвяткові,IF(INDEX(тблСвята[],MATCH(DATE(РікКал,MONTH(C13),DAY(C13)),IF(ВідображатиВихідні,тблСвята[ПЕРЕНЕСЕНО],тблСвята[ДЕНЬ]),0),6),INDEX(тблСвята[],MATCH(DATE(РікКал,MONTH(C13),DAY(C13)),IF(ВідображатиВихідні,тблСвята[ПЕРЕНЕСЕНО],тблСвята[ДЕНЬ]),0),2),\"\"),\"\"),\"\")","v":""},{"$f":"IFERROR(IF(ВідображатиСвяткові,IF(INDEX(тблСвята[],MATCH(DATE(РікКал,MONTH(D13),DAY(D13)),IF(ВідображатиВихідні,тблСвята[ПЕРЕНЕСЕНО],тблСвята[ДЕНЬ]),0),6),INDEX(тблСвята[],MATCH(DATE(РікКал,MONTH(D13),DAY(D13)),IF(ВідображатиВихідні,тблСвята[ПЕРЕНЕСЕНО],тблСвята[ДЕНЬ]),0),2),\"\"),\"\"),\"\")","v":""},{"$f":"IFERROR(IF(ВідображатиСвяткові,IF(INDEX(тблСвята[],MATCH(DATE(РікКал,MONTH(E13),DAY(E13)),IF(ВідображатиВихідні,тблСвята[ПЕРЕНЕСЕНО],тблСвята[ДЕНЬ]),0),6),INDEX(тблСвята[],MATCH(DATE(РікКал,MONTH(E13),DAY(E13)),IF(ВідображатиВихідні,тблСвята[ПЕРЕНЕСЕНО],тблСвята[ДЕНЬ]),0),2),\"\"),\"\"),\"\")","v":""},{"$f":"IFERROR(IF(ВідображатиСвяткові,IF(INDEX(тблСвята[],MATCH(DATE(РікКал,MONTH(F13),DAY(F13)),IF(ВідображатиВихідні,тблСвята[ПЕРЕНЕСЕНО],тблСвята[ДЕНЬ]),0),6),INDEX(тблСвята[],MATCH(DATE(РікКал,MONTH(F13),DAY(F13)),IF(ВідображатиВихідні,тблСвята[ПЕРЕНЕСЕНО],тблСвята[ДЕНЬ]),0),2),\"\"),\"\"),\"\")","v":""},{"$f":"IFERROR(IF(ВідображатиСвяткові,IF(INDEX(тблСвята[],MATCH(DATE(РікКал,MONTH(G13),DAY(G13)),IF(ВідображатиВихідні,тблСвята[ПЕРЕНЕСЕНО],тблСвята[ДЕНЬ]),0),6),INDEX(тблСвята[],MATCH(DATE(РікКал,MONTH(G13),DAY(G13)),IF(ВідображатиВихідні,тблСвята[ПЕРЕНЕСЕНО],тблСвята[ДЕНЬ]),0),2),\"\"),\"\"),\"\")","v":""},{"$f":"IFERROR(IF(ВідображатиСвяткові,IF(INDEX(тблСвята[],MATCH(DATE(РікКал,MONTH(H13),DAY(H13)),IF(ВідображатиВихідні,тблСвята[ПЕРЕНЕСЕНО],тблСвята[ДЕНЬ]),0),6),INDEX(тблСвята[],MATCH(DATE(РікКал,MONTH(H13),DAY(H13)),IF(ВідображатиВихідні,тблСвята[ПЕРЕНЕСЕНО],тблСвята[ДЕНЬ]),0),2),\"\"),\"\"),\"\")","v":""}]
[null,{"$f":"Дні+DATE(РікКал,11,1)-WEEKDAY(DATE(РікКал,11,1),(ПочатокТижня=\"Понеділок\")+1)+36","v":"2018-12-02"},"2018-12-03","НОТАТКИ"]
[null,{"$f":"IFERROR(IF(ВідображатиСвяткові,IF(INDEX(тблСвята[],MATCH(DATE(РікКал,MONTH(B15),DAY(B15)),IF(ВідображатиВихідні,тблСвята[ПЕРЕНЕСЕНО],тблСвята[ДЕНЬ]),0),6),INDEX(тблСвята[],MATCH(DATE(РікКал,MONTH(B15),DAY(B15)),IF(ВідображатиВихідні,тблСвята[ПЕРЕНЕСЕНО],тблСвята[ДЕНЬ]),0),2),\"\"),\"\"),\"\")","v":""},{"$f":"IFERROR(IF(ВідображатиСвяткові,IF(INDEX(тблСвята[],MATCH(DATE(РікКал,MONTH(C15),DAY(C15)),IF(ВідображатиВихідні,тблСвята[ПЕРЕНЕСЕНО],тблСвята[ДЕНЬ]),0),6),INDEX(тблСвята[],MATCH(DATE(РікКал,MONTH(C15),DAY(C15)),IF(ВідображатиВихідні,тблСвята[ПЕРЕНЕСЕНО],тблСвята[ДЕНЬ]),0),2),\"\"),\"\"),\"\")","v":""}]

{"sheet":"Грудень","index":12,"n_rows":16,"n_cols":8,"rows_kept":16,"merged":[[1,1,1,3],[14,3,14,7],[15,3,15,7],[16,1,16,7]]}
[]
[null,{"$f":"B9","v":"2018-12-09"}]
[]
[null,{"$f":"ПочатокТижня","v":"НЕДІЛЯ"},{"$f":"UPPER(TEXT(C5,\"dddd\"))","v":"ПОНЕДІЛОК"},"ВІВТОРОК","СЕРЕДА","ЧЕТВЕР","П'ЯТНИЦЯ","СУБОТА"]
[null,{"$f":"Дні+DATE(РікКал,12,1)-WEEKDAY(DATE(РікКал,12,1),(ПочатокТижня=\"Понеділок\")+1)+1","v":"2018-11-25"},"2018-11-26","2018-11-27","2018-11-28","2018-11-29","2018-11-30","2018-12-01"]
[null,{"$f":"IFERROR(IF(ВідображатиСвяткові,IF(INDEX(тблСвята[],MATCH(DATE(РікКал-(DAY(B5)>15)+(ROW()>6),MONTH(B5),DAY(B5)),IF(ВідображатиВихідні,тблСвята[ПЕРЕНЕСЕНО],тблСвята[ДЕНЬ]),0),6),INDEX(тблСвята[],MATCH(DATE(РікКал-(DAY(B5)>15)+(ROW()>6),MONTH(B5),DAY(B5)),IF(ВідображатиВихідні,тблСвята[ПЕРЕНЕСЕНО],тблСвята[ДЕНЬ]),0),2),\"\"),\"\"),\"\")","v":""},{"$f":"IFERROR(IF(ВідображатиСвяткові,IF(INDEX(тблСвята[],MATCH(DATE(РікКал-(DAY(C5)>15)+(ROW()>6),MONTH(C5),DAY(C5)),IF(ВідображатиВихідні,тблСвята[ПЕРЕНЕСЕНО],тблСвята[ДЕНЬ]),0),6),INDEX(тблСвята[],MATCH(DATE(РікКал-(DAY(C5)>15)+(ROW()>6),MONTH(C5),DAY(C5)),IF(ВідображатиВихідні,тблСвята[ПЕРЕНЕСЕНО],тблСвята[ДЕНЬ]),0),2),\"\"),\"\"),\"\")","v":""},{"$f":"IFERROR(IF(ВідображатиСвяткові,IF(INDEX(тблСвята[],MATCH(DATE(РікКал-(DAY(D5)>15)+(ROW()>6),MONTH(D5),DAY(D5)),IF(ВідображатиВихідні,тблСвята[ПЕРЕНЕСЕНО],тблСвята[ДЕНЬ]),0),6),INDEX(тблСвята[],MATCH(DATE(РікКал-(DAY(D5)>15)+(ROW()>6),MONTH(D5),DAY(D5)),IF(ВідображатиВихідні,тблСвята[ПЕРЕНЕСЕНО],тблСвята[ДЕНЬ]),0),2),\"\"),\"\"),\"\")","v":""},{"$f":"IFERROR(IF(ВідображатиСвяткові,IF(INDEX(тблСвята[],MATCH(DATE(РікКал-(DAY(E5)>15)+(ROW()>6),MONTH(E5),DAY(E5)),IF(ВідображатиВихідні,тблСвята[ПЕРЕНЕСЕНО],тблСвята[ДЕНЬ]),0),6),INDEX(тблСвята[],MATCH(DATE(РікКал-(DAY(E5)>15)+(ROW()>6),MONTH(E5),DAY(E5)),IF(ВідображатиВихідні,тблСвята[ПЕРЕНЕСЕНО],тблСвята[ДЕНЬ]),0),2),\"\"),\"\"),\"\")","v":""},{"$f":"IFERROR(IF(ВідображатиСвяткові,IF(INDEX(тблСвята[],MATCH(DATE(РікКал-(DAY(F5)>15)+(ROW()>6),MONTH(F5),DAY(F5)),IF(ВідображатиВихідні,тблСвята[ПЕРЕНЕСЕНО],тблСвята[ДЕНЬ]),0),6),INDEX(тблСвята[],MATCH(DATE(РікКал-(DAY(F5)>15)+(ROW()>6),MONTH(F5),DAY(F5)),IF(ВідображатиВихідні,тблСвята[ПЕРЕНЕСЕНО],тблСвята[ДЕНЬ]),0),2),\"\"),\"\"),\"\")","v":""},{"$f":"IFERROR(IF(ВідображатиСвяткові,IF(INDEX(тблСвята[],MATCH(DATE(РікКал-(DAY(G5)>15)+(ROW()>6),MONTH(G5),DAY(G5)),IF(ВідображатиВихідні,тблСвята[ПЕРЕНЕСЕНО],тблСвята[ДЕНЬ]),0),6),INDEX(тблСвята[],MATCH(DATE(РікКал-(DAY(G5)>15)+(ROW()>6),MONTH(G5),DAY(G5)),IF(ВідображатиВихідні,тблСвята[ПЕРЕНЕСЕНО],тблСвята[ДЕНЬ]),0),2),\"\"),\"\"),\"\")","v":""},{"$f":"IFERROR(IF(ВідображатиСвяткові,IF(INDEX(тблСвята[],MATCH(DATE(РікКал-(DAY(H5)>15)+(ROW()>6),MONTH(H5),DAY(H5)),IF(ВідображатиВихідні,тблСвята[ПЕРЕНЕСЕНО],тблСвята[ДЕНЬ]),0),6),INDEX(тблСвята[],MATCH(DATE(РікКал-(DAY(H5)>15)+(ROW()>6),MONTH(H5),DAY(H5)),IF(ВідображатиВихідні,тблСвята[ПЕРЕНЕСЕНО],тблСвята[ДЕНЬ]),0),2),\"\"),\"\"),\"\")","v":""}]
[null,{"$f":"Дні+DATE(РікКал,12,1)-WEEKDAY(DATE(РікКал,12,1),(ПочатокТижня=\"Понеділок\")+1)+8","v":"2018-12-02"},"2018-12-03","2018-12-04","2018-12-05","2018-12-06","2018-12-07","2018-12-08"]
[null,{"$f":"IFERROR(IF(ВідображатиСвяткові,IF(INDEX(тблСвята[],MATCH(DATE(РікКал,MONTH(B7),DAY(B7)),IF(ВідображатиВихідні,тблСвята[ПЕРЕНЕСЕНО],тблСвята[ДЕНЬ]),0),6),INDEX(тблСвята[],MATCH(DATE(РікКал,MONTH(B7),DAY(B7)),IF(ВідображатиВихідні,тблСвята[ПЕРЕНЕСЕНО],тблСвята[ДЕНЬ]),0),2),\"\"),\"\"),\"\")","v":""},{"$f":"IFERROR(IF(ВідображатиСвяткові,IF(INDEX(тблСвята[],MATCH(DATE(РікКал,MONTH(C7),DAY(C7)),IF(ВідображатиВихідні,тблСвята[ПЕРЕНЕСЕНО],тблСвята[ДЕНЬ]),0),6),INDEX(тблСвята[],MATCH(DATE(РікКал,MONTH(C7),DAY(C7)),IF(ВідображатиВихідні,тблСвята[ПЕРЕНЕСЕНО],тблСвята[ДЕНЬ]),0),2),\"\"),\"\"),\"\")","v":""},{"$f":"IFERROR(IF(ВідображатиСвяткові,IF(INDEX(тблСвята[],MATCH(DATE(РікКал,MONTH(D7),DAY(D7)),IF(ВідображатиВихідні,тблСвята[ПЕРЕНЕСЕНО],тблСвята[ДЕНЬ]),0),6),INDEX(тблСвята[],MATCH(DATE(РікКал,MONTH(D7),DAY(D7)),IF(ВідображатиВихідні,тблСвята[ПЕРЕНЕСЕНО],тблСвята[ДЕНЬ]),0),2),\"\"),\"\"),\"\")","v":""},{"$f":"IFERROR(IF(ВідображатиСвяткові,IF(INDEX(тблСвята[],MATCH(DATE(РікКал,MONTH(E7),DAY(E7)),IF(ВідображатиВихідні,тблСвята[ПЕРЕНЕСЕНО],тблСвята[ДЕНЬ]),0),6),INDEX(тблСвята[],MATCH(DATE(РікКал,MONTH(E7),DAY(E7)),IF(ВідображатиВихідні,тблСвята[ПЕРЕНЕСЕНО],тблСвята[ДЕНЬ]),0),2),\"\"),\"\"),\"\")","v":""},{"$f":"IFERROR(IF(ВідображатиСвяткові,IF(INDEX(тблСвята[],MATCH(DATE(РікКал,MONTH(F7),DAY(F7)),IF(ВідображатиВихідні,тблСвята[ПЕРЕНЕСЕНО],тблСвята[ДЕНЬ]),0),6),INDEX(тблСвята[],MATCH(DATE(РікКал,MONTH(F7),DAY(F7)),IF(ВідображатиВихідні,тблСвята[ПЕРЕНЕСЕНО],тблСвята[ДЕНЬ]),0),2),\"\"),\"\"),\"\")","v":""},{"$f":"IFERROR(IF(ВідображатиСвяткові,IF(INDEX(тблСвята[],MATCH(DATE(РікКал,MONTH(G7),DAY(G7)),IF(ВідображатиВихідні,тблСвята[ПЕРЕНЕСЕНО],тблСвята[ДЕНЬ]),0),6),INDEX(тблСвята[],MATCH(DATE(РікКал,MONTH(G7),DAY(G7)),IF(ВідображатиВихідні,тблСвята[ПЕРЕНЕСЕНО],тблСвята[ДЕНЬ]),0),2),\"\"),\"\"),\"\")","v":""},{"$f":"IFERROR(IF(ВідображатиСвяткові,IF(INDEX(тблСвята[],MATCH(DATE(РікКал,MONTH(H7),DAY(H7)),IF(ВідображатиВихідні,тблСвята[ПЕРЕНЕСЕНО],тблСвята[ДЕНЬ]),0),6),INDEX(тблСвята[],MATCH(DATE(РікКал,MONTH(H7),DAY(H7)),IF(ВідображатиВихідні,тблСвята[ПЕРЕНЕСЕНО],тблСвята[ДЕНЬ]),0),2),\"\"),\"\"),\"\")","v":""}]
[null,{"$f":"Дні+DATE(РікКал,12,1)-WEEKDAY(DATE(РікКал,12,1),(ПочатокТижня=\"Понеділок\")+1)+15","v":"2018-12-09"},"2018-12-10","2018-12-11","2018-12-12","2018-12-13","2018-12-14","2018-12-15"]
[null,{"$f":"IFERROR(IF(ВідображатиСвяткові,IF(INDEX(тблСвята[],MATCH(DATE(РікКал,MONTH(B9),DAY(B9)),IF(ВідображатиВихідні,тблСвята[ПЕРЕНЕСЕНО],тблСвята[ДЕНЬ]),0),6),INDEX(тблСвята[],MATCH(DATE(РікКал,MONTH(B9),DAY(B9)),IF(ВідображатиВихідні,тблСвята[ПЕРЕНЕСЕНО],тблСвята[ДЕНЬ]),0),2),\"\"),\"\"),\"\")","v":""},{"$f":"IFERROR(IF(ВідображатиСвяткові,IF(INDEX(тблСвята[],MATCH(DATE(РікКал,MONTH(C9),DAY(C9)),IF(ВідображатиВихідні,тблСвята[ПЕРЕНЕСЕНО],тблСвята[ДЕНЬ]),0),6),INDEX(тблСвята[],MATCH(DATE(РікКал,MONTH(C9),DAY(C9)),IF(ВідображатиВихідні,тблСвята[ПЕРЕНЕСЕНО],тблСвята[ДЕНЬ]),0),2),\"\"),\"\"),\"\")","v":""},{"$f":"IFERROR(IF(ВідображатиСвяткові,IF(INDEX(тблСвята[],MATCH(DATE(РікКал,MONTH(D9),DAY(D9)),IF(ВідображатиВихідні,тблСвята[ПЕРЕНЕСЕНО],тблСвята[ДЕНЬ]),0),6),INDEX(тблСвята[],MATCH(DATE(РікКал,MONTH(D9),DAY(D9)),IF(ВідображатиВихідні,тблСвята[ПЕРЕНЕСЕНО],тблСвята[ДЕНЬ]),0),2),\"\"),\"\"),\"\")","v":""},{"$f":"IFERROR(IF(ВідображатиСвяткові,IF(INDEX(тблСвята[],MATCH(DATE(РікКал,MONTH(E9),DAY(E9)),IF(ВідображатиВихідні,тблСвята[ПЕРЕНЕСЕНО],тблСвята[ДЕНЬ]),0),6),INDEX(тблСвята[],MATCH(DATE(РікКал,MONTH(E9),DAY(E9)),IF(ВідображатиВихідні,тблСвята[ПЕРЕНЕСЕНО],тблСвята[ДЕНЬ]),0),2),\"\"),\"\"),\"\")","v":""},{"$f":"IFERROR(IF(ВідображатиСвяткові,IF(INDEX(тблСвята[],MATCH(DATE(РікКал,MONTH(F9),DAY(F9)),IF(ВідображатиВихідні,тблСвята[ПЕРЕНЕСЕНО],тблСвята[ДЕНЬ]),0),6),INDEX(тблСвята[],MATCH(DATE(РікКал,MONTH(F9),DAY(F9)),IF(ВідображатиВихідні,тблСвята[ПЕРЕНЕСЕНО],тблСвята[ДЕНЬ]),0),2),\"\"),\"\"),\"\")","v":""},{"$f":"IFERROR(IF(ВідображатиСвяткові,IF(INDEX(тблСвята[],MATCH(DATE(РікКал,MONTH(G9),DAY(G9)),IF(ВідображатиВихідні,тблСвята[ПЕРЕНЕСЕНО],тблСвята[ДЕНЬ]),0),6),INDEX(тблСвята[],MATCH(DATE(РікКал,MONTH(G9),DAY(G9)),IF(ВідображатиВихідні,тблСвята[ПЕРЕНЕСЕНО],тблСвята[ДЕНЬ]),0),2),\"\"),\"\"),\"\")","v":""},{"$f":"IFERROR(IF(ВідображатиСвяткові,IF(INDEX(тблСвята[],MATCH(DATE(РікКал,MONTH(H9),DAY(H9)),IF(ВідображатиВихідні,тблСвята[ПЕРЕНЕСЕНО],тблСвята[ДЕНЬ]),0),6),INDEX(тблСвята[],MATCH(DATE(РікКал,MONTH(H9),DAY(H9)),IF(ВідображатиВихідні,тблСвята[ПЕРЕНЕСЕНО],тблСвята[ДЕНЬ]),0),2),\"\"),\"\"),\"\")","v":""}]
[null,{"$f":"Дні+DATE(РікКал,12,1)-WEEKDAY(DATE(РікКал,12,1),(ПочатокТижня=\"Понеділок\")+1)+22","v":"2018-12-16"},"2018-12-17","2018-12-18","2018-12-19","2018-12-20","2018-12-21","2018-12-22"]
[null,{"$f":"IFERROR(IF(ВідображатиСвяткові,IF(INDEX(тблСвята[],MATCH(DATE(РікКал,MONTH(B11),DAY(B11)),IF(ВідображатиВихідні,тблСвята[ПЕРЕНЕСЕНО],тблСвята[ДЕНЬ]),0),6),INDEX(тблСвята[],MATCH(DATE(РікКал,MONTH(B11),DAY(B11)),IF(ВідображатиВихідні,тблСвята[ПЕРЕНЕСЕНО],тблСвята[ДЕНЬ]),0),2),\"\"),\"\"),\"\")","v":""},{"$f":"IFERROR(IF(ВідображатиСвяткові,IF(INDEX(тблСвята[],MATCH(DATE(РікКал,MONTH(C11),DAY(C11)),IF(ВідображатиВихідні,тблСвята[ПЕРЕНЕСЕНО],тблСвята[ДЕНЬ]),0),6),INDEX(тблСвята[],MATCH(DATE(РікКал,MONTH(C11),DAY(C11)),IF(ВідображатиВихідні,тблСвята[ПЕРЕНЕСЕНО],тблСвята[ДЕНЬ]),0),2),\"\"),\"\"),\"\")","v":""},{"$f":"IFERROR(IF(ВідображатиСвяткові,IF(INDEX(тблСвята[],MATCH(DATE(РікКал,MONTH(D11),DAY(D11)),IF(ВідображатиВихідні,тблСвята[ПЕРЕНЕСЕНО],тблСвята[ДЕНЬ]),0),6),INDEX(тблСвята[],MATCH(DATE(РікКал,MONTH(D11),DAY(D11)),IF(ВідображатиВихідні,тблСвята[ПЕРЕНЕСЕНО],тблСвята[ДЕНЬ]),0),2),\"\"),\"\"),\"\")","v":""},{"$f":"IFERROR(IF(ВідображатиСвяткові,IF(INDEX(тблСвята[],MATCH(DATE(РікКал,MONTH(E11),DAY(E11)),IF(ВідображатиВихідні,тблСвята[ПЕРЕНЕСЕНО],тблСвята[ДЕНЬ]),0),6),INDEX(тблСвята[],MATCH(DATE(РікКал,MONTH(E11),DAY(E11)),IF(ВідображатиВихідні,тблСвята[ПЕРЕНЕСЕНО],тблСвята[ДЕНЬ]),0),2),\"\"),\"\"),\"\")","v":""},{"$f":"IFERROR(IF(ВідображатиСвяткові,IF(INDEX(тблСвята[],MATCH(DATE(РікКал,MONTH(F11),DAY(F11)),IF(ВідображатиВихідні,тблСвята[ПЕРЕНЕСЕНО],тблСвята[ДЕНЬ]),0),6),INDEX(тблСвята[],MATCH(DATE(РікКал,MONTH(F11),DAY(F11)),IF(ВідображатиВихідні,тблСвята[ПЕРЕНЕСЕНО],тблСвята[ДЕНЬ]),0),2),\"\"),\"\"),\"\")","v":""},{"$f":"IFERROR(IF(ВідображатиСвяткові,IF(INDEX(тблСвята[],MATCH(DATE(РікКал,MONTH(G11),DAY(G11)),IF(ВідображатиВихідні,тблСвята[ПЕРЕНЕСЕНО],тблСвята[ДЕНЬ]),0),6),INDEX(тблСвята[],MATCH(DATE(РікКал,MONTH(G11),DAY(G11)),IF(ВідображатиВихідні,тблСвята[ПЕРЕНЕСЕНО],тблСвята[ДЕНЬ]),0),2),\"\"),\"\"),\"\")","v":""},{"$f":"IFERROR(IF(ВідображатиСвяткові,IF(INDEX(тблСвята[],MATCH(DATE(РікКал,MONTH(H11),DAY(H11)),IF(ВідображатиВихідні,тблСвята[ПЕРЕНЕСЕНО],тблСвята[ДЕНЬ]),0),6),INDEX(тблСвята[],MATCH(DATE(РікКал,MONTH(H11),DAY(H11)),IF(ВідображатиВихідні,тблСвята[ПЕРЕНЕСЕНО],тблСвята[ДЕНЬ]),0),2),\"\"),\"\"),\"\")","v":""}]
[null,{"$f":"Дні+DATE(РікКал,12,1)-WEEKDAY(DATE(РікКал,12,1),(ПочатокТижня=\"Понеділок\")+1)+29","v":"2018-12-23"},"2018-12-24","2018-12-25","2018-12-26","2018-12-27","2018-12-28","2018-12-29"]
[null,{"$f":"IFERROR(IF(ВідображатиСвяткові,IF(INDEX(тблСвята[],MATCH(DATE(РікКал,MONTH(B13),DAY(B13)),IF(ВідображатиВихідні,тблСвята[ПЕРЕНЕСЕНО],тблСвята[ДЕНЬ]),0),6),INDEX(тблСвята[],MATCH(DATE(РікКал,MONTH(B13),DAY(B13)),IF(ВідображатиВихідні,тблСвята[ПЕРЕНЕСЕНО],тблСвята[ДЕНЬ]),0),2),\"\"),\"\"),\"\")","v":""},{"$f":"IFERROR(IF(ВідображатиСвяткові,IF(INDEX(тблСвята[],MATCH(DATE(РікКал,MONTH(C13),DAY(C13)),IF(ВідображатиВихідні,тблСвята[ПЕРЕНЕСЕНО],тблСвята[ДЕНЬ]),0),6),INDEX(тблСвята[],MATCH(DATE(РікКал,MONTH(C13),DAY(C13)),IF(ВідображатиВихідні,тблСвята[ПЕРЕНЕСЕНО],тблСвята[ДЕНЬ]),0),2),\"\"),\"\"),\"\")","v":""},{"$f":"IFERROR(IF(ВідображатиСвяткові,IF(INDEX(тблСвята[],MATCH(DATE(РікКал,MONTH(D13),DAY(D13)),IF(ВідображатиВихідні,тблСвята[ПЕРЕНЕСЕНО],тблСвята[ДЕНЬ]),0),6),INDEX(тблСвята[],MATCH(DATE(РікКал,MONTH(D13),DAY(D13)),IF(ВідображатиВихідні,тблСвята[ПЕРЕНЕСЕНО],тблСвята[ДЕНЬ]),0),2),\"\"),\"\"),\"\")","v":"Різдво Христове (католицьке)"},{"$f":"IFERROR(IF(ВідображатиСвяткові,IF(INDEX(тблСвята[],MATCH(DATE(РікКал,MONTH(E13),DAY(E13)),IF(ВідображатиВихідні,тблСвята[ПЕРЕНЕСЕНО],тблСвята[ДЕНЬ]),0),6),INDEX(тблСвята[],MATCH(DATE(РікКал,MONTH(E13),DAY(E13)),IF(ВідображатиВихідні,тблСвята[ПЕРЕНЕСЕНО],тблСвята[ДЕНЬ]),0),2),\"\"),\"\"),\"\")","v":""},{"$f":"IFERROR(IF(ВідображатиСвяткові,IF(INDEX(тблСвята[],MATCH(DATE(РікКал,MONTH(F13),DAY(F13)),IF(ВідображатиВихідні,тблСвята[ПЕРЕНЕСЕНО],тблСвята[ДЕНЬ]),0),6),INDEX(тблСвята[],MATCH(DATE(РікКал,MONTH(F13),DAY(F13)),IF(ВідображатиВихідні,тблСвята[ПЕРЕНЕСЕНО],тблСвята[ДЕНЬ]),0),2),\"\"),\"\"),\"\")","v":""},{"$f":"IFERROR(IF(ВідображатиСвяткові,IF(INDEX(тблСвята[],MATCH(DATE(РікКал,MONTH(G13),DAY(G13)),IF(ВідображатиВихідні,тблСвята[ПЕРЕНЕСЕНО],тблСвята[ДЕНЬ]),0),6),INDEX(тблСвята[],MATCH(DATE(РікКал,MONTH(G13),DAY(G13)),IF(ВідображатиВихідні,тблСвята[ПЕРЕНЕСЕНО],тблСвята[ДЕНЬ]),0),2),\"\"),\"\"),\"\")","v":""},{"$f":"IFERROR(IF(ВідображатиСвяткові,IF(INDEX(тблСвята[],MATCH(DATE(РікКал,MONTH(H13),DAY(H13)),IF(ВідображатиВихідні,тблСвята[ПЕРЕНЕСЕНО],тблСвята[ДЕНЬ]),0),6),INDEX(тблСвята[],MATCH(DATE(РікКал,MONTH(H13),DAY(H13)),IF(ВідображатиВихідні,тблСвята[ПЕРЕНЕСЕНО],тблСвята[ДЕНЬ]),0),2),\"\"),\"\"),\"\")","v":""}]
[null,{"$f":"Дні+DATE(РікКал,12,1)-WEEKDAY(DATE(РікКал,12,1),(ПочатокТижня=\"Понеділок\")+1)+36","v":"2018-12-30"},"2018-12-31","НОТАТКИ"]
[null,{"$f":"IFERROR(IF(ВідображатиСвяткові,IF(INDEX(тблСвята[],MATCH(DATE(РікКал,MONTH(B15),DAY(B15)),IF(ВідображатиВихідні,тблСвята[ПЕРЕНЕСЕНО],тблСвята[ДЕНЬ]),0),6),INDEX(тблСвята[],MATCH(DATE(РікКал,MONTH(B15),DAY(B15)),IF(ВідображатиВихідні,тблСвята[ПЕРЕНЕСЕНО],тблСвята[ДЕНЬ]),0),2),\"\"),\"\"),\"\")","v":""},{"$f":"IFERROR(IF(ВідображатиСвяткові,IF(INDEX(тблСвята[],MATCH(DATE(РікКал,MONTH(C15),DAY(C15)),IF(ВідображатиВихідні,тблСвята[ПЕРЕНЕСЕНО],тблСвята[ДЕНЬ]),0),6),INDEX(тблСвята[],MATCH(DATE(РікКал,MONTH(C15),DAY(C15)),IF(ВідображатиВихідні,тблСвята[ПЕРЕНЕСЕНО],тблСвята[ДЕНЬ]),0),2),\"\"),\"\"),\"\")","v":""}]

{"sheet":"Свята","index":13,"n_rows":15,"n_cols":8,"rows_kept":15}
[]
[null,"Свята України",{"$nulls":5}," "]
[]
[null,"ДЕНЬ","СВЯТО","ПРИПАДАЄ НА","ДЕНЬ ТИЖНЯ","ПЕРЕНЕСЕНО","ВІДОБРАЖАТИ"]
[null,{"$f":"DATE(РікКал,1,1)","v":"2018-01-01"},"Новий рік","1 січня",{"$f":"IFERROR(WEEKDAY(тблСвята[[#This Row],[ДЕНЬ]],IF(ПочатокТижня=\"ПОНЕДІЛОК\",2,1)),0)","v":2},{"$f":"IF(ISTEXT(тблСвята[[#This Row],[ДЕНЬ]]),\"Не перенесено\",IF(тблСвята[[#This Row],[ДЕНЬ ТИЖНЯ]]=1,тблСвята[[#This Row],[ДЕНЬ]]+1,IF(тблСвята[[#This Row],[ДЕНЬ ТИЖНЯ]]=7,тблСвята[[#This Row],[ДЕНЬ]]-1,тблСвята[[#This Row],[ДЕНЬ]])))","v":"2018-01-01"},true]
[null,{"$f":"DATE(РікКал,1,1+((3-(2>=WEEKDAY(DATE(РікКал,1,1))))*7)+(2-WEEKDAY(DATE(РікКал,1,1))))","v":"2018-01-15"},{"$f":"IF(COUNTIF(тблСвята[ДЕНЬ],тблСвята[[#This Row],[ДЕНЬ]])>1,\"Martin Luther King, Jr. Day *\",\"Martin Luther King, Jr. Day\")","v":"Martin Luther King, Jr. Day"},"7 січня",{"$f":"IFERROR(WEEKDAY(тблСвята[[#This Row],[ДЕНЬ]],IF(ПочатокТижня=\"ПОНЕДІЛОК\",2,1)),0)","v":2},{"$f":"IF(ISTEXT(тблСвята[[#This Row],[ДЕНЬ]]),\"Не перенесено\",IF(тблСвята[[#This Row],[ДЕНЬ ТИЖНЯ]]=1,тблСвята[[#This Row],[ДЕНЬ]]+1,IF(тблСвята[[#This Row],[ДЕНЬ ТИЖНЯ]]=7,тблСвята[[#This Row],[ДЕНЬ]]-1,тблСвята[[#This Row],[ДЕНЬ]])))","v":"2018-01-15"},true]
[null,{"$f":"IF(MOD(РікКал,4)=1,DATE(РікКал,1,20)+(WEEKDAY(DATE(РікКал,1,20))=1),\"Не перенесено\")","v":"Не перенесено"},"Міжнародний жіночий день","8 березня",{"$f":"IFERROR(WEEKDAY(тблСвята[[#This Row],[ДЕНЬ]],IF(ПочатокТижня=\"ПОНЕДІЛОК\",2,1)),0)","v":0},{"$f":"IF(ISTEXT(тблСвята[[#This Row],[ДЕНЬ]]),\"Не перенесено\",IF(тблСвята[[#This Row],[ДЕНЬ ТИЖНЯ]]=1,тблСвята[[#This Row],[ДЕНЬ]]+1,IF(тблСвята[[#This Row],[ДЕНЬ ТИЖНЯ]]=7,тблСвята[[#This Row],[ДЕНЬ]]-1,тблСвята[[#This Row],[ДЕНЬ]])))","v":"Не перенесено"},true]
[null,{"$f":"DATE(РікКал,2,1+((3-(2>=WEEKDAY(DATE(РікКал,2,1))))*7)+(2-WEEKDAY(DATE(РікКал,2,1))))","v":"2018-02-19"},"Великдень","8 квітня",{"$f":"IFERROR(WEEKDAY(тблСвята[[#This Row],[ДЕНЬ]],IF(ПочатокТижня=\"ПОНЕДІЛОК\",2,1)),0)","v":2},{"$f":"IF(ISTEXT(тблСвята[[#This Row],[ДЕНЬ]]),\"Не перенесено\",IF(тблСвята[[#This Row],[ДЕНЬ ТИЖНЯ]]=1,тблСвята[[#This Row],[ДЕНЬ]]+1,IF(тблСвята[[#This Row],[ДЕНЬ ТИЖНЯ]]=7,тблСвята[[#This Row],[ДЕНЬ]]-1,тблСвята[[#This Row],[ДЕНЬ]])))","v":"2018-02-19"},true]
[null,{"$f":"DATE(РікКал,5,1+((ПонеділкиТравня-(2>=WEEKDAY(DATE(РікКал,5,1))))*7)+(2-WEEKDAY(DATE(РікКал,5,1))))","v":"2018-05-28"},"День праці","1 травня",{"$f":"IFERROR(WEEKDAY(тблСвята[[#This Row],[ДЕНЬ]],IF(ПочатокТижня=\"ПОНЕДІЛОК\",2,1)),0)","v":2},{"$f":"IF(ISTEXT(тблСвята[[#This Row],[ДЕНЬ]]),\"Не перенесено\",IF(тблСвята[[#This Row],[ДЕНЬ ТИЖНЯ]]=1,тблСвята[[#This Row],[ДЕНЬ]]+1,IF(тблСвята[[#This Row],[ДЕНЬ ТИЖНЯ]]=7,тблСвята[[#This Row],[ДЕНЬ]]-1,тблСвята[[#This Row],[ДЕНЬ]])))","v":"2018-05-28"},true]
[null,{"$f":"DATE(РікКал,7,4)","v":"2018-07-04"},"День перемоги","9 травня",{"$f":"IFERROR(WEEKDAY(тблСвята[[#This Row],[ДЕНЬ]],IF(ПочатокТижня=\"ПОНЕДІЛОК\",2,1)),0)","v":4},{"$f":"IF(ISTEXT(тблСвята[[#This Row],[ДЕНЬ]]),\"Не перенесено\",IF(тблСвята[[#This Row],[ДЕНЬ ТИЖНЯ]]=1,тблСвята[[#This Row],[ДЕНЬ]]+1,IF(тблСвята[[#This Row],[ДЕНЬ ТИЖНЯ]]=7,тблСвята[[#This Row],[ДЕНЬ]]-1,тблСвята[[#This Row],[ДЕНЬ]])))","v":"2018-07-04"},true]
[null,{"$f":"DATE(РікКал,9,1+((1-(2>=WEEKDAY(DATE(РікКал,9,1))))*7)+(2-WEEKDAY(DATE(РікКал,9,1))))","v":"2018-09-03"},"Трійця","27 травня",{"$f":"IFERROR(WEEKDAY(тблСвята[[#This Row],[ДЕНЬ]],IF(ПочатокТижня=\"ПОНЕДІЛОК\",2,1)),0)","v":2},{"$f":"IF(ISTEXT(тблСвята[[#This Row],[ДЕНЬ]]),\"Не перенесено\",IF(тблСвята[[#This Row],[ДЕНЬ ТИЖНЯ]]=1,тблСвята[[#This Row],[ДЕНЬ]]+1,IF(тблСвята[[#This Row],[ДЕНЬ ТИЖНЯ]]=7,тблСвята[[#This Row],[ДЕНЬ]]-1,тблСвята[[#This Row],[ДЕНЬ]])))","v":"2018-09-03"},true]
[null,{"$f":"DATE(РікКал,10,1+((2-(2>=WEEKDAY(DATE(РікКал,10,1))))*7)+(2-WEEKDAY(DATE(РікКал,10,1))))","v":"2018-10-08"},"День конституції","28 червня",{"$f":"IFERROR(WEEKDAY(тблСвята[[#This Row],[ДЕНЬ]],IF(ПочатокТижня=\"ПОНЕДІЛОК\",2,1)),0)","v":2},{"$f":"IF(ISTEXT(тблСвята[[#This Row],[ДЕНЬ]]),\"Не перенесено\",IF(тблСвята[[#This Row],[ДЕНЬ ТИЖНЯ]]=1,тблСвята[[#This Row],[ДЕНЬ]]+1,IF(тблСвята[[#This Row],[ДЕНЬ ТИЖНЯ]]=7,тблСвята[[#This Row],[ДЕНЬ]]-1,тблСвята[[#This Row],[ДЕНЬ]])))","v":"2018-10-08"},true]
[null,{"$f":"DATE(РікКал,11,11)","v":"2018-11-11"},"День незалежності","24 серпня",{"$f":"IFERROR(WEEKDAY(тблСвята[[#This Row],[ДЕНЬ]],IF(ПочатокТижня=\"ПОНЕДІЛОК\",2,1)),0)","v":1},{"$f":"IF(ISTEXT(тблСвята[[#This Row],[ДЕНЬ]]),\"Не перенесено\",IF(тблСвята[[#This Row],[ДЕНЬ ТИЖНЯ]]=1,тблСвята[[#This Row],[ДЕНЬ]]+1,IF(тблСвята[[#This Row],[ДЕНЬ ТИЖНЯ]]=7,тблСвята[[#This Row],[ДЕНЬ]]-1,тблСвята[[#This Row],[ДЕНЬ]])))","v":"2018-11-12"},true]
[null,{"$f":"DATE(РікКал,11,1+((4-(5>=WEEKDAY(DATE(РікКал,11,1))))*7)+(5-WEEKDAY(DATE(РікКал,11,1))))","v":"2018-11-22"},"День захисника України","14 жовтня",{"$f":"IFERROR(WEEKDAY(тблСвята[[#This Row],[ДЕНЬ]],IF(ПочатокТижня=\"ПОНЕДІЛОК\",2,1)),0)","v":5},{"$f":"IF(ISTEXT(тблСвята[[#This Row],[ДЕНЬ]]),\"Не перенесено\",IF(тблСвята[[#This Row],[ДЕНЬ ТИЖНЯ]]=1,тблСвята[[#This Row],[ДЕНЬ]]+1,IF(тблСвята[[#This Row],[ДЕНЬ ТИЖНЯ]]=7,тблСвята[[#This Row],[ДЕНЬ]]-1,тблСвята[[#This Row],[ДЕНЬ]])))","v":"2018-11-22"},true]
[null,{"$f":"DATE(РікКал,12,25)","v":"2018-12-25"},"Різдво Христове (католицьке)","25 грудня",{"$f":"IFERROR(WEEKDAY(тблСвята[[#This Row],[ДЕНЬ]],IF(ПочатокТижня=\"ПОНЕДІЛОК\",2,1)),0)","v":3},{"$f":"IF(ISTEXT(тблСвята[[#This Row],[ДЕНЬ]]),\"Не перенесено\",IF(тблСвята[[#This Row],[ДЕНЬ ТИЖНЯ]]=1,тблСвята[[#This Row],[ДЕНЬ]]+1,IF(тблСвята[[#This Row],[ДЕНЬ ТИЖНЯ]]=7,тблСвята[[#This Row],[ДЕНЬ]]-1,тблСвята[[#This Row],[ДЕНЬ]])))","v":"2018-12-25"},true]